Workbook

Sheet Instructions
B2: =CONCATENATE(dms_Sector," ",dms_Segment," ", "Network Service Provider") -> Electricity Distribution Network Service Provider
B3: =IF(dms_Model="Reset","Regulatory Proposal RIN Template","Annual Reporting RIN") -> Regulatory Proposal RIN Template
B4: =CONCATENATE("This template is to be used by ",INDEX(dms_TradingNameFull_List,MATCH(dms_TradingName,dms_TradingName_List))," to fulfil its reporting obligations to the AER.") -> This template is to be used by Essential Energy to fulfil its reporting obligations to the AER.
B5: INSTRUCTIONS
B6: GENERAL | C6: Complete the Business & other details worksheet before entering data or values in any other worksheets. The Business & other details worksheet is linked to other worksheets within the workbook and automatically generates certain column headings and conditional formatting.
B8: CONFIDENTIAL INFORMATION | C8: Please use the macro at the top of each worksheet to identify confidential information in the confidential workbook.
C9: -Do this by selecting the cell or cells that contain confidential information and then run the Mark selection as CONFIDENTIAL macro. This will format the cells a specific colour that is identified by the AER's database which in turn marks that information as confidential. -To reverse this, select the cell or cells and run the Return selection to NON-CONFIDENTIAL macro.
B11: RESPONSES | C11: Please return two (2) files to the AER: 1. A confidential version which must contain a complete set of all responses with confidential information marked using the Mark selection CONFIDENTIAL macro and which has been completed using the locked template file provided by the AER. 2. A public version with confidential information either removed completely or aggregated in some form together with writtten consent to disclose the public version of the response. Use the drop down box on the Business and other details worksheet to identify the file as either confidential ('consolidated') or public.
B13: AMENDMENTS | C13: If an NSP wishes to correct data previously submitted to the AER it should resubmit that data using the original completed submission as the starting point. Please make any necessary changes to the data. Data that is not being amended should be left unchanged. NSPs must identify the reason for the amendments in the Amendment Reason box on the Business and other details worksheet. NSPs may provide further details regarding any amendments in the Amendments worksheet. .
C14: NSP may use Amended Data macro to highlight cells that contain amended data. NB: if data is also CONFIDENTIAL, re-apply the Confidentiality macro after applying the Amended macro
C15: Please resubmit two (2) files - a confidential version and a public version of the amended submission to the AER
B17: UNITS OF MEASURE | C17: All amounts are to be unrounded and reported on a one for one basis: that is 1000 is to be entered as '1000'. Applicable units of measure may be identified in the table column headings or row descriptors.
B19: INPUT / NON-INPUT CELLS
D20: Yellow = Input cell (mandatory)
D21: Darker yellow = input cell (mandatory)
D22: Orange = input cell (if data available)
D23: Grey = Not applicable/No inputs required
D24: PLEASE DO NOT ENTER TEXT into cells that are to contain numbers (including 'numbers stored as text')
B27: NAVIGATION | C27: Many tables in the worksheets have been "grouped" to allow for easy navigation. To ungroup or group data use the outline symbols in the left margin (for Row groupings) or above the columns (for column groupings).

Sheet CONTENTS
C1: =IF(dms_MultiYear_ResponseFlag="Yes","REGULATORY REPORTING STATEMENT - HISTORICAL INFORMATION",INDEX(dms_Worksheet_List,MATCH(dms_Model,dms_Model_List))) -> REGULATORY REPORTING STATEMENT
C2: =INDEX(dms_TradingNameFull_List,MATCH(dms_TradingName,dms_TradingName_List)) -> Essential Energy
C3: =CONCATENATE("REGULATORY PERIOD FROM ", FRCP_y1," TO ",dms_MultiYear_FinalYear_Result) -> REGULATORY PERIOD FROM 2024-25 TO 2028-29
D7: CONTENTS
D9: TEMPLATE | E9: NOVEMBER 2022
D11: SUBMISSION | E11: Business & other details
D13: EXPENDITURE | E13: 2.1 Expenditure summary
E14: 2.2 Repex
E15: 2.3 Augex (b)
E16: 2.5 Connections
E17: 2.6 Non-network
E18: 2.10 Overheads
E19: 2.11 Labour
E20: 2.14 Forecast price changes
E21: 2.16 Opex Summary
E22: 2.17 Step Changes
D24: ECONOMIC BENCHMARKING | E24: 3.1 Revenue
E25: 3.2 Operating expenditure
E26: 3.3 Assets (RAB)
E27: 3.4 Operational data
E28: 3.5 Physical assets
E29: 3.6 Quality of service
E30: 3.7 Operating Environment
D32: ALTERNATIVE CONTROL | E32: 4.1 Public lighting
D34: NETWORK | E34: 5.4 MD & utilisation-Spatial
D36: SERVICE | E36: 6.2 Reliability & Cust serv
D38: OTHER | E38: 7.1 Policies and Procedures
E39: 7.2 Contingent projects
E40: 7.3 Obligations
E41: 7.4 Shared Assets
E42: 7.7 TSS-LRMC
E43: 7.8 Export Services

Sheet Business & other details
V1: =INDEX(dms_Worksheet_List,MATCH(dms_Model,dms_Model_List)) -> REGULATORY REPORTING STATEMENT
V2: =INDEX(dms_TradingNameFull_List,MATCH(dms_TradingName,dms_TradingName_List)) -> Essential Energy
V3: =CONCATENATE("REGULATORY PERIOD FROM ", FRCP_y1," TO ",dms_MultiYear_FinalYear_Result) -> REGULATORY PERIOD FROM 2024-25 TO 2028-29
V4: BUSINESS & OTHER DETAILS
V6: INSTRUCTIONS
V7: Complete the following business details regulatory template before entering data or values in any other regulatory template. This regulatory template is linked to other cells within the spreadsheet and automatically generates column headings and conditional formatting to distinguish business specific input and non-input cells.
Q9: SUBMISSION PARTICULARS INPUT SHEET
V12: ENTITY DETAILS
V14: Business Name
V16: Short name | AL16: Essential Energy
V17: ACN/ABN | AL17: =INDEX(dms_ABN_List,MATCH(dms_TradingName,dms_TradingName_List)) -> 37428185226
V21: Business Address | BQ21: Postal Address
V23: Address 1 | AL23: =INDEX(dms_Addr1_List,MATCH(dms_TradingName,dms_TradingName_List)) -> 8 Buller Street | BI23: Address 1 | BQ23: =INDEX(dms_PAddr1_List,MATCH(dms_TradingName,dms_TradingName_List)) -> PO Box 5730
V24: Address 2 | AL24: =IF(ISBLANK(INDEX(dms_Addr2_List,MATCH(dms_TradingName,dms_TradingName_List))),"",(INDEX(dms_Addr2_List,MATCH(dms_TradingName,dms_TradingName_List)))) ->  | BI24: Address 2 | BQ24: =IF(ISBLANK(INDEX(dms_PAddr2_List,MATCH(dms_TradingName,dms_TradingName_List))),"",(INDEX(dms_PAddr2_List,MATCH(dms_TradingName,dms_TradingName_List)))) -> 
V25: Suburb | AL25: =INDEX(dms_Suburb_List,MATCH(dms_TradingName,dms_TradingName_List)) -> PORT MACQUARIE | BI25: Suburb | BQ25: =INDEX(dms_PSuburb_List,MATCH(dms_TradingName,dms_TradingName_List)) -> PORT MACQUARIE
V26: State | AL26: =INDEX(dms_State_List,MATCH(dms_TradingName,dms_TradingName_List)) -> NSW | AV26: Post code | BI26: State | BQ26: =INDEX(dms_PState_List,MATCH(dms_TradingName,dms_TradingName_List)) -> NSW | CA26: Post code
BA28: `
V30: Contact Names
V32: Name | BI32: Name
V33: Phone | BI33: Phone
V34: Email | BI34: Email
Q39: REGULATORY CONTROL PERIODS
Z42: Forthcoming period | AL42: 2024-25 | AU42: =FRCP_y2 -> 2025-26 | BD42: =FRCP_y3 -> 2026-27 | BM42: =FRCP_y4 -> 2027-28 | BV42: =FRCP_y5 -> 2028-29
AL43: =FRCP_y6 -> 2029-30 | AU43: =FRCP_y7 -> 2030-31 | BD43: =FRCP_y8 -> 2031-32 | BM43: =FRCP_y9 -> 2032-33 | BV43: =FRCP_y10 -> 2033-34
AL44: =FRCP_y11 -> 2034-35 | AU44: =FRCP_y12 -> 2035-36 | BD44: =FRCP_y13 -> 2036-37 | BM44: =FRCP_y14 -> 2037-38 | BV44: =FRCP_y15 -> 2038-39
X46: RESETS | Z46: Current period | AL46: =CRCP_y1 -> 2019-20 | AU46: =CRCP_y2 -> 2020-21 | BD46: =CRCP_y3 -> 2021-22 | BM46: =CRCP_y4 -> 2022-23 | BV46: =CRCP_y5 -> 2023-24
AL47: =CRCP_y6 -> 2024-25 | AU47: =CRCP_y7 -> 2025-26 | BD47: =CRCP_y8 -> 2026-27 | BM47: =CRCP_y9 -> 2027-28 | BV47: =CRCP_y10 -> 2028-29
AL48: =CRCP_y11 -> 2029-30 | AU48: =CRCP_y12 -> 2030-31 | BD48: =CRCP_y13 -> 2031-32 | BM48: =CRCP_y14 -> 2032-33 | BV48: =CRCP_y15 -> 2033-34
Z50: Previous period | AL50: =PRCP_y1 -> 2014-15 | AU50: =PRCP_y2 -> 2015-16 | BD50: =PRCP_y3 -> 2016-17 | BM50: =PRCP_y4 -> 2017-18 | BV50: =PRCP_y5 -> 2018-19
AL51: =PRCP_y6 -> 2019-20 | AU51: =PRCP_y7 -> 2020-21 | BD51: =PRCP_y8 -> 2021-22 | BM51: =PRCP_y9 -> 2022-23 | BV51: =PRCP_y10 -> 2023-24
AL52: =PRCP_y11 -> 2024-25 | AU52: =PRCP_y12 -> 2025-26 | BD52: =PRCP_y13 -> 2026-27 | BM52: =PRCP_y14 -> 2027-28 | BV52: =PRCP_y15 -> 2028-29
Z54: Commencing year | AL54: 2022-23
X55: ANNUAL RINS
Z56: Final year | AL56: 2028-29
Q60: SUBMISSION DETAILS
Z62: RIN type | AL62: =INDIRECT(dms_Model) -> Regulatory Reporting (Reset)
Z64: Source | AL64: Regulatory proposal
X66: THIS FILE | Z66: Data Quality | AL66: Consolidated
Z68: Confidentiality Status | AL68: Public
Z70: Amended RIN Amendment Reason | AL70: 15/06/2023 - Correction to 2.6.5 - #15,384,214
Z74: Submission Date | AL74: 2023-01-31 | BD74: Please enter date this file submitted to AER

Sheet 2.1 Expenditure summary
B1: =INDEX(dms_Worksheet_List,MATCH(dms_Model,dms_Model_List)) -> REGULATORY REPORTING STATEMENT
B2: =INDEX(dms_TradingNameFull_List,MATCH(dms_TradingName,dms_TradingName_List)) -> Essential Energy
B3: =CONCATENATE("REGULATORY PERIOD FROM ", FRCP_y1," TO ",dms_MultiYear_FinalYear_Result) -> REGULATORY PERIOD FROM 2024-25 TO 2028-29
B4: 2.1 EXPENDITURE SUMMARY & RECONCILIATION
B7: 2.1.1 - STANDARD CONTROL SERVICES CAPEX (including dual function assets)
C8: =CONCATENATE("EXPENDITURE ($0's, real ", dms_DollarReal, ")") -> EXPENDITURE ($0's, real June 2024)
C9: =CRCP_y4 -> 2022-23 | D9: =CRCP_y5 -> 2023-24 | E9: =FRCP_y1 -> 2024-25 | F9: =FRCP_y2 -> 2025-26 | G9: =FRCP_y3 -> 2026-27 | H9: =FRCP_y4 -> 2027-28 | I9: =FRCP_y5 -> 2028-29
B10: Replacement expenditure | C10: =SUM('2.2 Repex'!D12:D182) -> 184772742 | D10: =SUM('2.2 Repex'!E12:E182) -> 201052234.1 | E10: =SUM('2.2 Repex'!F12:F182) -> 211087316.6 | F10: =SUM('2.2 Repex'!G12:G182) -> 218948077.2 | G10: =SUM('2.2 Repex'!H12:H182) -> 227882334.4 | H10: =SUM('2.2 Repex'!I12:I182) -> 226339857.2 | I10: =SUM('2.2 Repex'!J12:J182) -> 244309239.8
B11: Connections | C11: =SUM('2.5 Connections'!E123:E136) -> 2431817.428 | D11: =SUM('2.5 Connections'!F123:F136) -> 1948197.656 | E11: =SUM('2.5 Connections'!G123:G136) -> 13387597.6 | F11: =SUM('2.5 Connections'!H123:H136) -> 13387597.6 | G11: =SUM('2.5 Connections'!I123:I136) -> 13387597.6 | H11: =SUM('2.5 Connections'!J123:J136) -> 13387597.6 | I11: =SUM('2.5 Connections'!K123:K136) -> 13387597.6
B12: Augmentation Expenditure | C12: =SUM('2.3 Augex (b)'!D47:D55) -> 30301669.3 | D12: =SUM('2.3 Augex (b)'!E47:E55) -> 21015456.36 | E12: =SUM('2.3 Augex (b)'!F47:F55) -> 29317712.81 | F12: =SUM('2.3 Augex (b)'!G47:G55) -> 28438442.63 | G12: =SUM('2.3 Augex (b)'!H47:H55) -> 28943154.89 | H12: =SUM('2.3 Augex (b)'!I47:I55) -> 29179479.29 | I12: =SUM('2.3 Augex (b)'!J47:J55) -> 31902380.5
B13: Non-network | C13: =SUM('2.6 Non-network'!E32:E50) -> 124674004.7 | D13: =SUM('2.6 Non-network'!F32:F50) -> 90893150.1 | E13: =SUM('2.6 Non-network'!G32:G50) -> 90246971.61 | F13: =SUM('2.6 Non-network'!H32:H50) -> 81834595.52 | G13: =SUM('2.6 Non-network'!I32:I50) -> 80243941.53 | H13: =SUM('2.6 Non-network'!J32:J50) -> 84114267.53 | I13: =SUM('2.6 Non-network'!K32:K50) -> 68003268.48
B14: Export services | C14: =SUM('7.8 Export Services'!C23:C25) -> 0 | D14: =SUM('7.8 Export Services'!D23:D25) -> 13665220.85 | E14: =SUM('7.8 Export Services'!E23:E25) -> 25507242.52 | F14: =SUM('7.8 Export Services'!F23:F25) -> 16736635.09 | G14: =SUM('7.8 Export Services'!G23:G25) -> 10855697 | H14: =SUM('7.8 Export Services'!H23:H25) -> 12296584.29 | I14: =SUM('7.8 Export Services'!I23:I25) -> 21220425.98
B15: Public lighting
B16: Metering | C16: 0 | D16: 0 | E16: 0 | F16: 0 | G16: 0 | H16: 0 | I16: 0
B17: Capitalised network overheads | C17: ='2.10 Overheads'!D15 -> 107886001.7 | D17: ='2.10 Overheads'!E15 -> 110487176 | E17: ='2.10 Overheads'!F15 -> 99841097.67 | F17: ='2.10 Overheads'!G15 -> 95844283.05 | G17: ='2.10 Overheads'!H15 -> 96376166.9 | H17: ='2.10 Overheads'!I15 -> 98023993.7 | I17: ='2.10 Overheads'!J15 -> 98786176.56
B18: Capitalised corporate overheads | C18: ='2.10 Overheads'!D30 -> 67860372.29 | D18: ='2.10 Overheads'!E30 -> 73818169 | E18: ='2.10 Overheads'!F30 -> 72505600.16 | F18: ='2.10 Overheads'!G30 -> 80789114.25 | G18: ='2.10 Overheads'!H30 -> 82045207.01 | H18: ='2.10 Overheads'!I30 -> 70674445.12 | I18: ='2.10 Overheads'!J30 -> 67178313.61
B19: capcons (included in the above)
B20: Total | C20: =SUM(C10:C18) -> 517926607.4 | D20: 512879604 | E20: 541893539 | F20: 535978745.3 | G20: 539734099.3 | H20: 534016224.7 | I20: 544787402.6
B23: 2.1.2 - STANDARD CONTROL SERVICES OPEX BY CATEGORY
C24: =CONCATENATE("EXPENDITURE ($0's, real ", dms_DollarReal, ")") -> EXPENDITURE ($0's, real June 2024)
C25: =CRCP_y4 -> 2022-23 | D25: =CRCP_y5 -> 2023-24
B26: Vegetation management | C26: 103584697.5 | D26: 111214757.3
B27: Maintenance | C27: 89304487.32 | D27: 95882665.31
B28: Emergency response | C28: 39618179.68 | D28: 42536458.99
B29: Non-network | C29: =SUM('2.6 Non-network'!E12:E30) -> 0 | D29: =SUM('2.6 Non-network'!F12:F30) -> 0
B30: Export services | C30: =SUM('7.8 Export Services'!C13:C14) -> 2307654.473 | D30: =SUM('7.8 Export Services'!D13:D14) -> 5167550.49
B31: Metering | C31: 0 | D31: 0
B32: Network overheads | C32: ='2.10 Overheads'!D12 -> 119004223 | D32: ='2.10 Overheads'!E12 -> 108137457
B33: Corporate overheads | C33: ='2.10 Overheads'!D27 -> 90699572 | D33: ='2.10 Overheads'!E27 -> 84867571.05
B34: Total | C34: =SUM(C26:C33) -> 444518814 | D34: =SUM(D26:D33) -> 447806460.1
B37: 2.1.3 - ALTERNATIVE CONTROL SERVICES CAPEX
C38: =CONCATENATE("EXPENDITURE ($0's, real ", dms_DollarReal, ")") -> EXPENDITURE ($0's, real June 2024)
C39: =CRCP_y4 -> 2022-23 | D39: =CRCP_y5 -> 2023-24 | E39: =FRCP_y1 -> 2024-25 | F39: =FRCP_y2 -> 2025-26 | G39: =FRCP_y3 -> 2026-27 | H39: =FRCP_y4 -> 2027-28 | I39: =FRCP_y5 -> 2028-29
B40: Connections | C40: 17437968.86 | D40: 8534025.583 | E40: 16785810.42 | F40: 15206446.34 | G40: 15641279.75 | H40: 15428402.41 | I40: 16707686.71
B41: Metering | C41: 0 | D41: 0 | E41: 0 | F41: 0 | G41: 0 | H41: 0 | I41: 0
B42: Public lighting | C42: ='4.1 Public lighting'!D14+'4.1 Public lighting'!D18 -> 2296008.755 | D42: ='4.1 Public lighting'!E14+'4.1 Public lighting'!E18 -> 2330821.437 | E42: ='4.1 Public lighting'!F14+'4.1 Public lighting'!F18 -> 2366551.319 | F42: ='4.1 Public lighting'!G14+'4.1 Public lighting'!G18 -> 2401628.936 | G42: ='4.1 Public lighting'!H14+'4.1 Public lighting'!H18 -> 2437388.163 | H42: ='4.1 Public lighting'!I14+'4.1 Public lighting'!I18 -> 2473700.218 | I42: ='4.1 Public lighting'!J14+'4.1 Public lighting'!J18 -> 2510578.615
B43: Fee and quoted | C43: 0 | D43: 0 | E43: 0 | F43: 0 | G43: 0 | H43: 0 | I43: 0
B44: Network overheads | C44: ='2.10 Overheads'!D16 -> 13126937.76 | D44: ='2.10 Overheads'!E16 -> 4823699.516 | E44: ='2.10 Overheads'!F16 -> 6341810.731 | F44: ='2.10 Overheads'!G16 -> 5345983.63 | G44: ='2.10 Overheads'!H16 -> 5371830.029 | H44: ='2.10 Overheads'!I16 -> 5217728.685 | I44: ='2.10 Overheads'!J16 -> 5290155.759
B45: Corporate overheads | C45: ='2.10 Overheads'!D31 -> 8605455.474 | D45: ='2.10 Overheads'!E31 -> 2753891.778 | E45: ='2.10 Overheads'!F31 -> 3961164.905 | F45: ='2.10 Overheads'!G31 -> 3947895.951 | G45: ='2.10 Overheads'!H31 -> 3935246.937 | H45: ='2.10 Overheads'!I31 -> 3161095.099 | I45: ='2.10 Overheads'!J31 -> 2862427.476
B46: Total | C46: =SUM(C40:C45) -> 41466370.85 | D46: 18442438.31 | E46: 29455337.37 | F46: 26901954.86 | G46: 27385744.87 | H46: 26280926.41 | I46: 27370848.56
B49: 2.1.4 - ALTERNATIVE CONTROL SERVICES OPEX
C50: =CONCATENATE("EXPENDITURE ($0's, real ", dms_DollarReal, ")") -> EXPENDITURE ($0's, real June 2024)
C51: =CRCP_y4 -> 2022-23 | D51: =CRCP_y5 -> 2023-24 | E51: =FRCP_y1 -> 2024-25 | F51: =FRCP_y2 -> 2025-26 | G51: =FRCP_y3 -> 2026-27 | H51: =FRCP_y4 -> 2027-28 | I51: =FRCP_y5 -> 2028-29
B52: Connections | C52: 0 | D52: 0 | E52: 0 | F52: 0 | G52: 0 | H52: 0 | I52: 0
B53: Metering | C53: ='3.2 Operating expenditure'!K71 -> 28005789.11 | D53: ='3.2 Operating expenditure'!L71 -> 26665872.73 | E53: ='3.2 Operating expenditure'!M71 -> 24594301.61 | F53: ='3.2 Operating expenditure'!N71 -> 24385141.1 | G53: ='3.2 Operating expenditure'!O71 -> 24063220.46 | H53: ='3.2 Operating expenditure'!P71 -> 23606688.8 | I53: ='3.2 Operating expenditure'!Q71 -> 23176547.69
B54: Public lighting | C54: ='3.2 Operating expenditure'!K73 -> 13953784.22 | D54: ='3.2 Operating expenditure'!L73 -> 12986801.17 | E54: ='3.2 Operating expenditure'!M73 -> 9344303.081 | F54: ='3.2 Operating expenditure'!N73 -> 9326208.506 | G54: ='3.2 Operating expenditure'!O73 -> 9244253.398 | H54: ='3.2 Operating expenditure'!P73 -> 9001957.777 | I54: ='3.2 Operating expenditure'!Q73 -> 8872974.654
B55: Fee and quoted | C55: 31922522.39 | D55: 30826051.82 | E55: 52472912.36 | F55: 58721758.22 | G55: 62102479.49 | H55: 64742538.95 | I55: 67994490.81
B56: Network overheads | C56: ='2.10 Overheads'!D13 -> 19701481.91 | D56: ='2.10 Overheads'!E13 -> 18274661.07 | E56: ='2.10 Overheads'!F13 -> 18487786.53 | F56: ='2.10 Overheads'!G13 -> 18566313.17 | G56: ='2.10 Overheads'!H13 -> 18980677.65 | H56: ='2.10 Overheads'!I13 -> 19690828.85 | I56: ='2.10 Overheads'!J13 -> 19916429.39
B57: Corporate overheads | C57: ='2.10 Overheads'!D28 -> 13885157.3 | D57: ='2.10 Overheads'!E28 -> 11905004.53 | E57: ='2.10 Overheads'!F28 -> 13085045 | F57: ='2.10 Overheads'!G28 -> 15414678.55 | G57: ='2.10 Overheads'!H28 -> 15669623.99 | H57: ='2.10 Overheads'!I28 -> 13390133.05 | I57: ='2.10 Overheads'!J28 -> 12370077.53
B58: Total | C58: =SUM(C52:C57) -> 107468734.9 | D58: 100658391.3 | E58: 117984348.6 | F58: 126414099.5 | G58: 130060255 | H58: 130432147.4 | I58: 132330520.1
B61: 2.1.5 - DUAL FUNCTION ASSETS CAPEX
C62: =CONCATENATE("EXPENDITURE ($0's, real ", dms_DollarReal, ")") -> EXPENDITURE ($0's, real June 2024)
C63: =CRCP_y4 -> 2022-23 | D63: =CRCP_y5 -> 2023-24 | E63: =FRCP_y1 -> 2024-25 | F63: =FRCP_y2 -> 2025-26 | G63: =FRCP_y3 -> 2026-27 | H63: =FRCP_y4 -> 2027-28 | I63: =FRCP_y5 -> 2028-29
B64: Replacement expenditure | C64: 0 | D64: 0 | E64: 0 | F64: 0 | G64: 0 | H64: 0 | I64: 0
B65: Connections | C65: 0 | D65: 0 | E65: 0 | F65: 0 | G65: 0 | H65: 0 | I65: 0
B66: Augmentation expenditure | C66: 0 | D66: 0 | E66: 0 | F66: 0 | G66: 0 | H66: 0 | I66: 0
B67: Non-network | C67: 0 | D67: 0 | E67: 0 | F67: 0 | G67: 0 | H67: 0 | I67: 0
B68: Export services | C68: 0 | D68: 0 | E68: 0 | F68: 0 | G68: 0 | H68: 0 | I68: 0
B69: Capitalised network overheads | C69: 0 | D69: 0 | E69: 0 | F69: 0 | G69: 0 | H69: 0 | I69: 0
B70: Capitalised corporate overheads | C70: 0 | D70: 0 | E70: 0 | F70: 0 | G70: 0 | H70: 0 | I70: 0
B71: capcons (included in the above) | C71: 0 | D71: 0 | E71: 0 | F71: 0 | G71: 0 | H71: 0 | I71: 0
B72: Total | C72: =SUM(C64:C70) -> 0 | D72: 0 | E72: 0 | F72: 0 | G72: 0 | H72: 0 | I72: 0
B75: 2.1.6 - DUAL FUNCTION ASSETS OPEX BY CATEGORY
C76: =CONCATENATE("EXPENDITURE ($0's, real ", dms_DollarReal, ")") -> EXPENDITURE ($0's, real June 2024)
C77: =CRCP_y4 -> 2022-23 | D77: =CRCP_y5 -> 2023-24
B78: Vegetation management | C78: 0 | D78: 0
B79: Maintenance | C79: 0 | D79: 0
B80: Emergency response | C80: 0 | D80: 0
B81: Non-network | C81: 0 | D81: 0
B82: Export services | C82: 0 | D82: 0
B83: Metering | C83: 0 | D83: 0
B84: Network overheads | C84: 0 | D84: 0
B85: Corporate overheads | C85: 0 | D85: 0
B86: Total | C86: =SUM(C78:C85) -> 0 | D86: =SUM(D78:D85) -> 0
B89: 2.1.7 - STANDARD CONTROL SERVICES CAPCONS
C90: =CONCATENATE("EXPENDITURE ($0's, real ", dms_DollarReal, ")") -> EXPENDITURE ($0's, real June 2024)
C91: =CRCP_y4 -> 2022-23 | D91: =CRCP_y5 -> 2023-24 | E91: =FRCP_y1 -> 2024-25 | F91: =FRCP_y2 -> 2025-26 | G91: =FRCP_y3 -> 2026-27 | H91: =FRCP_y4 -> 2027-28 | I91: =FRCP_y5 -> 2028-29
B92: Replacement expenditure
B93: Connections | C93: 139319300 | D93: 118303511.6 | E93: 129685026 | F93: 127141410 | G93: 127592406 | H93: 126531910 | I93: 127673626
B94: Augmentation Expenditure
B95: Non-network
B96: Export services
B97: Capitalised network overheads
B98: Capitalised corporate overheads
B99: Total | C99: =SUM(C92:C98) -> 139319300 | D99: 118303511.6 | E99: 129685026 | F99: 127141410 | G99: 127592406 | H99: 126531910 | I99: 127673626
B102: 2.1.8 - STANDARD CONTROL SERVICES CAPITALISED OVERHEADS
C103: =CONCATENATE("EXPENDITURE ($0's, real ", dms_DollarReal, ")") -> EXPENDITURE ($0's, real June 2024)
C104: =CRCP_y4 -> 2022-23 | D104: =CRCP_y5 -> 2023-24 | E104: =FRCP_y1 -> 2024-25 | F104: =FRCP_y2 -> 2025-26 | G104: =FRCP_y3 -> 2026-27 | H104: =FRCP_y4 -> 2027-28 | I104: =FRCP_y5 -> 2028-29
B105: Replacement expenditure | C105: 149788524 | D105: 162199793 | E105: 137466209.6 | F105: 142375912.7 | G105: 144658822.1 | H105: 136484206 | I105: 134950890.9
B106: Connections | C106: 1928446 | D106: 1556974 | E106: 8718393.562 | F106: 8705586.513 | G106: 8498395.058 | H106: 8072796.596 | I106: 7395005.723
B107: Augmentation Expenditure | C107: 24029404 | D107: 16795279 | E107: 19092548.78 | F107: 18492737.22 | G107: 18373002.64 | H107: 17595390.15 | I107: 17622152.63
B108: Non-network | D108: 3753299 | E108: 7069545.85 | F108: 7059160.908 | G108: 6891154.098 | H108: 6546046.043 | I108: 5996440.933
B109: Export services
B110: capcons (included in the above)
B111: Total | C111: =SUM(C105:C109) -> 175746374 | D111: 184305345 | E111: 172346697.8 | F111: 176633397.3 | G111: 178421373.9 | H111: 168698438.8 | I111: 165964490.2

Sheet 2.2 Repex
B1: =INDEX(dms_Worksheet_List,MATCH(dms_Model,dms_Model_List)) -> REGULATORY REPORTING STATEMENT
B2: =INDEX(dms_TradingNameFull_List,MATCH(dms_TradingName,dms_TradingName_List)) -> Essential Energy
B3: =CONCATENATE("REGULATORY PERIOD FROM ", FRCP_y1," TO ",dms_MultiYear_FinalYear_Result) -> REGULATORY PERIOD FROM 2024-25 TO 2028-29
B4: 2.2 REPEX
B6: There are THREE sub-tables on this worksheet. The table has been sub-grouped for easy navigation. See the Instructions sheet on how to group or ungroup tables.
B8: 2.2.1 - REPLACEMENT EXPENDITURE, VOLUMES AND ASSET FAILURES BY ASSET CATEGORY
B9: EXPENDITURE
D10: =CONCATENATE("EXPENDITURE ($0's, real ", dms_DollarReal, ")") -> EXPENDITURE ($0's, real June 2024)
B11: ASSET GROUP | C11: ASSET CATEGORY | D11: =CRCP_y4 -> 2022-23 | E11: =CRCP_y5 -> 2023-24 | F11: =FRCP_y1 -> 2024-25 | G11: =FRCP_y2 -> 2025-26 | H11: =FRCP_y3 -> 2026-27 | I11: =FRCP_y4 -> 2027-28 | J11: =FRCP_y5 -> 2028-29
B12: POLES BY: HIGHEST OPERATING VOLTAGE ; MATERIAL TYPE | C12: ˂ = 1 kV; Wood | D12: 8445773 | E12: 12927271.85 | F12: 12508111.65 | G12: 12679646.95 | H12: 13959220.32 | I12: 14625925.05 | J12: 15216352.99
C13: > 1 kV & < = 11 kV; Wood | D13: 15169440 | E13: 22957730.54 | F13: 24043362.5 | G13: 26562081.8 | H13: 34293633.79 | I13: 29665645.82 | J13: 36972818.61
C14: ˃ 11 kV & < = 22 kV; Wood | D14: 11939977 | E14: 15171776.8 | F14: 15508888.78 | G14: 16641458.2 | H14: 18875919.87 | I14: 18158110.62 | J14: 20315491.79
C15: > 22 kV & < = 66 kV; Wood | D15: 4411386 | E15: 5255462.693 | F15: 13206739.8 | G15: 15811640.8 | H15: 9525794.33 | I15: 6580449.523 | J15: 10667282.85
C16: > 66 kV & < = 132 kV; Wood | D16: 511436 | E16: 626219.3097 | F16: 6534632.171 | G16: 901732.8138 | H16: 1789832.127 | I16: 12638386.31 | J16: 1022965.267
C17: > 132 kV; Wood | D17: - | E17: - | F17: - | G17: - | H17: - | I17: - | J17: -
C18: ˂ = 1 kV; Concrete | D18: 51005 | E18: 122668.9504 | F18: 120654.5984 | G18: 122948.7215 | H18: 133040.8285 | I18: 138884.484 | J18: 143917.312
C19: > 1 kV & < = 11 kV; Concrete | D19: 229785 | E19: 474953.6823 | F19: 461669.1326 | G19: 468916.7304 | H19: 513372.8687 | I19: 537475.913 | J19: 557653.0056
C20: ˃ 11 kV & < = 22 kV; Concrete | D20: 256497 | E20: 518429.0957 | F20: 509387.9107 | G20: 518925.5623 | H20: 562095.7708 | I20: 586934.3588 | J20: 608270.2125
C21: > 22 kV & < = 66 kV; Concrete | D21: 127321 | E21: 261865.7606 | F21: 258775.0529 | G21: 264032.7151 | H21: 284390.8959 | I21: 296540.0836 | J21: 307130.6918
C22: > 66 kV & < = 132 kV; Concrete | D22: - | E22: - | F22: - | G22: - | H22: - | I22: - | J22: -
C23: > 132 kV; Concrete | D23: - | E23: - | F23: - | G23: - | H23: - | I23: - | J23: -
C24: ˂ = 1 kV; Steel | D24: 46202 | E24: 174438.8142 | F24: 174645.3362 | G24: 178822.5732 | H24: 190161.9507 | I24: 197644.5563 | J24: 204413.9998
C25: > 1 kV & < = 11 kV; Steel | D25: 26066 | E25: 55848.41801 | F25: 55381.45459 | G25: 56560.56266 | H25: 60713.38331 | I25: 63251.67031 | J25: 65486.78715
C26: ˃ 11 kV & < = 22 kV; Steel | D26: 35899 | E26: 83880.46607 | F26: 83465.38747 | G26: 85321.03295 | H26: 91277.61426 | I26: 95014.33897 | J26: 98334.96773
C27: > 22 kV & < = 66 kV; Steel | D27: 24854 | E27: 43039.98784 | F27: 42933.16614 | G27: 43916.94311 | H27: 46869.29135 | I27: 48757.49202 | J27: 50447.30953
C28: > 66 kV & < = 132 kV; Steel | D28: - | E28: - | F28: - | G28: - | H28: - | I28: - | J28: -
C29: > 132 kV; Steel | D29: - | E29: - | F29: - | G29: - | H29: - | I29: - | J29: -
C30: Other | D30: 389874 | E30: 610215.3847 | F30: 586190.6763 | G30: 593432.1701 | H30: 657369.5339 | I30: 690210.5931 | J30: 717010.6309
B31: POLE TOP STRUCTURES BY: HIGHEST OPERATING VOLTAGE | C31: ˂ = 1 kV | D31: 4360076 | E31: 4841601.866 | F31: 4887227.956 | G31: 4890939.247 | H31: 4953985.413 | I31: 4887151.655 | J31: 4911477.499
C32: > 1 kV & < = 11 kV | D32: 25187007 | E32: 24869930 | F32: 26121953.01 | G32: 26025639.51 | H32: 25767483.01 | I32: 25670017.87 | J32: 25633486.89
C33: ˃ 11 kV & < = 22 kV | D33: 9287294 | E33: 9537089.962 | F33: 9558691.344 | G33: 9611183.526 | H33: 9612544.739 | I33: 9652676.125 | J33: 9565237.988
C34: > 22 kV & < = 66 kV | D34: 5564377 | E34: 5580247.451 | F34: 5742348.868 | G34: 5629593.988 | H34: 5943936.671 | I34: 5832703.746 | J34: 5566525.441
C35: > 66 kV & < = 132 kV | D35: 122927 | E35: 163864.4836 | F35: 177538.6782 | G35: 166419.0481 | H35: 206311.3566 | I35: 287746.1145 | J35: 488482.3959
C36: > 132 kV | D36: - | E36: - | F36: - | G36: - | H36: - | I36: - | J36: -
C37: Other | D37: - | E37: - | F37: - | G37: - | H37: - | I37: - | J37: -
B38: STAKING WOODEN POLES BY: HIGHEST OPERATING VOLTAGE | C38: ˂ = 1 Kv | D38: 695531 | E38: 962361.7571 | F38: 992870.0339 | G38: 1023378.311 | H38: 1053886.587 | I38: 1085293.184 | J38: 1116698.763
C39: > 1 kV & < = 11 kV | D39: 920064 | E39: 1273033.843 | F39: 1313391.08 | G39: 1353748.317 | H39: 1394105.554 | I39: 1435650.038 | J39: 1477194.522
C40: ˃ 11 kV & < = 22 kV | D40: 589008 | E40: 814973.2487 | F40: 840808.8392 | G40: 866644.4297 | H40: 892481.0375 | I40: 919076.5881 | J40: 945672.1386
C41: > 22 kV & < = 66 kV | D41: 32374 | E41: 44794.91572 | F41: 46215.13562 | G41: 47634.33817 | H41: 49054.55807 | I41: 50516.4893 | J41: 51978.42052
C42: > 66 kV & < = 132 kV | D42: - | E42: - | F42: - | G42: - | H42: - | I42: - | J42: -
C43: > 132 kV | D43: 2089 | E43: 2890.289922 | F43: 2981.851377 | G43: 3073.412832 | H43: 3164.974287 | I43: 3259.58779 | J43: 3353.183944
B44: OVERHEAD CONDUCTORS BY: Highest operating voltage; Number of phases (at HV) | C44: ˂ = 1 kV | D44: 1250172 | E44: 2904677.279 | F44: 2290553.237 | G44: 1143703.288 | H44: 1644057.135 | I44: 2301912.962 | J44: 1991057.754
C45: > 1 kV & < = 11 kV | D45: 6259781 | E45: 6547584.047 | F45: 4647880.209 | G45: 1932561.175 | H45: 3115815.959 | I45: 5384942.799 | J45: 3198979.194
C46: ˃ 11 kV & < = 22 kV ; SWER | D46: 22712 | E46: - | F46: - | G46: - | H46: - | I46: - | J46: 5821.273825
C47: ˃ 11 kV & < = 22 kV ; Single-Phase | D47: 544651 | E47: 209110.0851 | F47: 78351.17155 | G47: 27397.22197 | H47: 24509.98409 | I47: 60114.16446 | J47: 431384.6727
C48: ˃ 11 kV & < = 22 kV ; Multiple-Phase | D48: 924800 | E48: 355061.0787 | F48: 133037.7764 | G48: 46520.34047 | H48: 41616.71589 | I48: 102070.6751 | J48: 732476.3779
C49: > 22 kV & < = 66 kV | D49: 21058 | E49: 634919.6826 | F49: 1031055.23 | G49: 5208768.386 | H49: 3833391.219 | I49: 352711.0014 | J49: 1686267.983
C50: > 66 kV & < = 132 kV | D50: 3700 | E50: - | F50: - | G50: - | H50: - | I50: - | J50: -
C51: > 132 kV | D51: - | E51: - | F51: - | G51: - | H51: - | I51: - | J51: -
C52: Other | D52: - | E52: 558007.0432 | F52: 347940.6496 | G52: 190062.2505 | H52: 158893.7139 | I52: 388515.5996 | J52: 528700.2562
B53: UNDERGROUND CABLES BY: Highest operating voltage | C53: ˂ = 1 kV | D53: 2829547 | E53: 5648770.009 | F53: 6451180.009 | G53: 6646983.162 | H53: 6842786.316 | I53: 7038590.487 | J53: 7234393.641
C54: > 1 kV & < = 11 kV | D54: 3410230 | E54: 1951710.744 | F54: 5051563.472 | G54: 5109724.326 | H54: 5167885.179 | I54: 5226046.033 | J54: 5284205.869
C55: > 11 kV & < = 22 kV | D55: 961069 | E55: 92479.10402 | F55: 109187.0348 | G55: 113759.0035 | H55: 118329.9547 | I55: 122901.9234 | J55: 127472.8747
C56: > 22 kV & < = 33 kV | D56: 712934 | E56: 15412.84489 | F56: 18198.34781 | G56: 18959.32523 | H56: 19722.33736 | I56: 20483.31478 | J56: 21245.30956
C57: > 33 kV & < = 66 kV | D57: 1503007 | E57: 0 | F57: - | G57: - | H57: - | I57: - | J57: -
C58: > 66 kV & < = 132 kV | D58: 0 | E58: 0 | F58: - | G58: - | H58: - | I58: - | J58: -
C59: > 132 kV | D59: 0 | E59: 0 | F59: - | G59: - | H59: - | I59: - | J59: -
C60: Other | D60: 0 | E60: 0 | F60: - | G60: - | H60: - | I60: - | J60: -
B61: SERVICE LINES BY: Connection voltage; Customer type; Connection complexity | C61: ˂ = 11 kV ; Residential ; Simple Type | D61: 6544671 | E61: 8803676.605 | F61: 5915371.532 | G61: 5817516.753 | H61: 6168028.245 | I61: 6114287.775 | J61: 6094235.816
C62: ˂ = 11 kV ; Commercial & Industrial ; Simple Type | D62: 377607 | E62: 1244032.26 | F62: 340083.6594 | G62: 530980.1365 | H62: 268698.2799 | I62: 405052.6157 | J62: 501303.0343
C63: ˂ = 11 kV ; Residential ; Complex Type | D63: 0 | E63: - | F63: - | G63: - | H63: - | I63: - | J63: -
C64: ˂ = 11 kV ; Commercial & Industrial ; Complex Type | D64: 0 | E64: - | F64: - | G64: - | H64: - | I64: - | J64: -
C65: ˂ = 11 kV ; Subdivision ; Complex Type | D65: 0 | E65: - | F65: - | G65: - | H65: - | I65: - | J65: -
C66: > 11 kV & < = 22 kV ; Commercial & Industrial | D66: 0 | E66: - | F66: - | G66: - | H66: - | I66: - | J66: -
C67: > 11 kV & < = 22 kV ; Subdivision | D67: 0 | E67: - | F67: - | G67: - | H67: - | I67: - | J67: -
C68: > 22 kV & < = 33 kV ; Commercial & Industrial | D68: 0 | E68: - | F68: - | G68: - | H68: - | I68: - | J68: -
C69: > 22 kV & < = 33 kV ; Subdivision | D69: 0 | E69: - | F69: - | G69: - | H69: - | I69: - | J69: -
C70: > 33 kV & < = 66 kV ; Commercial & Industrial | D70: 0 | E70: - | F70: - | G70: - | H70: - | I70: - | J70: -
C71: > 33 kV & < = 66 kV ; Subdivision | D71: 0 | E71: - | F71: - | G71: - | H71: - | I71: - | J71: -
C72: > 66 kV & < = 132 kV ; Commercial & Industrial | D72: 0 | E72: - | F72: - | G72: - | H72: - | I72: - | J72: -
C73: > 66 kV & < = 132 kV ; Subdivision | D73: 0 | E73: - | F73: - | G73: - | H73: - | I73: - | J73: -
C74: > 132 kV ; Commercial & Industrial | D74: 0 | E74: - | F74: - | G74: - | H74: - | I74: - | J74: -
C75: > 132 kV ; Subdivision | D75: 0 | E75: - | F75: - | G75: - | H75: - | I75: - | J75: -
C76: Other | D76: 0 | E76: - | F76: - | G76: - | H76: - | I76: - | J76: -
B77: TRANSFORMERS BY: Mounting type; Highest operating voltage; Ampere rating; Number of phases (at LV) | C77: Pole Mounted ; < = 22kV ; < = 60 kVA ; Single Phase | D77: 3643064 | E77: 8462780.083 | F77: 6533380.831 | G77: 6926789.881 | H77: 9673877.689 | I77: 6480772.671 | J77: 8604777.657
C78: Pole Mounted ; < = 22kV ; > 60 kVA and < = 600 kVA ; Single Phase | D78: 123737 | E78: 33700.71945 | F78: 33701.7368 | G78: 33701.7368 | H78: 33701.7368 | I78: - | J78: 48700.52044
C79: Pole Mounted ; < = 22kV ; > 600 kVA ; Single Phase | D79: - | E79: - | F79: - | G79: - | H79: - | I79: - | J79: -
C80: Pole Mounted ; < = 22kV ; < = 60 kVA ; Multiple Phase | D80: 2277080 | E80: 31413.71778 | F80: 62827.43557 | G80: 143700.6165 | H80: - | I80: - | J80: 40436.59048
C81: Pole Mounted ; < = 22kV ; > 60 kVA and < = 600 kVA ; Multiple Phase | D81: 4333127 | E81: 6954341.741 | F81: 837531.9564 | G81: 2648832.193 | H81: 3676760.09 | I81: 3594851.247 | J81: 2997452.432
C82: Pole Mounted ; < = 22kV ; > 600 kVA ; Multiple Phase | D82: 73803 | E82: - | F82: - | G82: 23771.38836 | H82: - | I82: - | J82: -
C83: Kiosk Mounted ; < = 22kV ; < = 60 kVA ; Single Phase | D83: 63184 | E83: 9044.237032 | F83: - | G83: - | H83: 36176.94813 | I83: - | J83: -
C84: Kiosk Mounted ; < = 22kV ; > 60 kVA and < = 600 kVA ; Single Phase | D84: - | E84: 855779.137 | F84: - | G84: 689377.3838 | H84: 641834.6071 | I84: 736921.1779 | J84: 1568927.909
C85: Kiosk Mounted ; < = 22kV ; > 600 kVA ; Single Phase | D85: - | E85: - | F85: - | G85: - | H85: - | I85: - | J85: -
C86: Kiosk Mounted ; < = 22kV ; < = 60 kVA ; Multiple Phase | D86: - | E86: - | F86: - | G86: - | H86: - | I86: - | J86: -
C87: Kiosk Mounted ; < = 22kV ; > 60 kVA and < = 600 kVA ; Multiple Phase | D87: 4557656 | E87: - | F87: - | G87: - | H87: - | I87: - | J87: -
C88: Kiosk Mounted ; < = 22kV ; > 600 kVA ; Multiple Phase | D88: 1195755 | E88: 142629.3475 | F88: - | G88: 71315.18242 | H88: 332802.4891 | I88: 23771.38836 | J88: 118857.9591
C89: Ground Outdoor / Indoor Chamber Mounted; ˂ 22 kV ; < = 60 kVA ; Single Phase | D89: - | E89: 9044.237032 | F89: - | G89: - | H89: 18088.47406 | I89: - | J89: -
C90: Ground Outdoor / Indoor Chamber Mounted; ˂ 22 kV ; > 60 kVA and < = 600 kVA ; Single Phase | D90: - | E90: - | F90: - | G90: - | H90: - | I90: - | J90: -
C91: Ground Outdoor / Indoor Chamber Mounted; ˂ 22 kV ; > 600 kVA ; Single Phase | D91: - | E91: 585413.4213 | F91: 136776.5358 | G91: - | H91: 140512.2432 | I91: 140512.2432 | J91: 136776.5358
C92: Ground Outdoor / Indoor Chamber Mounted; ˂ 22 kV ; < = 60 kVA ; Multiple Phase | D92: - | E92: - | F92: - | G92: - | H92: - | I92: - | J92: -
C93: Ground Outdoor / Indoor Chamber Mounted; ˂ 22 kV ; > 60 kVA and < = 600 kVA ; Multiple Phase | D93: 797835 | E93: 315048.723 | F93: 267876.2615 | G93: 271710.6517 | H93: 75000.0223 | I93: 225802.7557 | J93: -
C94: Ground Outdoor / Indoor Chamber Mounted; ˂ 22 kV ; > 600 kVA ; Multiple Phase | D94: 724378 | E94: 631028.3207 | F94: 834167.5817 | G94: 1763421.734 | H94: 237715.9183 | I94: - | J94: 1229036.529
C95: Ground Outdoor / Indoor Chamber Mounted; > = 22 kV & < = 33 kV ; < = 15 MVA | D95: 1972493 | E95: 1739988.106 | F95: 2322835.772 | G95: 834167.5817 | H95: 2039432.722 | I95: 1668335.163 | J95: 905820.5241
C96: Ground Outdoor / Indoor Chamber Mounted; > = 22 kV & < = 33 kV ; > 15 MVA and < = 40 MVA | D96: 316062 | E96: - | F96: - | G96: - | H96: - | I96: - | J96: -
C97: Ground Outdoor / Indoor Chamber Mounted; > = 22 kV & < = 33 kV ; > 40 MVA | D97: - | E97: - | F97: - | G97: - | H97: - | I97: - | J97: -
C98: Ground Outdoor / Indoor Chamber Mounted; > 33 kV & < = 66 kV ; < = 15 MVA | D98: 1162587 | E98: 5304450.106 | F98: 2598753.164 | G98: 2960225.579 | H98: 3581573.819 | I98: 2097182.566 | J98: 3552698.388
C99: Ground Outdoor / Indoor Chamber Mounted; > 33 kV & < = 66 kV ; > 15 MVA and < = 40 MVA | D99: 555539 | E99: 812778.8258 | F99: 622417.4746 | G99: - | H99: - | I99: - | J99: -
C100: Ground Outdoor / Indoor Chamber Mounted; > 33 kV & < = 66 kV ; > 40 MVA | D100: - | E100: - | F100: - | G100: - | H100: - | I100: - | J100: -
C101: Ground Outdoor / Indoor Chamber Mounted; > 66 kV & < = 132 kV ; < = 100 MVA | D101: 682832 | E101: 1176390.727 | F101: - | G101: - | H101: - | I101: 1547488.286 | J101: -
C102: Ground Outdoor / Indoor Chamber Mounted; > 66 kV & < = 132 kV ; > 100 MVA | D102: - | E102: - | F102: - | G102: - | H102: - | I102: - | J102: -
C103: Ground Outdoor / Indoor Chamber Mounted; > 132 kV ; < = 100 MVA | D103: - | E103: - | F103: - | G103: - | H103: - | I103: - | J103: -
C104: Ground Outdoor / Indoor Chamber Mounted; > 132 kV ; > 100 MVA | D104: - | E104: - | F104: - | G104: - | H104: - | I104: - | J104: -
C105: Other | D105: 2877849 | E105: - | F105: 1414036 | G105: 1356274 | H105: 420005 | I105: 754500 | J105: 3444223
B106: SWITCHGEAR BY: Highest operating voltage; Switch function | C106: ˂ = 11 kV ; FUSE | D106: 329642 | E106: 17966.39213 | F106: - | G106: - | H106: - | I106: 6844.727419 | J106: 2215890.975
C107: ˂ = 11 kV ; Switch | D107: 2416268 | E107: 3209476.206 | F107: 2417013.849 | G107: 3291510.182 | H107: 2476692.588 | I107: 3058566.651 | J107: 1958707.057
C108: ˂ = 11 kV ; Circuit Breaker | D108: 8775262 | E108: 13702640.7 | F108: 12239498.83 | G108: 12411330.18 | H108: 11181040.28 | I108: 10785349.31 | J108: 11117376.58
C109: > 11 kV & < = 22 kV ; Switch | D109: 1083273 | E109: 1044388.612 | F109: 1746902.013 | G109: 984708.8562 | H109: 1671021.983 | I109: 1157985.857 | J109: 662774.7118
C110: > 11 kV & < = 22 kV ; Circuit Breaker | D110: 1566772 | E110: 2857558.737 | F110: 770001.3141 | G110: 2326258.135 | H110: 1593474.518 | I110: 427778.1687 | J110: 2227869.248
C111: > 22 kV & < = 33 kV ; Switch | D111: 115033 | E111: 134278.9428 | F111: 313316.1768 | G111: 536926.5443 | H111: 89518.61698 | I111: 134278.9428 | J111: 44008.50456
C112: > 22 kV & < = 33 kV ; Circuit Breaker | D112: 713216 | E112: 386069.8914 | F112: 941112.3782 | G112: 106944.7965 | H112: 1366965.722 | I112: 614930.7996 | J112: 160416.6861
C113: > 33 kV & < = 66 kV ; Switch | D113: 24145 | E113: 40799.78425 | F113: 1792051.984 | G113: 1790681.614 | H113: 14919.43038 | I113: 936226.0485 | J113: 1290440.692
C114: > 33 kV & < = 66 kV ; Circuit Breaker | D114: 523600 | E114: 581778.4316 | F114: 342222.1281 | G114: 902611.8038 | H114: - | I114: 1497224.099 | J114: 1321835.081
C115: > 66 kV & < = 132 kV ; Switch | D115: - | E115: 244795.6534 | F115: - | G115: 285595.4377 | H115: 2583414.585 | I115: - | J115: -
C116: > 66 kV & < = 132 kV ; Circuit Breaker | D116: 15733 | E116: 145444.3536 | F116: - | G116: - | H116: - | I116: - | J116: 106944.7965
C117: > 132 kV ; Switch | D117: - | E117: - | F117: - | G117: - | H117: - | I117: - | J117: -
C118: > 132 kV ; Circuit Breaker | D118: - | E118: - | F118: - | G118: - | H118: - | I118: - | J118: -
C119: Other | D119: - | E119: - | F119: - | G119: - | H119: - | I119: - | J119: -
B120: PUBLIC LIGHTING BY: Asset type ; Lighting obligation | C120: Luminaires ; Major Road
C121: Luminaires ; Minor Road
C122: Brackets ; Major Road
C123: Brackets ; Minor Road
C124: Lamps ; Major Road
C125: Lamps ; Minor Road
C126: Poles / Columns ; Major Road
C127: Poles / Columns ; Minor Road
C128: Other
B129: SCADA, NETWORK CONTROL AND PROTECTION SYSTEMS BY: Function | C129: Field Devices | D129: 2020329 | E129: 1177688.865 | F129: 953104.8941 | G129: 968917.5573 | H129: 930418.0003 | I129: 968917.5573 | J129: 965709.8543
C130: Local Network Wiring Assets | D130: - | E130: - | F130: - | G130: - | H130: - | I130: - | J130: -
C131: Communications Network Assets | D131: 13492547 | E131: 0 | F131: 3301535.144 | G131: 3301535.144 | H131: 3301535.144 | I131: 3301535.144 | J131: 3301535.144
C132: Master Station Assets | D132: - | E132: - | F132: - | G132: - | H132: - | I132: - | J132: -
C133: Communications Site Infrastructure | D133: - | E133: - | F133: - | G133: - | H133: - | I133: - | J133: -
C134: Communications Linear Assets | D134: - | E134: - | F134: - | G134: - | H134: - | I134: - | J134: -
C135: AFLC | D135: 790342 | E135: 779271.4028 | F135: 779271.4028 | G135: 779271.4028 | H135: 779271.4028 | I135: 779271.4028 | J135: 779271.4028
C136: Other | D136: - | E136: - | F136: - | G136: - | H136: - | I136: - | J136: -
B137: OTHER: | C137: Zone Substation Batteries | D137: 576504 | E137: 211354.3581 | F137: 2847859.327 | G137: 441082.0481 | H137: 770546.6135 | I137: 170084.5584 | J137: 1180325.835
C138: OTHER - Zone Substation Protection Relays | D138: 4714101 | E138: 2747940.346 | F138: 2223911.759 | G138: 2260807.973 | H138: 2170974.995 | I138: 2260807.973 | J138: 2253322.315
C139: Other - Frequency Injection Relays | D139: 3291281 | E139: 3781612.199 | F139: 3685175.605 | G139: 3685175.605 | H139: 3685175.605 | I139: 3685175.605 | J139: 3685175.605
C140: Other - Zone Substation Property | D140: 1594070 | E140: 2088255.325 | F140: 2101869.496 | G140: 2115483.666 | H140: 2129098.855 | I140: 2142713.026 | J140: 2156328.214
C141: Other - Zone Substation Current transformers | D141: 439119 | E141: 130125.1048 | F141: 1952994.639 | G141: 1637546.098 | H141: 1704302.537 | I141: 487418.2483 | J141: 1053964.923
C142: Other - Zone Substation Voltage transformers | D142: 1322673 | E142: 207317.5153 | F142: 922786.8617 | G142: 2173523.455 | H142: 1702908.769 | I142: 870737.2267 | J142: 4217122.224
C143: Other - Zone Substation Surge Diverters | D143: 0 | E143: 116951.4462 | F143: 113454.816 | G143: 113454.816 | H143: 115552.5906 | I143: 117651.3826 | J143: 113454.816
C144: SAPS | D144: 1819650 | E144: 1903767.132 | F144: 5069134.115 | G144: 8311655.868 | H144: 9727110.501 | I144: 14001271.44 | J144: 15095355.54
C145: Reactive Plant | D145: - | E145: 2138890.844 | F145: 716528.4072 | G145: 1465140.966 | H145: 716528.4072 | I145: 0 | J145: 1208473.861
C146: Other - Master Subtractive metering | D146: 0
C147: Disaster Recovery
B181: ASSET REPLACEMENTS
D182: VOLUMES (0's)
B183: ASSET GROUP | C183: ASSET CATEGORY | D183: =CRCP_y4 -> 2022-23 | E183: =CRCP_y5 -> 2023-24 | F183: =FRCP_y1 -> 2024-25 | G183: =FRCP_y2 -> 2025-26 | H183: =FRCP_y3 -> 2026-27 | I183: =FRCP_y4 -> 2027-28 | J183: =FRCP_y5 -> 2028-29
B184: POLES BY: HIGHEST OPERATING VOLTAGE ; MATERIAL TYPE | C184: Staking of a wooden pole
C185: ˂ = 1 kV; Wood | D185: 1633 | E185: 1923.555485 | F185: 1972.458247 | G185: 2018.931981 | H185: 2067.62023 | I185: 2113.664937 | J185: 2165.49513
C186: > 1 kV & < = 11 kV; Wood | D186: 2667 | E186: 3526.548406 | F186: 3898.335036 | G186: 4319.313801 | H186: 5225.696498 | I186: 4431.867396 | J186: 5469.634361
C187: ˃ 11 kV & < = 22 kV; Wood | D187: 2099 | E187: 2543.204481 | F187: 2738.228378 | G187: 2941.662036 | H187: 3110.390814 | I187: 2944.234233 | J187: 3231.782532
C188: > 22 kV & < = 66 kV; Wood | D188: 548 | E188: 460.1761669 | F188: 1150.735537 | G188: 1379.189313 | H188: 828.6958859 | I188: 559.0440683 | J188: 898.3394539
C189: > 66 kV & < = 132 kV; Wood | D189: 43 | E189: 49.4649529 | F189: 545.5666613 | G189: 75.65735271 | H189: 145.7535526 | I189: 1049.833227 | J189: 78.90739262
C190: > 132 kV; Wood | D190: 0 | E190: 0 | F190: 0 | G190: 0 | H190: 0 | I190: 0 | J190: 0
C191: ˂ = 1 kV; Concrete | D191: 8 | E191: 17.16993986 | F191: 17.44669754 | G191: 17.72068764 | H191: 17.99606153 | I191: 18.26728405 | J191: 19.53712278
C192: > 1 kV & < = 11 kV; Concrete | D192: 32 | E192: 55.53898558 | F192: 56.66730534 | G192: 58.7843419 | H192: 59.90702006 | I192: 61.01277343 | J192: 63.1128852
C193: ˃ 11 kV & < = 22 kV; Concrete | D193: 35 | E193: 61.59843525 | F193: 63.60434297 | G193: 65.6001916 | H193: 66.60106977 | I193: 68.58685933 | J193: 70.56761935
C194: > 22 kV & < = 66 kV; Concrete | D194: 10 | E194: 19.59955293 | F194: 19.88695513 | G194: 21.17148331 | H194: 21.45744851 | I194: 21.73910267 | J194: 23.01931981
C195: > 66 kV & < = 132 kV; Concrete | D195: 0 | E195: 2 | F195: 2 | G195: 2 | H195: 2 | I195: 2 | J195: 2
C196: > 132 kV; Concrete | D196: 0 | E196: 0 | F196: 0 | G196: 0 | H196: 0 | I196: 0 | J196: 0
C197: ˂ = 1 kV; Steel | D197: 6 | E197: 23.88110064 | F197: 24.12592474 | G197: 24.3683006 | H197: 25.61190058 | I197: 25.8518282 | J197: 27.09053169
C198: > 1 kV & < = 11 kV; Steel | D198: 3 | E198: 6.436904572 | F198: 7.52206078 | G198: 7.606365427 | H198: 7.691095854 | I198: 7.774548938 | J198: 8.857576241
C199: ˃ 11 kV & < = 22 kV; Steel | D199: 4 | E199: 9.940550322 | F199: 11.06296237 | G199: 11.1841503 | H199: 12.30595029 | I199: 12.4259141 | J199: 12.54526585
C200: > 22 kV & < = 66 kV; Steel | D200: 0 | E200: 3.50364575 | F200: 3.540901591 | G200: 3.577784874 | H200: 3.614854436 | I200: 4.65136516 | J200: 4.687689606
C201: > 66 kV & < = 132 kV; Steel | D201: 0 | E201: 1 | F201: 1 | G201: 1 | H201: 1 | I201: 1 | J201: 1
C202: > 132 kV; Steel | D202: 0 | E202: 0 | F202: 0 | G202: 0 | H202: 0 | I202: 0 | J202: 0
C203: Other | D203: 50 | E203: 98.38139337 | F203: 100.8189898 | G203: 103.2322103 | H203: 105.6576188 | I203: 108.0464634 | J203: 110.4231199
B204: POLE TOP STRUCTURES BY: HIGHEST OPERATING VOLTAGE | C204: ˂ = 1 kV | D204: 2705 | E204: 3501.603747 | F204: 3527.763322 | G204: 3529.460562 | H204: 3561.858779 | I204: 3523.236869 | J204: 3532.43152
C205: > 1 kV & < = 11 kV | D205: 13517 | E205: 14221.25654 | F205: 14563.31333 | G205: 14507.29398 | H205: 14365.62171 | I205: 14307.48878 | J205: 14279.47198
C206: ˃ 11 kV & < = 22 kV | D206: 4582 | E206: 5118.98786 | F206: 5134.623291 | G206: 5166.655106 | H206: 5172.845127 | I206: 5198.60608 | J206: 5158.176143
C207: > 22 kV & < = 66 kV | D207: 1320 | E207: 1397.362308 | F207: 1480.477487 | G207: 1419.763322 | H207: 1587.876811 | I207: 1533.932288 | J207: 1400.272754
C208: > 66 kV & < = 132 kV | D208: 21 | E208: 48.78954259 | F208: 55.82257162 | G208: 49.827035 | H208: 70.79757668 | I208: 114.735982 | J208: 220.647607
C209: > 132 kV | D209: - | E209: 0 | F209: 0 | G209: 0 | H209: 0 | I209: 0 | J209: 0
C210: Other | D210: - | E210: 0 | F210: 0 | G210: 0 | H210: 0 | I210: 0 | J210: 0
B211: STAKING WOODEN POLES BY: HIGHEST OPERATING VOLTAGE | C211: ˂ = 1 Kv | D211: 481 | E211: 666 | F211: 687 | G211: 708 | H211: 729 | I211: 751 | J211: 773
C212: > 1 kV & < = 11 kV | D212: 637 | E212: 881 | F212: 909 | G212: 937 | H212: 966 | I212: 995 | J212: 1024
C213: ˃ 11 kV & < = 22 kV | D213: 407 | E213: 564 | F213: 582 | G213: 599 | H213: 617 | I213: 635 | J213: 653
C214: > 22 kV & < = 66 kV | D214: 22 | E214: 31 | F214: 31 | G214: 32 | H214: 33 | I214: 34 | J214: 35
C215: > 66 kV & < = 132 kV | D215: - | E215: 0 | F215: 0 | G215: 0 | H215: 0 | I215: 0 | J215: 0
C216: > 132 kV | D216: 3 | E216: 2 | F216: 3 | G216: 4 | H216: 5 | I216: 6 | J216: 7
B217: OVERHEAD CONDUCTORS BY: Highest operating voltage; Number of phases (at HV) | C217: ˂ = 1 kV | D217: 27 | E217: 63.03526223 | F217: 49.70779913 | G217: 24.81979956 | H217: 35.67795893 | I217: 49.95491622 | J217: 43.20848162
C218: > 1 kV & < = 11 kV | D218: 136 | E218: 142.0909488 | F218: 100.8650073 | G218: 41.93908038 | H218: 67.61726526 | I218: 116.8596149 | J218: 69.42196463
C219: ˃ 11 kV & < = 22 kV ; SWER | D219: 0 | E219: 0 | F219: 0 | G219: 0 | H219: 0 | I219: 0 | J219: 0.12632763
C220: ˃ 11 kV & < = 22 kV ; Single-Phase | D220: 12 | E220: 1.700311897 | F220: 0.5945549891 | G220: 0.5318942122 | H220: 1.304539462 | I220: 9.361570207 | J220: 25.25721261
C221: ˃ 11 kV & < = 22 kV ; Multiple-Phase | D221: 20 | E221: 2.887074422 | F221: 1.009535077 | G221: 0.9031391108 | H221: 2.21506567 | I221: 15.8956424 | J221: 0
C222: > 22 kV & < = 66 kV | D222: 0 | E222: 3.957936457 | F222: 6.427352045 | G222: 32.47020757 | H222: 23.89643752 | I222: 2.19871275 | J222: 10.51178841
C223: > 66 kV & < = 132 kV | D223: 0 | E223: 0 | F223: 0 | G223: 0 | H223: 0 | I223: 0 | J223: 0
C224: > 132 kV | D224: - | E224: 0 | F224: 0 | G224: 0 | H224: 0 | I224: 0 | J224: 0
C225: Other | D225: - | E225: 12.109369 | F225: 7.550698104 | G225: 4.12452769 | H225: 3.448241574 | I225: 8.431212114 | J225: 11.47336557
B226: UNDERGROUND CABLES BY: Highest operating voltage | C226: ˂ = 1 kV | D226: 5.357078947 | E226: 2.54 | F226: 2.65 | G226: 2.76 | H226: 2.87 | I226: 2.99 | J226: 3.1
C227: > 1 kV & < = 11 kV | D227: 5 | E227: 2.06 | F227: 10.15 | G227: 10.24 | H227: 10.33 | I227: 10.42 | J227: 10.51
C228: > 11 kV & < = 22 kV | D228: 0 | E228: 0.16 | F228: 0.17 | G228: 0.18 | H228: 0.18 | I228: 0.19 | J228: 0.2
C229: > 22 kV & < = 33 kV | D229: 0 | E229: 0.03 | F229: 0.03 | G229: 0.03 | H229: 0.03 | I229: 0.03 | J229: 0.03
C230: > 33 kV & < = 66 kV
C231: > 66 kV & < = 132 kV | F231: 0 | G231: 0 | H231: 0 | I231: 0 | J231: 0
C232: > 132 kV | F232: 0 | G232: 0 | H232: 0 | I232: 0 | J232: 0
C233: Other | F233: 0 | G233: 0 | H233: 0 | I233: 0 | J233: 0
B234: SERVICE LINES BY: Connection voltage; Customer type; Connection complexity | C234: ˂ = 11 kV ; Residential ; Simple Type | D234: 7067 | E234: 10976 | F234: 7375 | G234: 7253 | H234: 7690 | I234: 7623 | J234: 7598
C235: ˂ = 11 kV ; Commercial & Industrial ; Simple Type | D235: 611 | E235: 1551 | F235: 424 | G235: 662 | H235: 335 | I235: 505 | J235: 625
... 229 more rows

Sheet 2.3 Augex (b)
B1: =INDEX(dms_Worksheet_List,MATCH(dms_Model,dms_Model_List)) -> REGULATORY REPORTING STATEMENT
B2: =INDEX(dms_TradingNameFull_List,MATCH(dms_TradingName,dms_TradingName_List)) -> Essential Energy
B3: =CONCATENATE("REGULATORY PERIOD FROM ", FRCP_y1," TO ",dms_MultiYear_FinalYear_Result) -> REGULATORY PERIOD FROM 2024-25 TO 2028-29
B4: 2.3 AUGEX PROJECT DATA
B6: There are FOUR tables on this worksheet. These tables have been 'grouped' (and sub-grouped) for easy navigation. See the Instructions sheet on how to group or ungroup tables.
B8: NOTE: DNSP must provide expenditure information on an 'as incurred' basis.
B9: 2.3.3 - AUGEX DATA - HV/LV FEEDERS AND DISTRIBUTION SUBSTATIONS
D10: VOLUMES (0's)
B11: PROJECT TYPE | C11: UNITS | D11: =CRCP_y4 -> 2022-23 | E11: =CRCP_y5 -> 2023-24 | F11: =FRCP_y1 -> 2024-25 | G11: =FRCP_y2 -> 2025-26 | H11: =FRCP_y3 -> 2026-27 | I11: =FRCP_y4 -> 2027-28 | J11: =FRCP_y5 -> 2028-29
B12: DESCRIPTOR METRICS - UNITS ADDED
B13: HV Feeder Augmentations - Overhead Lines | C13: Circuit Line Length in KM | D13: 8.049731427 | E13: 4.600009568 | F13: 4.434339433 | G13: 4.434339433 | H13: 3.753491782 | I13: 4.361186872 | J13: 4.361186872
B14: HV Feeder Augmentations - Underground Cables | C14: Circuit Line Length in KM | D14: 1.088737318 | E14: 0.5954765979 | F14: 0.842876764 | G14: 0.842876764 | H14: 0.5291220862 | I14: 0.5291220862 | J14: 0.5291220862
B15: LV Feeder Augmentations - Overhead Lines | C15: Circuit Line Length in KM | D15: 0 | E15: 0 | F15: 0 | G15: 0 | H15: 0 | I15: 0 | J15: 0
B16: LV Feeder Augmentations - Underground Cables | C16: Circuit Line Length in KM | D16: 0 | E16: 0 | F16: 0 | G16: 0 | H16: 0 | I16: 0 | J16: 0
B17: Distribution Substation Augmentations - Pole Mounted | C17: Number | D17: 99.36737131 | E17: 66.67446767 | F17: 38.30004016 | G17: 39.21908462 | H17: 38.97720773 | I17: 55.65281915 | J17: 56.24812797
B18: Distribution Substation Augmentations - Ground Mounted | C18: Number | D18: 0 | E18: 0 | F18: 0 | G18: 0 | H18: 0 | I18: 0 | J18: 0
B19: Distribution Substation Augmentations - Indoor | C19: Number | D19: 0 | E19: 0 | F19: 0 | G19: 0 | H19: 0 | I19: 0 | J19: 0
B20: DESCRIPTOR METRICS - UNITS UPGRADED
B21: HV Feeder Augmentations - Overhead Lines | C21: Circuit Line Length in KM | D21: 79.60483011 | E21: 49.9532696 | F21: 123.9734069 | G21: 123.9734069 | H21: 113.0820408 | I21: 150.8578868 | J21: 150.8578868
B22: HV Feeder Augmentations - Underground Cables | C22: Circuit Line Length in KM | D22: 0.3810580614 | E22: 0.2084168093 | F22: 0.2950068674 | G22: 0.2950068674 | H22: 0.1851927302 | I22: 0.1851927302 | J22: 0.1851927302
B23: LV Feeder Augmentations - Overhead Lines | C23: Circuit Line Length in KM | D23: 16.998017 | E23: 9.296936151 | F23: 4.302305453 | G23: 4.302305453 | H23: 4.302305453 | I23: 5.920293629 | J23: 5.920293629
B24: LV Feeder Augmentations - Underground Cables | C24: Circuit Line Length in KM | D24: 0 | E24: 0 | F24: 0 | G24: 0 | H24: 0 | I24: 0 | J24: 0
B25: Distribution Substation Augmentations - Pole Mounted | C25: Number | D25: 209.5701433 | E25: 167.0105516 | F25: 130.9020472 | G25: 134.8080785 | H25: 133.7800774 | I25: 204.6531 | J25: 207.1832222
B26: Distribution Substation Augmentations - Ground Mounted | C26: Number | D26: 4.150418411 | E26: 2.935281128 | F26: 1.80483926 | G26: 1.854439656 | H26: 1.841385675 | I26: 2.741360565 | J26: 2.773489101
B27: Distribution Substation Augmentations - Indoor | C27: Number | D27: 0 | E27: 0 | F27: 0 | G27: 0 | H27: 0 | I27: 0 | J27: 0
B29: COST METRICS
D30: =CONCATENATE("TOTAL DIRECT EXPENDITURE ($0's, real ", dms_DollarReal,")") -> TOTAL DIRECT EXPENDITURE ($0's, real June 2024)
B31: PROJECT TYPE | D31: =CRCP_y4 -> 2022-23 | E31: =CRCP_y5 -> 2023-24 | F31: =FRCP_y1 -> 2024-25 | G31: =FRCP_y2 -> 2025-26 | H31: =FRCP_y3 -> 2026-27 | I31: =FRCP_y4 -> 2027-28 | J31: =FRCP_y5 -> 2028-29
B32: HV Feeder Augmentations - Overhead Lines | D32: 5467644.572 | E32: 3280393.246 | F32: 7615891.772 | G32: 7615891.772 | H32: 6781401.765 | I32: 9076199.84 | J32: 9076199.84
B33: HV Feeder Augmentations - Underground Cables | D33: 757289.4115 | E33: 414193.6855 | F33: 586276.9998 | G33: 586276.9998 | H33: 368039.6975 | I33: 368039.6975 | J33: 368039.6975
B34: HV Feeder Non-Material Projects
B35: LV Feeder Augmentations - Overhead Lines | D35: 8346058.642 | E35: 5102541.36 | F35: 5334920.583 | G35: 5334920.583 | H35: 4549689.578 | I35: 4936035.493 | J35: 4936035.493
B36: LV Feeder Augmentations - Underground Cables
B37: LV Feeder Non-Material Projects
B38: Distribution Substation Augmentations - Pole Mounted | D38: 5350586.608 | E38: 2926462.661 | F38: 1107440.701 | G38: 1107440.701 | H38: 1107440.701 | I38: 1376057.904 | J38: 1376057.904
B39: Distribution Substation Augmentations - Ground Mounted | D39: 328806.8071 | E39: 179838.383 | F39: 329392.664 | G39: 329392.664 | H39: 329392.664 | I39: 507998.0749 | J39: 507998.0749
B40: Distribution Substation Augmentations - Indoor | D40: 161315.0463 | E40: 88230.03796 | F40: 414649.5473 | G40: 414649.5473 | H40: 414649.5473 | I40: 653307.7115 | J40: 653307.7115
B44: 2.3.4 - AUGEX - TOTAL EXPENDITURE
D45: =CONCATENATE("TOTAL DIRECT EXPENDITURE ($0's, real ", dms_DollarReal,")") -> TOTAL DIRECT EXPENDITURE ($0's, real June 2024)
D46: =CRCP_y4 -> 2022-23 | E46: =CRCP_y5 -> 2023-24 | F46: =FRCP_y1 -> 2024-25 | G46: =FRCP_y2 -> 2025-26 | H46: =FRCP_y3 -> 2026-27 | I46: =FRCP_y4 -> 2027-28 | J46: =FRCP_y5 -> 2028-29
B47: Subtransmission Substations, Switching Stations, Zone Substations | D47: 1261848.082 | E47: 5995515.134 | F47: 2578247.08 | G47: 1698976.899 | H47: 2578247.08 | I47: 2578247.08 | J47: 82254.30729
B48: Subtransmission Lines | D48: 2223189.87 | E48: 525798.5812 | F48: 774325.0307 | G48: 1908867.2 | H48: 774325.0307 | I48: 1228141.899 | J48: 4177951.539
B49: HV Feeders | D49: 6224933.984 | E49: 3694586.931 | F49: 8202168.772 | G49: 8202168.772 | H49: 7149441.462 | I49: 9444239.537 | J49: 9444239.537
B50: HV Feeders - Land Purchases and Easements
B51: Distribution Substations | D51: 5840708.461 | E51: 3194531.082 | F51: 1851482.912 | G51: 1851482.912 | H51: 1851482.912 | I51: 2537363.69 | J51: 2537363.69
B52: Distribution Substations - Land Purchases and Easements
B53: LV Feeders | D53: 8346058.642 | E53: 5102541.36 | F53: 5334920.583 | G53: 5334920.583 | H53: 4549689.578 | I53: 4936035.493 | J53: 4936035.493
B54: LV Feeders - Land Purchases and Easements
B55: Other Assets | D55: 6404930.261 | E55: 2502483.272 | F55: 10576568.44 | G55: 9442026.266 | H55: 12039968.83 | I55: 8455451.591 | J55: 10724535.93
B59: 2.3.5 - AUGEX - BY DRIVER
D60: =CONCATENATE("TOTAL DIRECT EXPENDITURE ($0's, real ", dms_DollarReal,")") -> TOTAL DIRECT EXPENDITURE ($0's, real June 2024)
D61: =CRCP_y4 -> 2022-23 | E61: =CRCP_y5 -> 2023-24 | F61: =FRCP_y1 -> 2024-25 | G61: =FRCP_y2 -> 2025-26 | H61: =FRCP_y3 -> 2026-27 | I61: =FRCP_y4 -> 2027-28 | J61: =FRCP_y5 -> 2028-29
B62: "Greenfield" driven augex (network expansion capex) | D62: 7960740.449 | E62: 4482458.342 | F62: 3285182.101 | G62: 3285182.101 | H62: 2522764.649 | I62: 2921268.918 | J62: 2921268.918
B63: Reinforcement driven augex (augmentation of the existing network) | D63: 22340928.85 | E63: 16532998.02 | F63: 26032530.71 | G63: 25153260.53 | H63: 26420390.25 | I63: 26258210.37 | J63: 28981111.58
B67: 2.3.6 - AUGEX - GREENFIELDS DRIVEN
D68: =CONCATENATE("TOTAL DIRECT EXPENDITURE ($0's, real ", dms_DollarReal,")") -> TOTAL DIRECT EXPENDITURE ($0's, real June 2024)
D69: =CRCP_y4 -> 2022-23 | E69: =CRCP_y5 -> 2023-24 | F69: =FRCP_y1 -> 2024-25 | G69: =FRCP_y2 -> 2025-26 | H69: =FRCP_y3 -> 2026-27 | I69: =FRCP_y4 -> 2027-28 | J69: =FRCP_y5 -> 2028-29
B70: Subtransmission Substations, Switching Stations, Zone Substations | D70: 1261848.082 | E70: 792122.2736
B71: Subtransmission Lines
B72: HV Feeders | D72: 1969035.747 | E72: 1085848.169 | F72: 1717264.213 | G72: 1717264.213 | H72: 1280574.399 | I72: 1552175.262 | J72: 1552175.262
B73: HV Feeders - Land Purchases and Easements
B74: Distribution Substations | D74: 2039399.218 | E74: 1115433.896 | F74: 424995.3791 | G74: 424995.3791 | H74: 424995.3791 | I74: 506172.8094 | J74: 506172.8094
B75: Distribution Substations - Land Purchases and Easements
B76: LV Feeders | D76: 2690457.402 | E76: 1489054.004 | F76: 1142922.509 | G76: 1142922.509 | H76: 817194.8702 | I76: 862920.8471 | J76: 862920.8471
B77: LV Feeders - Land Purchases and Easements
B78: Other Assets

Sheet 2.5 Connections
B1: =INDEX(dms_Worksheet_List,MATCH(dms_Model,dms_Model_List)) -> REGULATORY REPORTING STATEMENT
B2: =INDEX(dms_TradingNameFull_List,MATCH(dms_TradingName,dms_TradingName_List)) -> Essential Energy
B3: =CONCATENATE("REGULATORY PERIOD FROM ", FRCP_y1," TO ",dms_MultiYear_FinalYear_Result) -> REGULATORY PERIOD FROM 2024-25 TO 2028-29
B4: 2.5 CONNECTIONS
B6: There are THREE tables on this worksheet - each has been 'grouped' (and sub-grouped) for easy navigation. See the Instructions sheet on how to group or ungroup tables.
B8: 2.5.1 - DESCRIPTOR METRICS
B9: VOLUMES AND EXPENDITURE - ALL
B10: CONNECTION SUBCATEGORY | C10: DESCRIPTOR METRIC | D10: Unit of Measure | E10: =CONCATENATE("VOLUMES and EXPENDITURE (0's, real ", dms_DollarReal, ")") -> VOLUMES and EXPENDITURE (0's, real June 2024)
E11: =CRCP_y4 -> 2022-23 | F11: =CRCP_y5 -> 2023-24 | G11: =FRCP_y1 -> 2024-25 | H11: =FRCP_y2 -> 2025-26 | I11: =FRCP_y3 -> 2026-27 | J11: =FRCP_y4 -> 2027-28 | K11: =FRCP_y5 -> 2028-29
B12: RESIDENTIAL | C12: Underground connections | D12: 0's | E12: 4278 | F12: 3873.285592 | G12: 3873.236085 | H12: 3887.27246 | I12: 3893.217213 | J12: 3896.008862 | K12: 3896.0054
C13: Overhead connections | D13: 0's | E13: 2575 | F13: 2331.395605 | G13: 2331.365806 | H13: 2339.814536 | I13: 2343.392783 | J13: 2345.073123 | K13: 2345.071039
C14: Distribution substations installed | D14: MVA added
C15: Distribution substations installed | D15: 0's
C16: Distribution substations installed | D16: total spend $0s | E16: 647074.5332 | F16: 518389.6926 | G16: 1038746.023 | H16: 1038746.023 | I16: 1038746.023 | J16: 1038746.023 | K16: 1038746.023
C17: Augmentation HV | D17: net circuit KM added | E17: 1 | F17: 1 | G17: 1 | H17: 1 | I17: 1 | J17: 1 | K17: 1
C18: Augmentation HV | D18: total spend $0s | E18: 413046.4219 | F18: 330903.1599 | G18: 4254533.136 | H18: 4254533.136 | I18: 4254533.136 | J18: 4254533.136 | K18: 4254533.136
C19: Augmentation LV | D19: net circuit KM added
C20: Augmentation LV | D20: total spend $0s | E20: 872342.8924 | F20: 698858.5405 | G20: 1758540.363 | H20: 1758540.363 | I20: 1758540.363 | J20: 1758540.363 | K20: 1758540.363
C21: Mean days to connect residential customer with LV single phase connection | D21: 0's
C22: Volume of GSL breaches for residential customers | D22: 0's
C23: Volume of customer complaints relating to connection services | D23: 0's
C24: GSL payments | D24: $0's
B25: COMMERCIAL/INDUSTRIAL | C25: Underground connections | D25: 0's | E25: 384 | F25: 347.672199 | G25: 347.6677552 | H25: 348.9276822 | I25: 349.4612926 | J25: 349.7118755 | K25: 349.7115647
C26: Overhead connections | D26: 0's | E26: 592.3333333 | F26: 536.296439 | G26: 536.296439 | H26: 536.2895841 | I26: 538.2330654 | J26: 539.056178 | K26: 539.4427107
C27: Distribution substations installed | D27: MVA added | E27: 0.03 | F27: 0.03 | G27: 0.03 | H27: 0.03 | I27: 0.03 | J27: 0.03 | K27: 0.03
C28: Distribution substations installed | D28: 0's | E28: 1 | F28: 1 | G28: 1 | H28: 1 | I28: 1 | J28: 1 | K28: 1
C29: Distribution substations installed | D29: total spend $0s | E29: 183247.6025 | F29: 146804.8323 | G29: 322704.5805 | H29: 322704.5805 | I29: 322704.5805 | J29: 322704.5805 | K29: 322704.5805
C30: Augmentation HV | D30: net circuit KM added | E30: 0 | F30: 1 | G30: 0 | H30: 0 | I30: 0 | J30: 0 | K30: 0
C31: Augmentation HV | D31: total spend $0s | E31: 92923.22975 | F31: 74443.42504 | G31: 4254533.136 | H31: 4254533.136 | I31: 4254533.136 | J31: 4254533.136 | K31: 4254533.136
C32: Augmentation LV | D32: net circuit KM added | E32: 0 | F32: 1 | G32: 0 | H32: 0 | I32: 0 | J32: 0 | K32: 0
C33: Augmentation LV | D33: total spend $0s | E33: 223182.7481 | F33: 178798.0059 | G33: 1758540.363 | H33: 1758540.363 | I33: 1758540.363 | J33: 1758540.363 | K33: 1758540.363
B34: SUBDIVISION | C34: Underground connections | D34: 0's
C35: Overhead connections | D35: 0's
C36: Distribution substations installed | D36: MVA added
C37: Distribution substations installed | D37: 0's
C38: Distribution substations installed | D38: total spend $0s
C39: Augmentation HV | D39: net circuit KM added
C40: Augmentation HV | D40: total spend $0s
C41: Augmentation LV | D41: net circuit KM added
C42: Augmentation LV | D42: total spend $0s
C43: Cost per lot | D43: $0's
B44: EMBEDDED GENERATION | C44: Underground connections | D44: 0's | E44: 8137 | F44: 8137 | G44: 8137 | H44: 8137 | I44: 8137 | J44: 8137 | K44: 8137
C45: Overhead connections | D45: 0's | E45: 16759 | F45: 16759 | G45: 16759 | H45: 16759 | I45: 16759 | J45: 16759 | K45: 16759
C46: Distribution substations installed | D46: MVA added
C47: Distribution substations installed | D47: 0's
C48: Distribution substations installed | D48: total spend $0's
C49: Augmentation HV | D49: net circuit KM added
C50: Augmentation HV | D50: total spend $0s
C51: Augmentation LV | D51: net circuit KM added
C52: Augmentation LV | D52: total spend $0s
B54: VOLUMES AND EXPENDITURE - STANDARD CONTROL SERVICES
B55: CONNECTION SUBCATEGORY | C55: DESCRIPTOR METRIC | D55: Unit of Measure | E55: =CONCATENATE("VOLUMES and EXPENDITURE (0's, real ", dms_DollarReal, ")") -> VOLUMES and EXPENDITURE (0's, real June 2024)
E56: =CRCP_y4 -> 2022-23 | F56: =CRCP_y5 -> 2023-24 | G56: =FRCP_y1 -> 2024-25 | H56: =FRCP_y2 -> 2025-26 | I56: =FRCP_y3 -> 2026-27 | J56: =FRCP_y4 -> 2027-28 | K56: =FRCP_y5 -> 2028-29
B57: RESIDENTIAL | C57: Underground connections | D57: 0's | E57: 4278 | F57: 3873.285592 | G57: 3873.236085 | H57: 3887.27246 | I57: 3893.217213 | J57: 3896.008862 | K57: 3896.0054
C58: Overhead connections | D58: 0's | E58: 2575 | F58: 2331.395605 | G58: 2331.365806 | H58: 2339.814536 | I58: 2343.392783 | J58: 2345.073123 | K58: 2345.071039
C59: Distribution substations installed | D59: MVA added | E59: 0 | F59: 0 | G59: 0 | H59: 0 | I59: 0 | J59: 0 | K59: 0
C60: Distribution substations installed | D60: 0's | E60: 0 | F60: 0 | G60: 0 | H60: 0 | I60: 0 | J60: 0 | K60: 0
C61: Distribution substations installed | D61: total spend $0s | E61: 647074.5332 | F61: 518389.6926 | G61: 1038746.023 | H61: 1038746.023 | I61: 1038746.023 | J61: 1038746.023 | K61: 1038746.023
C62: Augmentation HV | D62: net circuit KM added | E62: 1 | F62: 1 | G62: 1 | H62: 1 | I62: 1 | J62: 1 | K62: 1
C63: Augmentation HV | D63: total spend $0s | E63: 413046.4219 | F63: 330903.1599 | G63: 4254533.136 | H63: 4254533.136 | I63: 4254533.136 | J63: 4254533.136 | K63: 4254533.136
C64: Augmentation LV | D64: net circuit KM added | E64: 0 | F64: 0 | G64: 0 | H64: 0 | I64: 0 | J64: 0 | K64: 0
C65: Augmentation LV | D65: total spend $0s | E65: 872342.8924 | F65: 698858.5405 | G65: 1758540.363 | H65: 1758540.363 | I65: 1758540.363 | J65: 1758540.363 | K65: 1758540.363
C66: Mean days to connect residential customer with LV single phase connection | D66: 0's | E66: 0 | F66: 0 | G66: 0 | H66: 0 | I66: 0 | J66: 0 | K66: 0
C67: Volume of GSL breaches for residential customers | D67: 0's | E67: 0 | F67: 0 | G67: 0 | H67: 0 | I67: 0 | J67: 0 | K67: 0
C68: Volume of customer complaints relating to connection services | D68: 0's | E68: 0 | F68: 0 | G68: 0 | H68: 0 | I68: 0 | J68: 0 | K68: 0
C69: GSL payments | D69: $0's | E69: 0 | F69: 0 | G69: 0 | H69: 0 | I69: 0 | J69: 0 | K69: 0
B70: COMMERCIAL/INDUSTRIAL | C70: Underground connections | D70: 0's | E70: 384 | F70: 347.672199 | G70: 347.6677552 | H70: 348.9276822 | I70: 349.4612926 | J70: 349.7118755 | K70: 349.7115647
C71: Overhead connections | D71: 0's | E71: 592.3333333 | F71: 536.296439 | G71: 536.296439 | H71: 536.2895841 | I71: 538.2330654 | J71: 539.056178 | K71: 539.4427107
C72: Distribution substations installed | D72: MVA added | E72: 0.03 | F72: 0.03 | G72: 0.03 | H72: 0.03 | I72: 0.03 | J72: 0.03 | K72: 0.03
C73: Distribution substations installed | D73: 0's | E73: 1 | F73: 1 | G73: 1 | H73: 1 | I73: 1 | J73: 1 | K73: 1
C74: Distribution substations installed | D74: total spend $0s | E74: 183247.6025 | F74: 146804.8323 | G74: 322704.5805 | H74: 322704.5805 | I74: 322704.5805 | J74: 322704.5805 | K74: 322704.5805
C75: Augmentation HV | D75: net circuit KM added | E75: 0 | F75: 1 | G75: 0 | H75: 0 | I75: 0 | J75: 0 | K75: 0
C76: Augmentation HV | D76: total spend $0s | E76: 92923.22975 | F76: 74443.42504 | G76: 4254533.136 | H76: 4254533.136 | I76: 4254533.136 | J76: 4254533.136 | K76: 4254533.136
C77: Augmentation LV | D77: net circuit KM added | E77: 0 | F77: 1 | G77: 0 | H77: 0 | I77: 0 | J77: 0 | K77: 0
C78: Augmentation LV | D78: total spend $0s | E78: 223182.7481 | F78: 178798.0059 | G78: 1758540.363 | H78: 1758540.363 | I78: 1758540.363 | J78: 1758540.363 | K78: 1758540.363
B79: SUBDIVISION | C79: Underground connections | D79: 0's | E79: 0 | F79: 0 | G79: 0 | H79: 0 | I79: 0 | J79: 0 | K79: 0
C80: Overhead connections | D80: 0's | E80: 0 | F80: 0 | G80: 0 | H80: 0 | I80: 0 | J80: 0 | K80: 0
C81: Distribution substations installed | D81: MVA added | E81: 0 | F81: 0 | G81: 0 | H81: 0 | I81: 0 | J81: 0 | K81: 0
C82: Distribution substations installed | D82: 0's | E82: 0 | F82: 0 | G82: 0 | H82: 0 | I82: 0 | J82: 0 | K82: 0
C83: Distribution substations installed | D83: total spend $0s | E83: 0 | F83: 0 | G83: 0 | H83: 0 | I83: 0 | J83: 0 | K83: 0
C84: Augmentation HV | D84: net circuit KM added | E84: 0 | F84: 0 | G84: 0 | H84: 0 | I84: 0 | J84: 0 | K84: 0
C85: Augmentation HV | D85: total spend $0s | E85: 0 | F85: 0 | G85: 0 | H85: 0 | I85: 0 | J85: 0 | K85: 0
C86: Augmentation LV | D86: net circuit KM added | E86: 0 | F86: 0 | G86: 0 | H86: 0 | I86: 0 | J86: 0 | K86: 0
C87: Augmentation LV | D87: total spend $0s | E87: 0 | F87: 0 | G87: 0 | H87: 0 | I87: 0 | J87: 0 | K87: 0
C88: Cost per lot | D88: $0's | E88: 0 | F88: 0 | G88: 0 | H88: 0 | I88: 0 | J88: 0 | K88: 0
B89: EMBEDDED GENERATION | C89: Underground connections | D89: 0's | E89: 8137 | F89: 8137 | G89: 8137 | H89: 8137 | I89: 8137 | J89: 8137 | K89: 8137
C90: Overhead connections | D90: 0's | E90: 16759 | F90: 16759 | G90: 16759 | H90: 16759 | I90: 16759 | J90: 16759 | K90: 16759
C91: Distribution substations installed | D91: MVA added | E91: 0 | F91: 0 | G91: 0 | H91: 0 | I91: 0 | J91: 0 | K91: 0
C92: Distribution substations installed | D92: 0's | E92: 0 | F92: 0 | G92: 0 | H92: 0 | I92: 0 | J92: 0 | K92: 0
C93: Distribution substations installed | D93: total spend $0s | E93: 0 | F93: 0 | G93: 0 | H93: 0 | I93: 0 | J93: 0 | K93: 0
C94: Augmentation HV | D94: net circuit KM added | E94: 0 | F94: 0 | G94: 0 | H94: 0 | I94: 0 | J94: 0 | K94: 0
C95: Augmentation HV | D95: total spend $0s | E95: 0 | F95: 0 | G95: 0 | H95: 0 | I95: 0 | J95: 0 | K95: 0
C96: Augmentation LV | D96: net circuit KM added | E96: 0 | F96: 0 | G96: 0 | H96: 0 | I96: 0 | J96: 0 | K96: 0
C97: Augmentation LV | D97: total spend $0s | E97: 0 | F97: 0 | G97: 0 | H97: 0 | I97: 0 | J97: 0 | K97: 0
B101: 2.5.2 - COST METRICS BY CONNECTION CLASSIFICATION
B102: EXPENDITURE - ALL
B103: CONNECTION SUBCATEGORY | C103: CONNECTION CLASSICIATION | E103: =CONCATENATE("EXPENDITURE ($0's, real ", dms_DollarReal, ")") -> EXPENDITURE ($0's, real June 2024)
E104: =CRCP_y4 -> 2022-23 | F104: =CRCP_y5 -> 2023-24 | G104: =FRCP_y1 -> 2024-25 | H104: =FRCP_y2 -> 2025-26 | I104: =FRCP_y3 -> 2026-27 | J104: =FRCP_y4 -> 2027-28 | K104: =FRCP_y5 -> 2028-29
B105: RESIDENTIAL | C105: Simple connection LV | E105: 1932463.848 | F105: 1548148.681 | G105: 1064130.286 | H105: 1067986.63 | I105: 1069619.888 | J105: 1070386.864 | K105: 1070385.913
C106: Complex connection LV | G106: 2669781.999 | H106: 2668150.469 | I106: 2667459.475 | J106: 2667134.985 | K106: 2667135.388
C107: Complex connection HV | G107: 3640611.817 | H107: 3638387.003 | I107: 3637444.739 | J107: 3637002.253 | K107: 3637002.802
B108: COMMERCIAL/INDUSTRIAL | C108: Simple connection LV | E108: 499353.5804 | F108: 400048.9751 | G108: 274978.4544 | H108: 275368.2528 | I108: 276138.8121 | J108: 276472.8111 | K108: 276592.9547
C109: Complex connection HV (customer connected at LV, minor HV works) | G109: 1678122.136 | H109: 1678008.138 | I109: 1677782.786 | J109: 1677685.107 | K109: 1677649.97
C110: Complex connection HV (customer connected at LV, upstream asset works) | G110: 4059972.909 | H110: 4059697.108 | I110: 4059151.901 | J110: 4058915.581 | K110: 4058830.573
C111: Complex connection HV (customer connected at HV)
C112: Complex connection sub-transmission
B113: SUBDIVISION | C113: Complex connection LV
C114: Complex connection HV (no upstream asset works)
C115: Complex connection HV (with upstream asset works)
B116: EMBEDDED GENERATION | C116: Simple connection LV
C117: Complex connection HV (small capacity)
C118: Complex connection HV (large capacity)
B120: EXPENDITURE - STANDARD CONTROL SERVICES
E121: =CONCATENATE("EXPENDITURE ($0's, real ", dms_DollarReal, ")") -> EXPENDITURE ($0's, real June 2024)
E122: =CRCP_y4 -> 2022-23 | F122: =CRCP_y5 -> 2023-24 | G122: =FRCP_y1 -> 2024-25 | H122: =FRCP_y2 -> 2025-26 | I122: =FRCP_y3 -> 2026-27 | J122: =FRCP_y4 -> 2027-28 | K122: =FRCP_y5 -> 2028-29
B123: RESIDENTIAL | C123: Simple connection LV | E123: 1932463.848 | F123: 1548148.681 | G123: 1064130.286 | H123: 1067986.63 | I123: 1069619.888 | J123: 1070386.864 | K123: 1070385.913
C124: Complex connection LV | E124: 0 | F124: 0 | G124: 2669781.999 | H124: 2668150.469 | I124: 2667459.475 | J124: 2667134.985 | K124: 2667135.388
C125: Complex connection HV | E125: 0 | F125: 0 | G125: 3640611.817 | H125: 3638387.003 | I125: 3637444.739 | J125: 3637002.253 | K125: 3637002.802
B126: COMMERCIAL/INDUSTRIAL | C126: Simple connection LV | E126: 499353.5804 | F126: 400048.9751 | G126: 274978.4544 | H126: 275368.2528 | I126: 276138.8121 | J126: 276472.8111 | K126: 276592.9547
C127: Complex connection HV (customer connected at LV, minor HV works) | E127: 0 | F127: 0 | G127: 1678122.136 | H127: 1678008.138 | I127: 1677782.786 | J127: 1677685.107 | K127: 1677649.97
C128: Complex connection HV (customer connected at LV, upstream asset works) | E128: 0 | F128: 0 | G128: 4059972.909 | H128: 4059697.108 | I128: 4059151.901 | J128: 4058915.581 | K128: 4058830.573
C129: Complex connection HV (customer connected at HV) | E129: 0 | F129: 0 | G129: 0 | H129: 0 | I129: 0 | J129: 0 | K129: 0
C130: Complex connection sub-transmission | E130: 0 | F130: 0 | G130: 0 | H130: 0 | I130: 0 | J130: 0 | K130: 0
B131: SUBDIVISION | C131: Complex connection LV | E131: 0 | F131: 0 | G131: 0 | H131: 0 | I131: 0 | J131: 0 | K131: 0
C132: Complex connection HV (no upstream asset works) | E132: 0 | F132: 0 | G132: 0 | H132: 0 | I132: 0 | J132: 0 | K132: 0
C133: Complex connection HV (with upstream asset works) | E133: 0 | F133: 0 | G133: 0 | H133: 0 | I133: 0 | J133: 0 | K133: 0
B134: EMBEDDED GENERATION | C134: Simple connection LV | E134: 0 | F134: 0 | G134: 0 | H134: 0 | I134: 0 | J134: 0 | K134: 0
C135: Complex connection HV (small capacity) | E135: 0 | F135: 0 | G135: 0 | H135: 0 | I135: 0 | J135: 0 | K135: 0
C136: Complex connection HV (large capacity) | E136: 0 | F136: 0 | G136: 0 | H136: 0 | I136: 0 | J136: 0 | K136: 0
B138: EXPENDITURE - STANDARD CONTROL SERVICES - CAPITAL CONTRIBUTIONS
E139: =CONCATENATE("EXPENDITURE ($0's, real ", dms_DollarReal, ")") -> EXPENDITURE ($0's, real June 2024)
E140: =CRCP_y4 -> 2022-23 | F140: =CRCP_y5 -> 2023-24 | G140: =FRCP_y1 -> 2024-25 | H140: =FRCP_y2 -> 2025-26 | I140: =FRCP_y3 -> 2026-27 | J140: =FRCP_y4 -> 2027-28 | K140: =FRCP_y5 -> 2028-29
B141: RESIDENTIAL | C141: Simple connection LV | E141: 106296452 | F141: 90262035 | G141: 98945790 | H141: 97005087 | I141: 97349183 | J141: 96540057 | K141: 97411152
C142: Complex connection LV
C143: Complex connection HV
B144: COMMERCIAL/INDUSTRIAL | C144: Simple connection LV | E144: 33022848 | F144: 28041477 | G144: 30739236 | H144: 30136323 | I144: 30243223 | J144: 29991853 | K144: 30262474
C145: Complex connection HV (customer connected at LV, minor HV works)
C146: Complex connection HV (customer connected at LV, upstream asset works)
C147: Complex connection HV (customer connected at HV)
C148: Complex connection sub-transmission
B149: SUBDIVISION | C149: Complex connection LV
C150: Complex connection HV (no upstream asset works)
C151: Complex connection HV (with upstream asset works)
B152: EMBEDDED GENERATION | C152: Simple connection LV
C153: Complex connection HV (small capacity)
C154: Complex connection HV (large capacity)
B158: 2.5.3 - VOLUMES BY CONNECTION CLASSIFICATION
B159: NEW CONNECTIONS - ALL
E160: VOLUMES (0's)
E161: =CRCP_y4 -> 2022-23 | F161: =CRCP_y5 -> 2023-24 | G161: =FRCP_y1 -> 2024-25 | H161: =FRCP_y2 -> 2025-26 | I161: =FRCP_y3 -> 2026-27 | J161: =FRCP_y4 -> 2027-28 | K161: =FRCP_y5 -> 2028-29
B162: RESIDENTIAL | C162: Simple connection LV | E162: 6853 | F162: 6204.681198 | G162: 6204.601891 | H162: 6227.086996 | I162: 6236.609996 | J162: 6241.081986 | K162: 6241.07644
C163: Complex connection LV
C164: Complex connection HV
B165: COMMERCIAL/INDUSTRIAL | C165: Simple connection LV | E165: 976.3333333 | F165: 883.968638 | G165: 883.9641941 | H165: 885.2172664 | I165: 887.694358 | J165: 888.7680534 | K165: 889.1542753
C166: Complex connection HV (customer connected at LV, minor HV works)
C167: Complex connection HV (customer connected at LV, upstream asset works)
C168: Complex connection HV (customer connected at HV) | E168: 2 | F168: 2 | G168: 2 | H168: 2 | I168: 2 | J168: 2 | K168: 2
C169: Complex connection sub-transmission | E169: 1 | F169: 1 | G169: 1 | H169: 1 | I169: 1 | J169: 1 | K169: 1
B170: SUBDIVISION | C170: Complex connection LV
C171: Complex connection HV (no upstream asset works)
C172: Complex connection HV (with upstream asset works)
B173: EMBEDDED GENERATION | C173: Simple connection LV | E173: 24896 | F173: 24896 | G173: 24896 | H173: 24896 | I173: 24896 | J173: 24896 | K173: 24896
C174: Complex connection HV (small capacity) | E174: 3 | F174: 3 | G174: 3 | H174: 3 | I174: 3 | J174: 3 | K174: 3
C175: Complex connection HV (large capacity) | E175: 2 | F175: 2 | G175: 2 | H175: 3 | I175: 3 | J175: 3 | K175: 3
B177: NEW CONNECTIONS - STANDARD CONTROL SERVICES
E178: VOLUMES (0's)
E179: =CRCP_y4 -> 2022-23 | F179: =CRCP_y5 -> 2023-24 | G179: =FRCP_y1 -> 2024-25 | H179: =FRCP_y2 -> 2025-26 | I179: =FRCP_y3 -> 2026-27 | J179: =FRCP_y4 -> 2027-28 | K179: =FRCP_y5 -> 2028-29
B180: RESIDENTIAL | C180: Simple connection LV | E180: 6853 | F180: 6204.681198 | G180: 6204.601891 | H180: 6227.086996 | I180: 6236.609996 | J180: 6241.081986 | K180: 6241.07644
C181: Complex connection LV | E181: 0 | F181: 0 | G181: 0 | H181: 0 | I181: 0 | J181: 0 | K181: 0
C182: Complex connection HV | E182: 0 | F182: 0 | G182: 0 | H182: 0 | I182: 0 | J182: 0 | K182: 0
B183: COMMERCIAL/INDUSTRIAL | C183: Simple connection LV | E183: 976.3333333 | F183: 883.968638 | G183: 883.9641941 | H183: 885.2172664 | I183: 887.694358 | J183: 888.7680534 | K183: 889.1542753
C184: Complex connection HV (customer connected at LV, minor HV works) | E184: 0 | F184: 0 | G184: 0 | H184: 0 | I184: 0 | J184: 0 | K184: 0
C185: Complex connection HV (customer connected at LV, upstream asset works) | F185: 0 | G185: 0 | H185: 0 | I185: 0 | J185: 0 | K185: 0
C186: Complex connection HV (customer connected at HV) | E186: 2 | F186: 2 | G186: 2 | H186: 2 | I186: 2 | J186: 2 | K186: 2
C187: Complex connection sub-transmission | E187: 1 | F187: 1 | G187: 1 | H187: 1 | I187: 1 | J187: 1 | K187: 1
B188: SUBDIVISION | C188: Complex connection LV | F188: 0 | G188: 0 | H188: 0 | I188: 0 | J188: 0 | K188: 0
C189: Complex connection HV (no upstream asset works) | F189: 0 | G189: 0 | H189: 0 | I189: 0 | J189: 0 | K189: 0
C190: Complex connection HV (with upstream asset works) | F190: 0 | G190: 0 | H190: 0 | I190: 0 | J190: 0 | K190: 0
B191: EMBEDDED GENERATION | C191: Simple connection LV | E191: 24896 | F191: 24896 | G191: 24896 | H191: 24896 | I191: 24896 | J191: 24896 | K191: 24896
C192: Complex connection HV (small capacity) | E192: 3 | F192: 3 | G192: 3 | H192: 3 | I192: 3 | J192: 3 | K192: 3
C193: Complex connection HV (large capacity) | E193: 2 | F193: 2 | G193: 2 | H193: 3 | I193: 3 | J193: 3 | K193: 3
B195: EXISTING CONNECTIONS
E196: VOLUMES (0's)
E197: =CRCP_y4 -> 2022-23 | F197: =CRCP_y5 -> 2023-24 | G197: =FRCP_y1 -> 2024-25 | H197: =FRCP_y2 -> 2025-26 | I197: =FRCP_y3 -> 2026-27 | J197: =FRCP_y4 -> 2027-28 | K197: =FRCP_y5 -> 2028-29
B198: RESIDENTIAL | C198: Simple connection LV | E198: 789064 | F198: 795268.6812 | G198: =F198+G162 -> 801473.2831 | H198: =G198+H162 -> 807700.3701 | I198: 813936.9801 | J198: 820178.0621 | K198: 826419.1385
C199: Complex connection LV
C200: Complex connection HV
B201: COMMERCIAL/INDUSTRIAL | C201: Simple connection LV | E201: 100069.3333 | F201: 100953.302 | G201: =F201+G165 -> 101837.2662 | H201: =G201+H165 -> 102722.4834 | I201: 103610.1778 | J201: 104498.9458 | K201: 105388.1001
C202: Complex connection HV (customer connected at LV, minor HV works)
C203: Complex connection HV (customer connected at LV, upstream asset works)
C204: Complex connection HV (customer connected at HV) | E204: 190 | F204: 192 | G204: =F204+G168 -> 194 | H204: =G204+H168 -> 196 | I204: 198 | J204: 200 | K204: 202
C205: Complex connection sub-transmission | E205: 39 | F205: 40 | G205: =F205+G169 -> 41 | H205: =G205+H169 -> 42 | I205: 43 | J205: 44 | K205: 45
B206: SUBDIVISION | C206: Complex connection LV
C207: Complex connection HV (no upstream asset works)
C208: Complex connection HV (with upstream asset works)
B209: EMBEDDED GENERATION | C209: Simple connection LV | E209: 261430 | F209: 286326 | G209: =F209+G173 -> 311222 | H209: =G209+H173 -> 336118 | I209: 361014 | J209: 385910 | K209: 410806
C210: Complex connection HV (small capacity) | E210: 16 | F210: 19 | G210: =F210+G174 -> 22 | H210: =G210+H174 -> 25 | I210: 28 | J210: 31 | K210: 34
C211: Complex connection HV (large capacity) | E211: 29 | F211: 31 | G211: =F211+G175 -> 33 | H211: 36 | I211: =H211+I175 -> 39 | J211: 42 | K211: =J211+K175 -> 45

Sheet 2.6 Non-network
B1: =INDEX(dms_Worksheet_List,MATCH(dms_Model,dms_Model_List)) -> REGULATORY REPORTING STATEMENT
B2: =INDEX(dms_TradingNameFull_List,MATCH(dms_TradingName,dms_TradingName_List)) -> Essential Energy
B3: =CONCATENATE("REGULATORY PERIOD FROM ", FRCP_y1," TO ",dms_MultiYear_FinalYear_Result) -> REGULATORY PERIOD FROM 2024-25 TO 2028-29
B4: 2.6 NON-NETWORK EXPENDITURE
B6: There are THREE tables on this worksheet - each has been 'grouped' (and sub-grouped) for easy navigation. See the Instructions sheet on how to group or ungroup tables.
B8: 2.6.1 - NON-NETWORK EXPENDITURE
E9: =CONCATENATE("EXPENDITURE ($0's, real ", dms_DollarReal, ")") -> EXPENDITURE ($0's, real June 2024)
B10: SERVICE SUBCATEGORY | C10: ASSET CATEGORY | E10: =CRCP_y4 -> 2022-23 | F10: =CRCP_y5 -> 2023-24 | G10: =FRCP_y1 -> 2024-25 | H10: =FRCP_y2 -> 2025-26 | I10: =FRCP_y3 -> 2026-27 | J10: =FRCP_y4 -> 2027-28 | K10: =FRCP_y5 -> 2028-29
B11: OPEX
B12: IT & COMMUNICATIONS | C12: Total IT and communications
B13: MOTOR VEHICLES | C13: Car
C14: Light commercial vehicle
C15: Elevated work platform (LCV)
C16: Elevated work platform (HCV)
C17: Heavy commercial vehicle
B18: BUILDINGS AND PROPERTY | C18: Total buildings and property expenditure
B19: OTHER | C19: Other expenditure
B20: OTHER - DNSP nominated | C20: Office furniture and equipment
C21: Plant and equipment
C22: Other fleet assets
B31: CAPEX
B32: IT & COMMUNICATIONS | C32: Total IT and communications | E32: 68723141.73 | F32: 33800394.16 | G32: 22809815.57 | H32: 24281831.18 | I32: 24653263.93 | J32: 20670165.2 | K32: 14318329.39
B33: MOTOR VEHICLES | C33: Car | E33: 204340 | F33: 499579 | G33: - | H33: 366735 | I33: - | J33: 72985 | K33: 219138
C34: Light commercial vehicle | E34: 14778803 | F34: 15454489 | G34: 7562578 | H34: 12212308 | I34: 8007602 | J34: 9994814 | K34: 7502535
C35: Elevated work platform (LCV) | E35: - | F35: - | G35: - | H35: - | I35: - | J35: - | K35: -
C36: Elevated work platform (HCV) | E36: 11486181 | F36: 13175190 | G36: 13335113 | H36: 13892932 | I36: 19491956 | J36: 22621618 | K36: 17252350
C37: Heavy commercial vehicle | E37: 6771860 | F37: 9143542 | G37: 14136091 | H37: 5013264 | I37: 924927 | J37: 1583458 | K37: 3760187
B38: BUILDINGS AND PROPERTY | C38: Total buildings and property expenditure | E38: 12988377.06 | F38: 10447243.97 | G38: 24678120.45 | H38: 15729715.11 | I38: 14401788.82 | J38: 14356920.64 | K38: 15136948.82
B39: OTHER | C39: Other expenditure | E39: 0 | F39: 2795257.974 | G39: 2882767.617 | H39: 2903598.58 | I39: 2906951.943 | J39: 2904508.072 | K39: 2901624.582
B40: OTHER - DNSP nominated | C40: Other fleet assets | E40: 8174562 | F40: 2670614 | G40: 3352758 | H40: 5615848 | I40: 7905908 | J40: 4773671 | K40: 3966170
C41: Capitalised Leases | E41: 1546739.871 | F41: 2906839.995 | G41: 1489727.973 | H41: 1818363.644 | I41: 1951543.834 | J41: 7136127.615 | K41: 2945985.681
B54: 2.6.2 - ANNUAL DESCRIPTOR METRICS
B55: IT & COMMUNICATIONS
E56: VOLUMES (0's)
E57: =CRCP_y4 -> 2022-23 | F57: =CRCP_y5 -> 2023-24 | G57: =FRCP_y1 -> 2024-25 | H57: =FRCP_y2 -> 2025-26 | I57: =FRCP_y3 -> 2026-27 | J57: =FRCP_y4 -> 2027-28 | K57: =FRCP_y5 -> 2028-29
B58: Employee numbers | E58: 2766.59932 | F58: 2864.156926 | G58: 2920.538366 | H58: 2939.619152 | I58: 2959.409859 | J58: 2935.879579 | K58: 2963.49272
B59: User numbers | E59: 3373.901609 | F59: 3492.8743 | G59: 3561.632153 | H59: 3584.901405 | I59: 3609.036413 | J59: 3580.34095 | K59: 3614.015513
B60: Number of devices | E60: 6615.736122 | F60: 6849.024469 | G60: 6983.848736 | H60: 7029.476395 | I60: 7076.801676 | J60: 7020.533998 | K60: 7086.564975
B62: MOTOR VEHICLES
E63: VOLUMES (0's or %)
B64: ASSET CATEGORY | C64: DESCRIPTOR METRIC | D64: UNITS | E64: =CRCP_y4 -> 2022-23 | F64: =CRCP_y5 -> 2023-24 | G64: =FRCP_y1 -> 2024-25 | H64: =FRCP_y2 -> 2025-26 | I64: =FRCP_y3 -> 2026-27 | J64: =FRCP_y4 -> 2027-28 | K64: =FRCP_y5 -> 2028-29
B65: CAR | C65: Average kilometres travelled | D65: 0's | E65: 19652 | F65: 19652 | G65: 19651.97183 | H65: 19651.97183 | I65: 19651.97183 | J65: 19651.97183 | K65: 19651.97183
C66: Number purchased | D66: 0's | E66: 6 | F66: 14 | G66: 0 | H66: 10 | I66: 0 | J66: 2 | K66: 6
C67: Number leased | D67: 0's | E67: - | F67: - | G67: 0 | H67: 0 | I67: 0 | J67: 0 | K67: 0
C68: Number in fleet | D68: 0's | E68: 32 | F68: 32 | G68: 32 | H68: 32 | I68: 32 | J68: 32 | K68: 32
C69: Proportion of total fleet expenditure allocated as regulatory expenditure | D69: % | E69: 0.9186 | F69: 0.924 | G69: 0.9617 | H69: 0.9674 | I69: 0.9683 | J69: 0.9686 | K69: 0.9708
B70: LIGHT COMMERCIAL VEHICLE | C70: Average kilometres travelled | D70: 0's | E70: 22899.49765 | F70: 22899.49765 | G70: 22899.49765 | H70: 22899.49765 | I70: 22899.49765 | J70: 22899.49765 | K70: 22899.49765
C71: Number purchased | D71: 0's | E71: 256 | F71: 259 | G71: 114 | H71: 173 | I71: 122 | J71: 156 | K71: 113
C72: Number leased | D72: 0's | E72: 0 | F72: 0 | G72: 0 | H72: 0 | I72: 0 | J72: 0 | K72: 0
C73: Number in fleet | D73: 0's | E73: 1213 | F73: 1213 | G73: 1213 | H73: 1213 | I73: 1213 | J73: 1213 | K73: 1213
C74: Proportion of total fleet expenditure allocated as regulatory expenditure | D74: % | E74: 0.9186 | F74: 0.924 | G74: 0.9617 | H74: 0.9674 | I74: 0.9683 | J74: 0.9686 | K74: 0.9708
B75: ELEVATED WORK PLATFORM (LCV) | C75: Average kilometres travelled | D75: 0's | E75: 0 | F75: 0 | G75: 0 | H75: 0 | I75: 0 | J75: 0 | K75: 0
C76: Number purchased | D76: 0's | E76: 0 | F76: 0 | G76: 0 | H76: 0 | I76: 0 | J76: 0 | K76: 0
C77: Number leased | D77: 0's | E77: 0 | F77: 0 | G77: 0 | H77: 0 | I77: 0 | J77: 0 | K77: 0
C78: Number in fleet | D78: 0's | E78: 0 | F78: 0 | G78: 0 | H78: 0 | I78: 0 | J78: 0 | K78: 0
C79: Proportion of total fleet expenditure allocated as regulatory expenditure | D79: % | E79: 0 | F79: 0 | G79: 0 | H79: 0 | I79: 0 | J79: 0 | K79: 0
B80: ELEVATED WORK PLATFORM (HCV) | C80: Average kilometres travelled | D80: 0's | E80: 15397.13501 | F80: 15397.13501 | G80: 15397.13501 | H80: 15397.13501 | I80: 15397.13501 | J80: 15397.13501 | K80: 15397.13501
C81: Number purchased | D81: 0's | E81: 12 | F81: 20 | G81: 19 | H81: 21 | I81: 31 | J81: 37 | K81: 28
C82: Number leased | D82: 0's | E82: 0 | F82: 0 | G82: 0 | H82: 0 | I82: 0 | J82: 0 | K82: 0
C83: Number in fleet | D83: 0's | E83: 207 | F83: 207 | G83: 207 | H83: 207 | I83: 207 | J83: 207 | K83: 207
C84: Proportion of total fleet expenditure allocated as regulatory expenditure | D84: % | E84: 0.9186 | F84: 0.924 | G84: 0.9617 | H84: 0.9674 | I84: 0.9683 | J84: 0.9686 | K84: 0.9708
B85: HEAVY COMMERCIAL VEHICLE | C85: Average kilometres travelled | D85: 0's | E85: 14534.51346 | F85: 14534.51346 | G85: 14534.51346 | H85: 14534.51346 | I85: 14534.51346 | J85: 14534.51346 | K85: 14534.51346
C86: Number purchased | D86: 0's | E86: 10 | F86: 11 | G86: 18 | H86: 7 | I86: 6 | J86: 8 | K86: 16
C87: Number leased | D87: 0's | E87: 0 | F87: 0 | G87: 0 | H87: 0 | I87: 0 | J87: 0 | K87: 0
C88: Number in fleet | D88: 0's | E88: 389 | F88: 389 | G88: 390 | H88: 390 | I88: 390 | J88: 390 | K88: 390
C89: Proportion of total fleet expenditure allocated as regulatory expenditure | D89: % | E89: 0.9186 | F89: 0.924 | G89: 0.9617 | H89: 0.9674 | I89: 0.9683 | J89: 0.9686 | K89: 0.9708
B92: Table 2.6.4 intentionally omitted
B94: 2.6.5 - INFORMATION & COMMUNICATIONS TECHNOLOGY - CAPEX
E95: =CONCATENATE("EXPENDITURE ($0's, real ", dms_DollarReal, ")") -> EXPENDITURE ($0's, real June 2024)
E96: =CRCP_y4 -> 2022-23 | F96: =CRCP_y5 -> 2023-24 | G96: =FRCP_y1 -> 2024-25 | H96: =FRCP_y2 -> 2025-26 | I96: =FRCP_y3 -> 2026-27 | J96: =FRCP_y4 -> 2027-28 | K96: =FRCP_y5 -> 2028-29
B97: RECURRENT
B98: Client Devices | E98: 3784603.829 | F98: 1916954 | G98: 1939895 | H98: 3381245 | I98: 5291953 | J98: 3510015 | K98: 3598139
B99: Recurrent | E99: 8653934 | F99: 9688138 | G99: 13229498 | H99: 12484230 | I99: 10348568 | J99: 9575901 | K99: 10121655
B108: NON-RECURRENT
B109: Maintain | E109: 41722095 | F109: 16637946 | G109: 7135915 | H109: 7823532 | I109: 7201863 | J109: 7245541 | K109: 437989
B110: Comply | E110: 9035225.431 | F110: 4831791 | G110: 483941 | H110: 31157 | I110: 146550.5947 | J110: 161377 | K110: 145996
B111: New or Expand | E111: 5527284.117 | F111: 725566 | G111: 20567 | H111: 561668 | I111: 1664329.112 | J111: 177331 | K111: 14549

Sheet 2.10 Overheads
B1: =INDEX(dms_Worksheet_List,MATCH(dms_Model,dms_Model_List)) -> REGULATORY REPORTING STATEMENT
B2: =INDEX(dms_TradingNameFull_List,MATCH(dms_TradingName,dms_TradingName_List)) -> Essential Energy
B3: =CONCATENATE("REGULATORY PERIOD FROM ", FRCP_y1," TO ",dms_MultiYear_FinalYear_Result) -> REGULATORY PERIOD FROM 2024-25 TO 2028-29
B4: 2.10 OVERHEADS
B6: There are TWO tables on this worksheet. Each table has been 'grouped' (and sub-grouped) for easy navigation. See the Instructions sheet on how to group or ungroup data.
B8: 2.10.1 - NETWORK OVERHEADS EXPENDITURE
D9: =CONCATENATE("EXPENDITURE ($0's, real ", dms_DollarReal, ")") -> EXPENDITURE ($0's, real June 2024)
D10: =CRCP_y4 -> 2022-23 | E10: =CRCP_y5 -> 2023-24 | F10: =FRCP_y1 -> 2024-25 | G10: =FRCP_y2 -> 2025-26 | H10: =FRCP_y3 -> 2026-27 | I10: =FRCP_y4 -> 2027-28 | J10: =FRCP_y5 -> 2028-29
B11: OPEX
B12: Standard Control Services | C12: Total | D12: 119004223 | E12: 108137457 | F12: 97270694.05 | G12: 93424655.42 | H12: 92605092.23 | I12: 94543686.58 | J12: 90701482.21
B13: Alternative Control Services | C13: Total | D13: 19701481.91 | E13: 18274661.07 | F13: 18487786.53 | G13: 18566313.17 | H13: 18980677.65 | I13: 19690828.85 | J13: 19916429.39
B14: CAPEX
B15: Standard Control Services | C15: Total | D15: 107886001.7 | E15: 110487176 | F15: 99841097.67 | G15: 95844283.05 | H15: 96376166.9 | I15: 98023993.7 | J15: 98786176.56
B16: Alternative Control Services | C16: Total | D16: 13126937.76 | E16: 4823699.516 | F16: 6341810.731 | G16: 5345983.63 | H16: 5371830.029 | I16: 5217728.685 | J16: 5290155.759
B17: OTHER DISTRIBUTION SERVICES
B18: Negotiated Services | C18: Total
B19: Unregulated Distribution Services | C19: Total | D19: 6468419.098 | E19: 5855252.076 | F19: 5310305.08 | G19: 5351061.272 | H19: 5337260.731 | I19: 5314589.046 | J19: 5246666.355
B23: 2.10.2 - CORPORATE OVERHEADS EXPENDITURE
D24: =CONCATENATE("EXPENDITURE ($0's, real ", dms_DollarReal, ")") -> EXPENDITURE ($0's, real June 2024)
D25: =CRCP_y4 -> 2022-23 | E25: =CRCP_y5 -> 2023-24 | F25: =FRCP_y1 -> 2024-25 | G25: =FRCP_y2 -> 2025-26 | H25: =FRCP_y3 -> 2026-27 | I25: =FRCP_y4 -> 2027-28 | J25: =FRCP_y5 -> 2028-29
B26: OPEX
B27: Standard Control Services | C27: Total | D27: 90699572 | E27: 84867571.05 | F27: 78434981.02 | G27: 87706618.98 | H27: 87737415.9 | I27: 73310360.68 | J27: 67472152.89
B28: Alternative Control Services | C28: Total | D28: 13885157.3 | E28: 11905004.53 | F28: 13085045 | G28: 15414678.55 | H28: 15669623.99 | I28: 13390133.05 | J28: 12370077.53
B29: CAPEX
B30: Standard Control Services | C30: Total | D30: 67860372.29 | E30: 73818169 | F30: 72505600.16 | G30: 80789114.25 | H30: 82045207.01 | I30: 70674445.12 | J30: 67178313.61
B31: Alternative Control Services | C31: Total | D31: 8605455.474 | E31: 2753891.778 | F31: 3961164.905 | G31: 3947895.951 | H31: 3935246.937 | I31: 3161095.099 | J31: 2862427.476
B32: OTHER DISTRIBUTION SERVICES
B33: Negotiated Services | C33: Total
B34: Unregulated Distribution Services | C34: Total | D34: 1949554.695 | E34: 2040097.726 | F34: 1346513.048 | G34: 1636499.345 | H34: 1596325.121 | I34: 1264108.046 | J34: 1016896.82

Sheet 2.11 Labour
B1: =INDEX(dms_Worksheet_List,MATCH(dms_Model,dms_Model_List)) -> REGULATORY REPORTING STATEMENT
B2: =INDEX(dms_TradingNameFull_List,MATCH(dms_TradingName,dms_TradingName_List)) -> Essential Energy
B3: =CONCATENATE("REGULATORY PERIOD FROM ", FRCP_y1," TO ",dms_MultiYear_FinalYear_Result) -> REGULATORY PERIOD FROM 2024-25 TO 2028-29
B4: 2.11 LABOUR
B6: Table numbering on this worksheet starts at 2.11.3.
B8: 2.11.3 - LABOUR / NON-LABOUR EXPENDITURE SPLIT - STANDARD CONTROL SERVICES
C9: =CONCATENATE("EXPENDITURE ($0's, real ", dms_DollarReal, ")") -> EXPENDITURE ($0's, real June 2024)
C10: =CRCP_y4 -> 2022-23 | D10: =CRCP_y5 -> 2023-24 | E10: =FRCP_y1 -> 2024-25 | F10: =FRCP_y2 -> 2025-26 | G10: =FRCP_y3 -> 2026-27 | H10: =FRCP_y4 -> 2027-28 | I10: =FRCP_y5 -> 2028-29
B11: OPEX
B12: In-house labour expenditure | C12: 214951813.3 | D12: 215425866.8 | E12: 224667604.7 | F12: 229374725.1 | G12: 231331211.6 | H12: 232147000.4 | I12: 232615408.4
B13: Labour expenditure outsourced to related parties | C13: 0 | D13: 0 | E13: 0 | F13: 0 | G13: 0 | H13: 0 | I13: 0
B14: Labour expenditure outsourced to unrelated parties | C14: 2227994.028 | D14: 2232907.634 | E14: 2328699.042 | F14: 2377488.749 | G14: 2397767.9 | H14: 2406223.621 | I14: 2411078.71
B15: Controllable non-labour expenditure | C15: 227339006.6 | D15: 230147685.9 | E15: 224097803 | F15: 231745514.2 | G15: 234657708.1 | H15: 223967650.6 | I15: 219836578.1
B16: Uncontrollable non-labour expenditure | C16: 0 | D16: 0 | E16: 0 | F16: 0 | G16: 0 | H16: 0 | I16: 0
B17: Total | C17: =SUM(C12:C16) -> 444518814 | D17: 447806460.4 | E17: 451094106.8 | F17: 463497728 | G17: 468386687.6 | H17: 458520874.6 | I17: 454863065.2
B18: CAPEX
B19: In-house labour expenditure | C19: 180066753 | D19: 195003566.3 | E19: 202230170.7 | F19: 206739217.7 | G19: 210631603.8 | H19: 208500994.8 | I19: 215317858.6
B20: Labour expenditure outsourced to related parties | E20: 0 | F20: 0 | G20: 0 | H20: 0 | I20: 0
B21: Labour expenditure outsourced to unrelated parties | C21: 2050836.115 | D21: 2220956.116 | E21: 2303262.155 | F21: 2354617.09 | G21: 2398948.683 | H21: 2374682.517 | I21: 2452321.893
B22: Controllable non-labour expenditure | C22: 335809015.7 | D22: 315655081.9 | E22: 337360105.5 | F22: 326884909.9 | G22: 326703546.4 | H22: 323140548.1 | I22: 327017222.4
B23: Uncontrollable non-labour expenditure | C23: 0 | D23: 0 | E23: 0 | F23: 0 | G23: 0 | H23: 0 | I23: 0
B24: Total | C24: =SUM(C19:C23) -> 517926604.9 | D24: 512879604.4 | E24: 541893538.4 | F24: 535978744.6 | G24: 539734098.8 | H24: 534016225.4 | I24: 544787402.9

Sheet 2.14 Forecast price changes
B1: =INDEX(dms_Worksheet_List,MATCH(dms_Model,dms_Model_List)) -> REGULATORY REPORTING STATEMENT
B2: =INDEX(dms_TradingNameFull_List,MATCH(dms_TradingName,dms_TradingName_List)) -> Essential Energy
B3: =CONCATENATE("REGULATORY PERIOD FROM ", FRCP_y1," TO ",dms_MultiYear_FinalYear_Result) -> REGULATORY PERIOD FROM 2024-25 TO 2028-29
B4: 2.14 FORECAST PRICE CHANGES
B6: There is ONE table on this worksheet.
B8: Instructions
B9: =CONCATENATE(dms_TradingName, " must provide all forecast price changes used to forecast opex and capex, including forecast changes in CPI. Forecast price changes must be expressed in real terms, except for CPI. "&"If the same escalators are not used for capex and opex, report capex and opex escalators separately. Add additional rows as required. If price changes for a given year were not used to forecast either opex or capex enter '0' for that year.") -> Essential Energy must provide all forecast price changes used to forecast opex and capex, including forecast changes in CPI. Forecast price changes must be expressed in real terms, except for CPI. If the same escalators are not used for capex and opex, report capex and opex escalators separately. Add additional rows as required. If price changes for a given year were not used to forecast either opex or capex enter '0' for that year.
B11: 2.14.2 - FORECAST CAPEX AND OPEX PRICE CHANGES
C12: Price changes (% YoY real) Current regulatory period | E12: Price changes (%YoY real) Forthcoming regulatory period
C13: Forecast
B14: DESCRIPTION | C14: =CRCP_y4 -> 2022-23 | D14: =CRCP_y5 -> 2023-24 | E14: =FRCP_y1 -> 2024-25 | F14: =FRCP_y2 -> 2025-26 | G14: =FRCP_y3 -> 2026-27 | H14: =FRCP_y4 -> 2027-28 | I14: =FRCP_y5 -> 2028-29
B15: OPEX
B16: Wages Price Index and Superannuation | D16: -0.0006518389175 | E16: 0.01652827985 | F16: 0.01495766389 | G16: 0.006634271053 | H16: 0.005015929052 | I16: 0.007061266653
B19: CAPEX

Sheet 2.16 Opex Summary
B1: =INDEX(dms_Worksheet_List,MATCH(dms_Model,dms_Model_List)) -> REGULATORY REPORTING STATEMENT
B2: =INDEX(dms_TradingNameFull_List,MATCH(dms_TradingName,dms_TradingName_List)) -> Essential Energy
B3: =CONCATENATE("REGULATORY PERIOD FROM ", FRCP_y1," TO ",dms_MultiYear_FinalYear_Result) -> REGULATORY PERIOD FROM 2024-25 TO 2028-29
B4: 2.16 OPEX SUMMARY
B6: There are FOUR tables on this worksheet. Each table has been 'grouped' (and 'sub-grouped') for easy navigation. See the Instructions sheet on how to group or ungroup data.
B8: Instructions | J8: IMPORTANT!
B9: =CONCATENATE("Complete the tables below in accordance with the regulatory information notice. ",dms_TradingName,"'s total forecast opex must reconcile to Table 2.16.1 (and if ",dms_TradingName," owns any dual function assets Table 2.16.3). If ",dms_TradingName," did not forecast its total opex using a Base Year approach, total forecast opex must reconcile to Table 2.16.2 (and if ",dms_TradingName," owns any dual function assets Table 2.16.4).") -> Complete the tables below in accordance with the regulatory information notice. Essential Energy's total forecast opex must reconcile to Table 2.16.1 (and if Essential Energy owns any dual function assets Table 2.16.3). If Essential Energy did not forecast its total opex using a Base Year approach, total forecast opex must reconcile to Table 2.16.2 (and if Essential Energy owns any dual function assets Table 2.16.4). | J9: =CONCATENATE("Has ",dms_TradingName," used a base-step-trend model to derive its opex forecast? ") -> Has Essential Energy used a base-step-trend model to derive its opex forecast? | L9: Yes
B10: =CONCATENATE("If ",dms_TradingName," does not own any dual function assets,Table 2.16.3 and 2.16.4 may be left blank.") -> If Essential Energy does not own any dual function assets,Table 2.16.3 and 2.16.4 may be left blank. | J10: Yes / No
B11: The total step changes in Table 2.16.1 and Table 2.16.3 must "&"reconcile (in each year) to the total step changes for each year in Table 2.17.1 and Table 2.17.3 of worksheet '2.17 Step Changes', respectively.") | J11: Please nominate the base year. | L11: 2022-23
B14: 2.16.1 - STANDARD CONTROL SERVICES - OPEX BY DRIVER
C15: =CONCATENATE("EXPENDITURE ($0's, real ", dms_DollarReal, ")") -> EXPENDITURE ($0's, real June 2024)
C16: =CRCP_y1 -> 2019-20 | D16: =CRCP_y2 -> 2020-21 | E16: =CRCP_y3 -> 2021-22 | F16: =CRCP_y4 -> 2022-23 | G16: =CRCP_y5 -> 2023-24 | H16: =FRCP_y1 -> 2024-25 | I16: =FRCP_y2 -> 2025-26 | J16: =FRCP_y3 -> 2026-27 | K16: =FRCP_y4 -> 2027-28 | L16: =FRCP_y5 -> 2028-29
B17: Base year total opex, excluding category specific | F17: 438146694.9 | G17: 438146694.9 | H17: 436260184.3 | I17: 436260184.3 | J17: 436260184.3 | K17: 436260184.3 | L17: 436260184.3
B18: Increment from base year to final year | G18: 851181.7092
B19: Price growth | H19: 4257326.026 | I19: 8161175.607 | J19: 9910802.893 | K19: 11243541.3 | L19: 13115641.75
B20: Output growth | H20: 2127779.661 | I20: 5785902.411 | J20: 9002860.054 | K20: 12308277.35 | L20: 14856206.92
B21: Productivity growth | H21: -2175492.297 | I21: -4378388.566 | J21: -6587536.767 | K21: -8805825.798 | L21: -11033836.22
B22: Step changes | H22: 10624309.12 | I22: 17668854.25 | J22: 19800377.17 | K22: 7514697.448 | L22: 1664868.457
B23: Category specific | F23: 2714655.102 | G23: -2737692.31
B24: Total opex | C24: =SUM(C17:C23) -> 0 | D24: 0 | E24: 0 | F24: 440861350 | G24: 436260184.3 | H24: 451094106.8 | I24: 463497728 | J24: 468386687.6 | K24: 458520874.6 | L24: 454863065.2
B27: 2.16.2 - STANDARD CONTROL SERVICES - OPEX BY CATEGORY
C28: =CONCATENATE("EXPENDITURE ($0's, real ", dms_DollarReal, ")") -> EXPENDITURE ($0's, real June 2024)
C29: =CRCP_y1 -> 2019-20 | D29: =CRCP_y2 -> 2020-21 | E29: =CRCP_y3 -> 2021-22 | F29: =CRCP_y4 -> 2022-23 | G29: =CRCP_y5 -> 2023-24 | H29: =FRCP_y1 -> 2024-25 | I29: =FRCP_y2 -> 2025-26 | J29: =FRCP_y3 -> 2026-27 | K29: =FRCP_y4 -> 2027-28 | L29: =FRCP_y5 -> 2028-29
B30: Vegetation management
B31: Maintenance
B32: Emergency response
B33: Non-network
B34: Metering
B35: Network overheads
B36: Corporate overheads
B37: Total opex | C37: =SUM(C30:C36) -> 0 | D37: 0 | E37: 0 | F37: 0 | G37: 0 | H37: 0 | I37: 0 | J37: 0 | K37: 0 | L37: 0
B40: 2.16.3 - DUAL FUNCTION ASSETS - OPEX BY DRIVER
C41: =CONCATENATE("EXPENDITURE ($0's, real ", dms_DollarReal, ")") -> EXPENDITURE ($0's, real June 2024)
C42: 2017 | D42: 2018 | E42: 2019 | F42: 2020 | G42: 2021 | H42: =FRCP_y1 -> 2024-25 | I42: =FRCP_y2 -> 2025-26 | J42: =FRCP_y3 -> 2026-27 | K42: =FRCP_y4 -> 2027-28 | L42: =FRCP_y5 -> 2028-29
B43: Base year total opex, excluding category specific | F43: 0 | G43: 0 | H43: 0 | I43: 0 | J43: 0 | K43: 0 | L43: 0
B44: Increment from base year to final year | G44: 0 | H44: 0 | I44: 0 | J44: 0 | K44: 0 | L44: 0
B45: Price growth | H45: 0 | I45: 0 | J45: 0 | K45: 0 | L45: 0
B46: Output growth | H46: 0 | I46: 0 | J46: 0 | K46: 0 | L46: 0
B47: Productivity growth | H47: 0 | I47: 0 | J47: 0 | K47: 0 | L47: 0
B48: Step changes | H48: 0 | I48: 0 | J48: 0 | K48: 0 | L48: 0
B49: Category specific | F49: 0 | G49: 0 | H49: 0 | I49: 0 | J49: 0 | K49: 0 | L49: 0
B50: Total opex | C50: =SUM(C43:C49) -> 0 | D50: 0 | E50: 0 | F50: 0 | G50: 0 | H50: 0 | I50: 0 | J50: 0 | K50: 0 | L50: 0
B53: 2.16.4 - DUAL FUNCTION ASSETS - OPEX BY CATEGORY
C54: =CONCATENATE("EXPENDITURE ($0's, real ", dms_DollarReal, ")") -> EXPENDITURE ($0's, real June 2024)
C55: =CRCP_y1 -> 2019-20 | D55: =CRCP_y2 -> 2020-21 | E55: =CRCP_y3 -> 2021-22 | F55: =CRCP_y4 -> 2022-23 | G55: =CRCP_y5 -> 2023-24 | H55: =FRCP_y1 -> 2024-25 | I55: =FRCP_y2 -> 2025-26 | J55: =FRCP_y3 -> 2026-27 | K55: =FRCP_y4 -> 2027-28 | L55: =FRCP_y5 -> 2028-29
B56: Vegetation management
B57: Maintenance
B58: Emergency response
B59: Non-network
B60: Metering
B61: Network overheads
B62: Corporate overheads
B63: Total opex | C63: =SUM(C56:C62) -> 0 | D63: 0 | E63: 0 | F63: 0 | G63: 0 | H63: 0 | I63: 0 | J63: 0 | K63: 0 | L63: 0

Sheet 2.17 Step Changes
B1: =INDEX(dms_Worksheet_List,MATCH(dms_Model,dms_Model_List)) -> REGULATORY REPORTING STATEMENT
B2: =INDEX(dms_TradingNameFull_List,MATCH(dms_TradingName,dms_TradingName_List)) -> Essential Energy
B3: =CONCATENATE("REGULATORY PERIOD FROM ", FRCP_y1," TO ",dms_MultiYear_FinalYear_Result) -> REGULATORY PERIOD FROM 2024-25 TO 2028-29
B4: 2.17 STEP CHANGES
B6: There are FIVE tables on this worksheet. Each table has been 'grouped' (and 'sub-grouped') for easy navigation. See the Instructions sheet on how to group or ungroup data.
B8: 2.17.1 - STEP CHANGES FOR STANDARD CONTROL SERVICES - FORECAST OPEX
E9: =CONCATENATE("EXPENDITURE ($0's, real ", dms_DollarReal, ")") -> EXPENDITURE ($0's, real June 2024)
B10: STEP CHANGE | C10: DESCRIPTION | E10: =CRCP_y4 -> 2022-23 | F10: =CRCP_y5 -> 2023-24 | G10: =FRCP_y1 -> 2024-25 | H10: =FRCP_y2 -> 2025-26 | I10: =FRCP_y3 -> 2026-27 | J10: =FRCP_y4 -> 2027-28 | K10: =FRCP_y5 -> 2028-29
B11: Cloud Computing | G11: 3141390.86 | H11: 9766079.326 | I11: 11346808.37 | J11: -3308184.821 | K11: -8612235.747
B12: Insurance | G12: 1359114.028 | H12: 2247407.891 | I12: 3131415.765 | J12: 3837708.792 | K12: 4086450.938
B13: DER/Data Enablement | G13: 5737749.735 | H13: 5678857.862 | I13: 5661643.525 | J13: 7618081.658 | K13: 7036658.443
B14: Guarantee Service Levels | G14: 1299915.322 | H14: 1299915.322 | I14: 1299915.322 | J14: 1299915.322 | K14: 1299915.322
B15: Property and Fleet | G15: -913860.8229 | H15: -1323406.151 | I15: -1639405.813 | J15: -1932823.503 | K15: -2145920.498
B21: Total | E21: =SUM(E11:E20) -> 0 | F21: 0 | G21: 10624309.12 | H21: 17668854.25 | I21: 19800377.17 | J21: 7514697.448 | K21: 1664868.457
B22: Check | G22: =IF(ROUND(G$21,0)-ROUND('2.16 Opex Summary'!H$22,0)=0,"OK","Error") -> OK | H22: =IF(ROUND(H$21,0)-ROUND('2.16 Opex Summary'!I$22,0)=0,"OK","Error") -> OK | I22: =IF(ROUND(I$21,0)-ROUND('2.16 Opex Summary'!J$22,0)=0,"OK","Error") -> OK | J22: =IF(ROUND(J$21,0)-ROUND('2.16 Opex Summary'!K$22,0)=0,"OK","Error") -> OK | K22: =IF(ROUND(K$21,0)-ROUND('2.16 Opex Summary'!L$22,0)=0,"OK","Error") -> OK
B24: 2.17.2 - STEP CHANGES FOR STANDARD CONTROL SERVICES - FORECAST CAPEX
E25: =CONCATENATE("EXPENDITURE ($0's, real ", dms_DollarReal, ")") -> EXPENDITURE ($0's, real June 2024)
B26: STEP CHANGE | C26: DESCRIPTION | E26: =CRCP_y4 -> 2022-23 | F26: =CRCP_y5 -> 2023-24 | G26: =FRCP_y1 -> 2024-25 | H26: =FRCP_y2 -> 2025-26 | I26: =FRCP_y3 -> 2026-27 | J26: =FRCP_y4 -> 2027-28 | K26: =FRCP_y5 -> 2028-29
B37: Total | E37: =SUM(E27:E36) -> 0 | F37: 0 | G37: 0 | H37: 0 | I37: 0 | J37: 0 | K37: 0
B39: 2.17.3 - STEP CHANGES FOR DUAL FUNCTION ASSETS - FORECAST OPEX
E40: =CONCATENATE("EXPENDITURE ($0's, real ", dms_DollarReal, ")") -> EXPENDITURE ($0's, real June 2024)
B41: STEP CHANGE | C41: DESCRIPTION | E41: =CRCP_y4 -> 2022-23 | F41: =CRCP_y5 -> 2023-24 | G41: =FRCP_y1 -> 2024-25 | H41: =FRCP_y2 -> 2025-26 | I41: =FRCP_y3 -> 2026-27 | J41: =FRCP_y4 -> 2027-28 | K41: =FRCP_y5 -> 2028-29
B52: Total | E52: =SUM(E42:E51) -> 0 | F52: 0 | G52: 0 | H52: 0 | I52: 0 | J52: 0 | K52: 0
B53: Check | G53: =IF(ROUND(G$21,0)-ROUND('2.16 Opex Summary'!H$48,0)=0,"OK","Error") -> Error | H53: =IF(ROUND(H$21,0)-ROUND('2.16 Opex Summary'!I$48,0)=0,"OK","Error") -> Error | I53: =IF(ROUND(I$21,0)-ROUND('2.16 Opex Summary'!J$48,0)=0,"OK","Error") -> Error | J53: =IF(ROUND(J$21,0)-ROUND('2.16 Opex Summary'!K$48,0)=0,"OK","Error") -> Error | K53: =IF(ROUND(K$21,0)-ROUND('2.16 Opex Summary'!L$48,0)=0,"OK","Error") -> Error
B55: 2.17.4 - STEP CHANGES FOR DUAL FUNCTION ASSETS - FORECAST CAPEX
E56: =CONCATENATE("EXPENDITURE ($0's, real ", dms_DollarReal, ")") -> EXPENDITURE ($0's, real June 2024)
B57: STEP CHANGE | C57: DESCRIPTION | E57: =CRCP_y4 -> 2022-23 | F57: =CRCP_y5 -> 2023-24 | G57: =FRCP_y1 -> 2024-25 | H57: =FRCP_y2 -> 2025-26 | I57: =FRCP_y3 -> 2026-27 | J57: =FRCP_y4 -> 2027-28 | K57: =FRCP_y5 -> 2028-29
B68: Total | E68: =SUM(E58:E67) -> 0 | F68: 0 | G68: 0 | H68: 0 | I68: 0 | J68: 0 | K68: 0
B71: 2.17.5 - FORECAST CATEGORY SPECIFIC OPEX
D72: EXPENDITURE ($0's, real June 2024)
B73: CATEGORY | C73: DESCRIPTION | D73: =CRCP_y3 -> 2021-22 | E73: =CRCP_y4 -> 2022-23 | F73: =CRCP_y5 -> 2023-24 | G73: =FRCP_y1 -> 2024-25 | H73: =FRCP_y2 -> 2025-26 | I73: =FRCP_y3 -> 2026-27 | J73: =FRCP_y4 -> 2027-28 | K73: =FRCP_y5 -> 2028-29
B74: DMIA/ DMIS | E74: 2714655.102 | F74: -2737692.31 | G74: 1072337.762 | H74: 1105096.74 | I74: 1137023.765 | J74: 1124738.962 | K74: 1169718.424
B84: Total | D84: =SUM(D74:D83) -> 0 | E84: =SUM(E74:E83) -> 2714655.102 | F84: =SUM(F74:F83) -> -2737692.31 | G84: 1072337.762 | H84: 1105096.74 | I84: 1137023.765 | J84: 1124738.962 | K84: 1169718.424

Sheet 3.1 Revenue
B1: =INDEX(dms_Worksheet_List,MATCH(dms_Model,dms_Model_List)) -> REGULATORY REPORTING STATEMENT
B2: =INDEX(dms_TradingNameFull_List,MATCH(dms_TradingName,dms_TradingName_List)) -> Essential Energy
B3: =CONCATENATE("REGULATORY PERIOD FROM ", FRCP_y1," TO ",dms_MultiYear_FinalYear_Result) -> REGULATORY PERIOD FROM 2024-25 TO 2028-29
B4: 3.1 REVENUE
B6: There are THREE tables on this worksheet. Each table has been 'grouped' (and 'sub-grouped') for easy navigation. See the Instructions sheet on how to group or ungroup data.
B8: 3.1.1 - REVENUE GROUPING BY CHARGEABLE QUANTITY
C9: Standard control services | K9: Alternative control services
C10: =CONCATENATE("REVENUE Forecast ($0's, real ", dms_DollarReal,")") -> REVENUE Forecast ($0's, real June 2024) | K10: =CONCATENATE("REVENUE Forecast ($0's, real ", dms_DollarReal,")") -> REVENUE Forecast ($0's, real June 2024)
C11: =CRCP_y4 -> 2022-23 | D11: =CRCP_y5 -> 2023-24 | E11: =FRCP_y1 -> 2024-25 | F11: =FRCP_y2 -> 2025-26 | G11: =FRCP_y3 -> 2026-27 | H11: =FRCP_y4 -> 2027-28 | I11: =FRCP_y5 -> 2028-29 | K11: =CRCP_y4 -> 2022-23 | L11: =CRCP_y5 -> 2023-24 | M11: =FRCP_y1 -> 2024-25 | N11: =FRCP_y2 -> 2025-26 | O11: =FRCP_y3 -> 2026-27 | P11: =FRCP_y4 -> 2027-28 | Q11: =FRCP_y5 -> 2028-29
A12: DREV0101 | B12: Revenue from Fixed Customer Charges | C12: 384820992 | D12: 381597918.9 | E12: 384160278.3 | F12: 405076744 | G12: 426492743.4 | H12: 448399680.1 | I12: 470780090.6
A13: DREV0102 | B13: Revenue from Energy Delivery charges where time of use is not a determinant | C13: 316781981.5 | D13: 281516839.6 | E13: 277667710.4 | F13: 257532373 | G13: 235543192.9 | H13: 212280381.5 | I13: 190874046.7
A14: DREV0103 | B14: Revenue from On–Peak Energy Delivery charges | C14: 39893584.61 | D14: 43145359.34 | E14: 52817901.5 | F14: 67284261.06 | G14: 82655877.68 | H14: 98539296.25 | I14: 169407663.6
A15: DREV0104 | B15: Revenue from Shoulder period Energy Delivery Charges | C15: 95094258.5 | D15: 103450957.4 | E15: 100173818.4 | F15: 103426906.1 | G15: 107182820 | H15: 110841486.5 | I15: 41301422.09
A16: DREV0105 | B16: Revenue from Off–Peak Energy Delivery charges | C16: 36309493.21 | D16: 38849746.63 | E16: 54095705.55 | F16: 62285236.21 | G16: 70924685.68 | H16: 79593475.56 | I16: 99538041.92
A17: DREV0106 | B17: Revenue from controlled load customer charges | C17: 9091894.089 | D17: 8718929.582 | E17: 9222112.725 | F17: 9321982.774 | G17: 9402323.188 | H17: 9545693.92 | I17: 9876068.272
A18: DREV0107 | B18: Revenue from unmetered supplies | C18: 5209146.33 | D18: 5066920.594 | E18: 4327586.205 | F18: 4397732.574 | G18: 4533452.802 | H18: 4742664.135 | I18: 5055047.13
A19: DREV0108 | B19: Revenue from Contracted Maximum Demand charges | C19: 3647087.325 | D19: 3647087.325 | E19: 0 | F19: 0 | G19: 0 | H19: 0 | I19: 0
A20: DREV0109 | B20: Revenue from Measured Maximum Demand charges | C20: 219999927 | D20: 216097264.1 | E20: 231808232.4 | F20: 238087475.4 | G20: 244802571.8 | H20: 252734848.9 | I20: 266030093.2
A21: DREV0110 | B21: Revenue from metering charges | K21: 31031395.14 | L21: 30331265.03 | M21: 38885332.64 | N21: 38776837.26 | O21: 38668644.6 | P21: 38560753.82 | Q21: 38453164.07
A22: DREV0111 | B22: Revenue from connection charges | K22: 17816454.8 | L22: 32758653.8 | M22: 48190061 | N22: 51627133 | O22: 54009663 | P22: 55195429 | Q22: 57923870
A23: DREV0112 | B23: Revenue from public lighting charges | K23: 12263034.9 | L23: 11986356.84 | M23: 12481657 | N23: 12299322.68 | O23: 12107163.42 | P23: 12051766.7 | Q23: 12059836.87
A24: DREV0113 | B24: Revenue from other Sources | K24: 38594762.91 | L24: 37723987.75 | M24: 35661163 | N24: 36271753 | O24: 36976810 | P24: 37580947 | Q24: 38169610
A25: DREV01 | B25: Total revenue by chargeable quantity | C25: =SUM(C12:C24) -> 1110848365 | D25: 1082091023 | E25: 1114273345 | F25: 1147412711 | G25: 1181537667 | H25: 1216677527 | I25: 1252862473 | K25: =SUM(K12:K24) -> 99705647.74 | L25: 112800263.4 | M25: 135218213.6 | N25: 138975045.9 | O25: 141762281 | P25: 143388896.5 | Q25: 146606480.9
B28: 3.1.2 - REVENUE GROUPING BY CUSTOMER TYPE OR CLASS
C29: Standard control services | K29: Alternative control services
C30: =CONCATENATE("REVENUE Forecast ($0's, real ", dms_DollarReal,")") -> REVENUE Forecast ($0's, real June 2024) | K30: =CONCATENATE("REVENUE Forecast ($0's, real ", dms_DollarReal,")") -> REVENUE Forecast ($0's, real June 2024)
C31: =CRCP_y4 -> 2022-23 | D31: =CRCP_y5 -> 2023-24 | E31: =FRCP_y1 -> 2024-25 | F31: =FRCP_y2 -> 2025-26 | G31: =FRCP_y3 -> 2026-27 | H31: =FRCP_y4 -> 2027-28 | I31: =FRCP_y5 -> 2028-29 | K31: =CRCP_y4 -> 2022-23 | L31: =CRCP_y5 -> 2023-24 | M31: =FRCP_y1 -> 2024-25 | N31: =FRCP_y2 -> 2025-26 | O31: =FRCP_y3 -> 2026-27 | P31: =FRCP_y4 -> 2027-28 | Q31: =FRCP_y5 -> 2028-29
A32: DREV0201 | B32: Revenue from residential Customers | C32: 620090476.4 | D32: 602019536 | E32: 614835197.1 | F32: 630165242.7 | G32: 645476024.1 | H32: 661633186.5 | I32: 671327521.1 | K32: 0 | L32: 0 | M32: 0 | N32: 0 | O32: 0 | P32: 0 | Q32: 0
A33: DREV0202 | B33: Revenue from Non residential customers not on demand tariffs | C33: 204832387 | D33: 199440687.4 | E33: 210415728 | F33: 219954568.1 | G33: 229877560.9 | H33: 238750096.9 | I33: 249386212.2 | K33: 0 | L33: 0 | M33: 0 | N33: 0 | O33: 0 | P33: 0 | Q33: 0
A34: DREV0203 | B34: Revenue from Non-residential low voltage demand tariff customers | C34: 202654689.6 | D34: 197820903.3 | E34: 211286606.5 | F34: 217875662.6 | G34: 225012364.8 | H34: 233058145.1 | I34: 245257725.4 | K34: 0 | L34: 0 | M34: 0 | N34: 0 | O34: 0 | P34: 0 | Q34: 0
A35: DREV0204 | B35: Revenue from Non-residential high voltage demand tariff customers | C35: 78061665.36 | D35: 77742976.11 | E35: 73408227.67 | F35: 75019505.11 | G35: 76638264.81 | H35: 78493434.26 | I35: 81835967.6 | K35: 0 | L35: 0 | M35: 0 | N35: 0 | O35: 0 | P35: 0 | Q35: 0
A36: DREV0205 | B36: Revenue from unmetered supplies | C36: 5209146.33 | D36: 5066920.594 | E36: 4327586.205 | F36: 4397732.574 | G36: 4533452.802 | H36: 4742664.135 | I36: 5055047.13 | K36: 0 | L36: 0 | M36: 0 | N36: 0 | O36: 0 | P36: 0 | Q36: 0
A37: DREV0206 | B37: Revenue from Other Customers | K37: =K25 -> 99705647.74 | L37: 112800263.4 | M37: 135218213.6 | N37: 138975045.9 | O37: 141762281 | P37: 143388896.5 | Q37: 146606480.9
A38: DREV02 | B38: Total revenue by customer class | C38: =SUM(C32:C37) -> 1110848365 | D38: 1082091023 | E38: 1114273345 | F38: 1147412711 | G38: 1181537667 | H38: 1216677527 | I38: 1252862473 | K38: =SUM(K32:K37) -> 99705647.74 | L38: 112800263.4 | M38: 135218213.6 | N38: 138975045.9 | O38: 141762281 | P38: 143388896.5 | Q38: 146606480.9
B41: 3.1.3 - REVENUE (penalties) ALLOWED (deducted) THROUGH INCENTIVE SCHEMES
C42: Standard control services | K42: Alternative control services
C43: =CONCATENATE("REVENUE Forecast ($0's, real ", dms_DollarReal,")") -> REVENUE Forecast ($0's, real June 2024) | K43: =CONCATENATE("REVENUE Forecast ($0's, real ", dms_DollarReal,")") -> REVENUE Forecast ($0's, real June 2024)
C44: =CRCP_y4 -> 2022-23 | D44: =CRCP_y5 -> 2023-24 | E44: =FRCP_y1 -> 2024-25 | F44: =FRCP_y2 -> 2025-26 | G44: =FRCP_y3 -> 2026-27 | H44: =FRCP_y4 -> 2027-28 | I44: =FRCP_y5 -> 2028-29 | K44: =CRCP_y4 -> 2022-23 | L44: =CRCP_y5 -> 2023-24 | M44: =FRCP_y1 -> 2024-25 | N44: =FRCP_y2 -> 2025-26 | O44: =FRCP_y3 -> 2026-27 | P44: =FRCP_y4 -> 2027-28 | Q44: =FRCP_y5 -> 2028-29
A45: DREV0301 | B45: EBSS | C45: 0 | D45: 0 | E45: 0 | F45: 0 | G45: 0 | H45: 0 | I45: 0 | K45: 0 | L45: 0 | M45: 0 | N45: 0 | O45: 0 | P45: 0 | Q45: 0
A46: DREV0302 | B46: STPIS | C46: 0 | D46: 0 | E46: 0 | F46: 0 | G46: 0 | H46: 0 | I46: 0 | K46: 0 | L46: 0 | M46: 0 | N46: 0 | O46: 0 | P46: 0 | Q46: 0
A47: DREV0303 | B47: F-Factor | C47: 0 | D47: 0 | E47: 0 | F47: 0 | G47: 0 | H47: 0 | I47: 0 | K47: 0 | L47: 0 | M47: 0 | N47: 0 | O47: 0 | P47: 0 | Q47: 0
A48: DREV0304 | B48: S-Factor True up | C48: 0 | D48: 0 | E48: 0 | F48: 0 | G48: 0 | H48: 0 | I48: 0 | K48: 0 | L48: 0 | M48: 0 | N48: 0 | O48: 0 | P48: 0 | Q48: 0
A49: DREV0305 | B49: Other | C49: 1064657.175 | D49: 1034006.649 | K49: 0 | L49: 0 | M49: 0 | N49: 0 | O49: 0 | P49: 0 | Q49: 0
A50: DREV03 | B50: Total revenue of incentive schemes | C50: =SUM(C45:C49) -> 1064657.175 | D50: 1034006.649 | E50: 0 | F50: 0 | G50: 0 | H50: 0 | I50: 0 | K50: =SUM(K45:K49) -> 0 | L50: 0 | M50: 0 | N50: 0 | O50: 0 | P50: 0 | Q50: 0

Sheet 3.2 Operating expenditure
B1: =INDEX(dms_Worksheet_List,MATCH(dms_Model,dms_Model_List)) -> REGULATORY REPORTING STATEMENT
B2: =INDEX(dms_TradingNameFull_List,MATCH(dms_TradingName,dms_TradingName_List)) -> Essential Energy
B3: =CONCATENATE("REGULATORY PERIOD FROM ", FRCP_y1," TO ",dms_MultiYear_FinalYear_Result) -> REGULATORY PERIOD FROM 2024-25 TO 2028-29
B4: 3.2 OPERATING EXPENDITURE
B6: There are TWO tables on this worksheet. Both ROWS and COLUMNS have been grouped for ease of navigation. see the Instructions sheet on how to group or ungroup tables.
B8: 3.2.1 - OPEX CATEGORIES
B9: CURRENT OPEX CATEGORIES AND COST ALLOCATIONS
C10: Standard control services | K10: Alternative control services
C11: =CONCATENATE("EXPENDITURE ($0's, real ", dms_DollarReal, ")") -> EXPENDITURE ($0's, real June 2024) | K11: =CONCATENATE("EXPENDITURE ($0's, real ", dms_DollarReal, ")") -> EXPENDITURE ($0's, real June 2024)
C12: =CRCP_y4 -> 2022-23 | D12: =CRCP_y5 -> 2023-24 | E12: =FRCP_y1 -> 2024-25 | F12: =FRCP_y2 -> 2025-26 | G12: =FRCP_y3 -> 2026-27 | H12: =FRCP_y4 -> 2027-28 | I12: =FRCP_y5 -> 2028-29 | K12: =CRCP_y4 -> 2022-23 | L12: =CRCP_y5 -> 2023-24 | M12: =FRCP_y1 -> 2024-25 | N12: =FRCP_y2 -> 2025-26 | O12: =FRCP_y3 -> 2026-27 | P12: =FRCP_y4 -> 2027-28 | Q12: =FRCP_y5 -> 2028-29
A13: DOPEX0101 | B13: Routine (Preventative) Maintenance | C13: 85373009.69 | D13: 86004425.64 | E13: 86635841.59 | F13: 89018045.54 | G13: 89957005.12 | H13: 88062205.34 | I13: 87359696.94
A14: DOPEX0102 | B14: Non-Routine (Corrective) Maintenance | C14: 85122372.24 | D14: 85751934.48 | E14: 86381496.73 | F14: 88756707.01 | G14: 89692910 | H14: 87803672.96 | I14: 87103226.99
A15: DOPEX0103 | B15: Vegetation Management | C15: 198038229.8 | D15: 199502914 | E15: 200967598.2 | F15: 206493553.7 | G15: 208671641.3 | H15: 204276308.4 | I15: 202646712.4
A16: DOPEX0104 | B16: Emergency Response | C16: 75743950.22 | D16: 76304149.97 | E16: 76864349.71 | F16: 78977869.4 | G16: 79810925.52 | H16: 78129836.6 | I16: 77506562.79
A17: DOPEX0105 | B17: Other network costs | C17: 241252.021 | D17: 243036.3129 | E17: 244820.6049 | F17: 251552.3755 | G17: 254205.7421 | H17: 248851.3066 | I17: 246866.1175
A18: DOPEX0106 | B18: Public Lighting | K18: 13953784.22 | L18: 12986801.17 | M18: 9344303.081 | N18: 9326208.506 | O18: 9244253.398 | P18: 9001957.777 | Q18: 8872974.654
A19: DOPEX0107 | B19: Metering | K19: 28005789.11 | L19: 26665872.73 | M19: 24594301.61 | N19: 24385141.1 | O19: 24063220.46 | P19: 23606688.8 | Q19: 23176547.69
A20: DOPEX0108 | B20: Ancillary Network Services | K20: 31922522.39 | L20: 30826051.82 | M20: 52472912.36 | N20: 58721758.22 | O20: 62102479.49 | P20: 64742538.95 | Q20: 67994490.81
A21: DOPEX0109
A22: DOPEX0110
A23: DOPEX0111
A24: DOPEX0112
A25: DOPEX0113
A26: DOPEX0114
A27: DOPEX0115
A28: DOPEX0116
A29: DOPEX0117
A30: DOPEX0118
A31: DOPEX0119
A32: DOPEX0120
A33: DOPEX0121
A34: DOPEX0122
A35: DOPEX0123
A36: DOPEX0124
A37: DOPEX0125
A38: DOPEX0126
A39: DOPEX0127
A40: DOPEX0128
A41: DOPEX0129
A42: DOPEX0130
A43: DOPEX0131
A44: DOPEX0132
A45: DOPEX0133
A46: DOPEX0134
A47: DOPEX0135
A48: DOPEX0136
A49: DOPEX0137
A50: DOPEX0138
A51: DOPEX0139
A52: DOPEX0140
A53: DOPEX0141
A54: DOPEX0142
A55: DOPEX0143
A56: DOPEX0144
A57: DOPEX0145
A58: DOPEX0146
A59: DOPEX0147
A60: DOPEX0148
A61: DOPEX0149
A62: DOPEX01 | B62: Total opex | C62: =SUM(C13:C61) -> 444518814 | D62: 447806460.4 | E62: 451094106.8 | F62: 463497728 | G62: 468386687.6 | H62: 458520874.6 | I62: 454863065.2 | K62: =SUM(K13:K61) -> 73882095.71 | L62: 70478725.73 | M62: 86411517.06 | N62: 92433107.82 | O62: 95409953.34 | P62: 97351185.53 | Q62: 100044013.1
B65: 3.2.2 - OPEX CONSISTENCY
B66: OPEX CONSISTENCY - CURRENT COST ALLOCATION APPROACH
C67: Standard control services | K67: Alternative control services
C68: =CONCATENATE("EXPENDITURE ($0's, real ", dms_DollarReal, ")") -> EXPENDITURE ($0's, real June 2024) | K68: =CONCATENATE("EXPENDITURE ($0's, real ", dms_DollarReal, ")") -> EXPENDITURE ($0's, real June 2024)
C69: =CRCP_y4 -> 2022-23 | D69: =CRCP_y5 -> 2023-24 | E69: =FRCP_y1 -> 2024-25 | F69: =FRCP_y2 -> 2025-26 | G69: =FRCP_y3 -> 2026-27 | H69: =FRCP_y4 -> 2027-28 | I69: =FRCP_y5 -> 2028-29 | K69: =CRCP_y4 -> 2022-23 | L69: =CRCP_y5 -> 2023-24 | M69: =FRCP_y1 -> 2024-25 | N69: =FRCP_y2 -> 2025-26 | O69: =FRCP_y3 -> 2026-27 | P69: =FRCP_y4 -> 2027-28 | Q69: =FRCP_y5 -> 2028-29
A70: DOPEX0201 | B70: Opex for network services | C70: 444518814 | D70: 447806460.4 | E70: 451094106.8 | F70: 463497728 | G70: 468386687.6 | H70: 458520874.6 | I70: 454863065.2
A71: DOPEX0202 | B71: Opex for metering | K71: 28005789.11 | L71: 26665872.73 | M71: 24594301.61 | N71: 24385141.1 | O71: 24063220.46 | P71: 23606688.8 | Q71: 23176547.69
A72: DOPEX0203 | B72: Opex for connection services | K72: 31922522.39 | L72: 30826051.82 | M72: 52472912.36 | N72: 58721758.22 | O72: 62102479.49 | P72: 64742538.95 | Q72: 67994490.81
A73: DOPEX0204 | B73: Opex for public lighting | K73: 13953784.22 | L73: 12986801.17 | M73: 9344303.081 | N73: 9326208.506 | O73: 9244253.398 | P73: 9001957.777 | Q73: 8872974.654
A74: DOPEX0205 | B74: Opex for amounts payable for easement levy or similar direct charges on DNSP
A75: DOPEX0207 | B75: Opex for transmission connection point planning

Sheet 3.3 Assets (RAB)
B1: =INDEX(dms_Worksheet_List,MATCH(dms_Model,dms_Model_List)) -> REGULATORY REPORTING STATEMENT
B2: =INDEX(dms_TradingNameFull_List,MATCH(dms_TradingName,dms_TradingName_List)) -> Essential Energy
B3: =CONCATENATE("REGULATORY PERIOD FROM ", FRCP_y1," TO ",dms_MultiYear_FinalYear_Result) -> REGULATORY PERIOD FROM 2024-25 TO 2028-29
B4: 3.3 ASSETS
B6: There are FOUR tables on this worksheet. Both ROWS and COLUMNS in each have been grouped (and sub-grouped) for ease of navigation. see the Instructions sheet on how to group or ungroup tables.
B8: 3.3.1 - REGULATORY ASSET BASE VALUES
C9: Network services | K9: Standard control services | S9: Alternative control services
C10: =CONCATENATE(" VALUE Forecast ($0's, real ", dms_DollarReal, ")") -> VALUE Forecast ($0's, real June 2024) | K10: =CONCATENATE(" VALUE Forecast ($0's, real ", dms_DollarReal, ")") -> VALUE Forecast ($0's, real June 2024) | S10: =CONCATENATE(" VALUE Forecast ($0's, real ", dms_DollarReal, ")") -> VALUE Forecast ($0's, real June 2024)
C11: =CRCP_y4 -> 2022-23 | D11: =CRCP_y5 -> 2023-24 | E11: =FRCP_y1 -> 2024-25 | F11: =FRCP_y2 -> 2025-26 | G11: =FRCP_y3 -> 2026-27 | H11: =FRCP_y4 -> 2027-28 | I11: =FRCP_y5 -> 2028-29 | K11: =CRCP_y4 -> 2022-23 | L11: =CRCP_y5 -> 2023-24 | M11: =FRCP_y1 -> 2024-25 | N11: =FRCP_y2 -> 2025-26 | O11: =FRCP_y3 -> 2026-27 | P11: =FRCP_y4 -> 2027-28 | Q11: =FRCP_y5 -> 2028-29 | S11: =CRCP_y4 -> 2022-23 | T11: =CRCP_y5 -> 2023-24 | U11: =FRCP_y1 -> 2024-25 | V11: =FRCP_y2 -> 2025-26 | W11: =FRCP_y3 -> 2026-27 | X11: =FRCP_y4 -> 2027-28 | Y11: =FRCP_y5 -> 2028-29
B12: For total asset base:
A13: DRAB0101 | B13: Opening value | C13: 1.010677413e+10 | D13: 1.023078933e+10 | E13: 1.027549311e+10 | F13: 1.045165476e+10 | G13: 1.059766307e+10 | H13: 1.073429883e+10 | I13: 1.08552514e+10 | K13: 1.010677413e+10 | L13: 1.023078933e+10 | M13: 1.027549311e+10 | N13: 1.045165476e+10 | O13: 1.059766307e+10 | P13: 1.073429883e+10 | Q13: 1.08552514e+10 | S13: 90780796.64 | T13: 85996763.99 | U13: 79558649.16 | V13: 72874338.08 | W13: 65390080.71 | X13: 57459500.73 | Y13: 49562699.11
A14: DRAB0102 | B14: Inflation addition | C14: 0 | D14: 0 | E14: 0 | F14: 0 | G14: 0 | H14: 0 | I14: 0 | K14: 0 | L14: 0 | M14: 0 | N14: 0 | O14: 0 | P14: 0 | Q14: 0 | S14: 0 | T14: 0 | U14: 0 | V14: 0 | W14: 0 | X14: 0 | Y14: 0
A15: DRAB0103 | B15: Straight line depreciation | C15: -426280049.5 | D15: -432707022.9 | E15: -366309123 | F15: -389723441.3 | G15: -402962459.9 | H15: -412995486.7 | I15: -425893839 | K15: -426280049.5 | L15: -432707022.9 | M15: -366309123 | N15: -389723441.3 | O15: -402962459.9 | P15: -412995486.7 | Q15: -425893839 | S15: -9624386.851 | T15: -9996414.835 | U15: -9740810.026 | V15: -9944576.622 | W15: -10108597.91 | X15: -10253799.1 | Y15: -10410932.27
A16: DRAB0105 | B16: Actual additions (recognised in RAB) | C16: 553512932.4 | D16: 480145229 | E16: 543884435.6 | F16: 537901402.7 | G16: 541629646.2 | H16: 535826731.3 | I16: 546610692.7 | K16: 553512932.4 | L16: 480145229 | M16: 543884435.6 | N16: 537901402.7 | O16: 541629646.2 | P16: 535826731.3 | Q16: 546610692.7 | S16: 4840354.199 | T16: 3558300.012 | U16: 3056498.94 | V16: 2460319.259 | W16: 2178017.918 | X16: 2356997.482 | Y16: 2065467.654
A17: DRAB0106 | B17: Disposals | C17: -3217683.85 | D17: -2734429.264 | E17: -1413661.39 | F17: -2169651.805 | G17: -2031421.674 | H17: -1878681.407 | I17: -1504788.268 | K17: -3217683.85 | L17: -2734429.264 | M17: -1413661.39 | N17: -2169651.805 | O17: -2031421.674 | P17: -1878681.407 | Q17: -1504788.268 | S17: 0 | T17: 0 | U17: 0 | V17: 0 | W17: 0 | X17: 0 | Y17: 0
A18: DRAB0107 | B18: Closing value | C18: =SUM(C13+C14+C15+C16+C17) -> 1.023078933e+10 | D18: 1.027549311e+10 | E18: 1.045165476e+10 | F18: 1.059766307e+10 | G18: 1.073429883e+10 | H18: 1.08552514e+10 | I18: 1.097446346e+10 | K18: =SUM(K13+K14+K15+K16+K17) -> 1.023078933e+10 | L18: 1.027549311e+10 | M18: 1.045165476e+10 | N18: 1.059766307e+10 | O18: 1.073429883e+10 | P18: 1.08552514e+10 | Q18: 1.097446346e+10 | S18: =SUM(S13+S14+S15+S16+S17) -> 85996763.99 | T18: 79558649.16 | U18: 72874338.08 | V18: 65390080.71 | W18: 57459500.73 | X18: 49562699.11 | Y18: 41217234.5
B21: 3.3.2 - ASSET VALUE ROLL FORWARD
C22: Network services | K22: Standard control services | S22: Alternative control services
C23: =CONCATENATE(" VALUE Forecast ($0's, real ", dms_DollarReal, ")") -> VALUE Forecast ($0's, real June 2024) | K23: =CONCATENATE(" VALUE Forecast ($0's, real ", dms_DollarReal, ")") -> VALUE Forecast ($0's, real June 2024) | S23: =CONCATENATE(" VALUE Forecast ($0's, real ", dms_DollarReal, ")") -> VALUE Forecast ($0's, real June 2024)
C24: =CRCP_y4 -> 2022-23 | D24: =CRCP_y5 -> 2023-24 | E24: =FRCP_y1 -> 2024-25 | F24: =FRCP_y2 -> 2025-26 | G24: =FRCP_y3 -> 2026-27 | H24: =FRCP_y4 -> 2027-28 | I24: =FRCP_y5 -> 2028-29 | K24: =CRCP_y4 -> 2022-23 | L24: =CRCP_y5 -> 2023-24 | M24: =FRCP_y1 -> 2024-25 | N24: =FRCP_y2 -> 2025-26 | O24: =FRCP_y3 -> 2026-27 | P24: =FRCP_y4 -> 2027-28 | Q24: =FRCP_y5 -> 2028-29 | S24: =CRCP_y4 -> 2022-23 | T24: =CRCP_y5 -> 2023-24 | U24: =FRCP_y1 -> 2024-25 | V24: =FRCP_y2 -> 2025-26 | W24: =FRCP_y3 -> 2026-27 | X24: =FRCP_y4 -> 2027-28 | Y24: =FRCP_y5 -> 2028-29
B25: For overhead network assets less than 33kV:
A26: DRAB0201 | B26: Opening value | C26: 5006164295 | D26: 5106978674 | E26: 5240863525 | F26: 5364737424 | G26: 5487583560 | H26: 5612262473 | I26: 5732569914 | K26: 5006164295 | L26: 5106978674 | M26: 5240863525 | N26: 5364737424 | O26: 5487583560 | P26: 5612262473 | Q26: 5732569914 | S26: 0 | T26: 0 | U26: 0 | V26: 0 | W26: 0 | X26: 0 | Y26: 0
A27: DRAB0202 | B27: Inflation addition | C27: 0 | D27: 0 | E27: 0 | F27: 0 | G27: 0 | H27: 0 | I27: 0 | K27: 0 | L27: 0 | M27: 0 | N27: 0 | O27: 0 | P27: 0 | Q27: 0 | S27: 0 | T27: 0 | U27: 0 | V27: 0 | W27: 0 | X27: 0 | Y27: 0
A28: DRAB0203 | B28: Straight line depreciation | C28: -129816847.8 | D28: -136348179.1 | E28: -135663151.3 | F28: -140311687 | G28: -145033353.2 | H28: -149847481.9 | I28: -154675532.1 | K28: -129816847.8 | L28: -136348179.1 | M28: -135663151.3 | N28: -140311687 | O28: -145033353.2 | P28: -149847481.9 | Q28: -154675532.1 | S28: 0 | T28: 0 | U28: 0 | V28: 0 | W28: 0 | X28: 0 | Y28: 0
A29: DRAB0205 | B29: Actual additions (recognised in RAB) | C29: 230631226.5 | D29: 270233029.5 | E29: 259537050.7 | F29: 263157823.1 | G29: 269712266.4 | H29: 270154922.6 | I29: 271422067.8 | K29: 230631226.5 | L29: 270233029.5 | M29: 259537050.7 | N29: 263157823.1 | O29: 269712266.4 | P29: 270154922.6 | Q29: 271422067.8 | S29: 0 | T29: 0 | U29: 0 | V29: 0 | W29: 0 | X29: 0 | Y29: 0
A30: DRAB0206 | B30: Disposals | C30: 0 | D30: 0 | E30: 0 | F30: 0 | G30: 0 | H30: 0 | I30: 0 | K30: 0 | L30: 0 | M30: 0 | N30: 0 | O30: 0 | P30: 0 | Q30: 0 | S30: 0 | T30: 0 | U30: 0 | V30: 0 | W30: 0 | X30: 0 | Y30: 0
A31: DRAB0207 | B31: Closing value | C31: =SUM(C26+C27+C28+C29+C30) -> 5106978674 | D31: 5240863525 | E31: 5364737424 | F31: 5487583560 | G31: 5612262473 | H31: 5732569914 | I31: 5849316449 | K31: =SUM(K26+K27+K28+K29+K30) -> 5106978674 | L31: 5240863525 | M31: 5364737424 | N31: 5487583560 | O31: 5612262473 | P31: 5732569914 | Q31: 5849316449 | S31: =SUM(S26+S27+S28+S29+S30) -> 0 | T31: 0 | U31: 0 | V31: 0 | W31: 0 | X31: 0 | Y31: 0
B32: For underground network assets less than 33kV:
A33: DRAB0301 | B33: Opening value | C33: 766996057 | D33: 763926553.2 | E33: 761690713.1 | F33: 765156311 | G33: 768811137.7 | H33: 770837041.4 | I33: 772496475.7 | K33: 766996057 | L33: 763926553.2 | M33: 761690713.1 | N33: 765156311 | O33: 768811137.7 | P33: 770837041.4 | Q33: 772496475.7 | S33: 0 | T33: 0 | U33: 0 | V33: 0 | W33: 0 | X33: 0 | Y33: 0
A34: DRAB0302 | B34: Inflation addition | C34: 0 | D34: 0 | E34: 0 | F34: 0 | G34: 0 | H34: 0 | I34: 0 | K34: 0 | L34: 0 | M34: 0 | N34: 0 | O34: 0 | P34: 0 | Q34: 0 | S34: 0 | T34: 0 | U34: 0 | V34: 0 | W34: 0 | X34: 0 | Y34: 0
A35: DRAB0303 | B35: Straight line depreciation | C35: -19397919.79 | D35: -20373865.84 | E35: -20271505.37 | F35: -20966114.15 | G35: -21671650.48 | H35: -22391003.05 | I35: -23112435.84 | K35: -19397919.79 | L35: -20373865.84 | M35: -20271505.37 | N35: -20966114.15 | O35: -21671650.48 | P35: -22391003.05 | Q35: -23112435.84 | S35: 0 | T35: 0 | U35: 0 | V35: 0 | W35: 0 | X35: 0 | Y35: 0
A36: DRAB0305 | B36: Actual additions (recognised in RAB) | C36: 16328416 | D36: 18138025.7 | E36: 23737103.32 | F36: 24620940.78 | G36: 23697554.22 | H36: 24050437.29 | I36: 23223654.43 | K36: 16328416 | L36: 18138025.7 | M36: 23737103.32 | N36: 24620940.78 | O36: 23697554.22 | P36: 24050437.29 | Q36: 23223654.43 | S36: 0 | T36: 0 | U36: 0 | V36: 0 | W36: 0 | X36: 0 | Y36: 0
A37: DRAB0306 | B37: Disposals | C37: 0 | D37: 0 | E37: 0 | F37: 0 | G37: 0 | H37: 0 | I37: 0 | K37: 0 | L37: 0 | M37: 0 | N37: 0 | O37: 0 | P37: 0 | Q37: 0 | S37: 0 | T37: 0 | U37: 0 | V37: 0 | W37: 0 | X37: 0 | Y37: 0
A38: DRAB0307 | B38: Closing value | C38: =SUM(C33+C34+C35+C36+C37) -> 763926553.2 | D38: 761690713.1 | E38: 765156311 | F38: 768811137.7 | G38: 770837041.4 | H38: 772496475.7 | I38: 772607694.2 | K38: =SUM(K33+K34+K35+K36+K37) -> 763926553.2 | L38: =SUM(L33+L34+L35+L36+L37) -> 761690713.1 | M38: 765156311 | N38: 768811137.7 | O38: 770837041.4 | P38: 772496475.7 | Q38: 772607694.2 | S38: =SUM(S33+S34+S35+S36+S37) -> 0 | T38: 0 | U38: 0 | V38: 0 | W38: 0 | X38: 0 | Y38: 0
B39: For distribution substations and transformers:
A40: DRAB0401 | B40: Opening value | C40: 505641792.7 | D40: 526841622.5 | E40: 538575595.6 | F40: 539127924.3 | G40: 544504371.3 | H40: 552707316.6 | I40: 554831168.2 | K40: 505641792.7 | L40: 526841622.5 | M40: 538575595.6 | N40: 539127924.3 | O40: 544504371.3 | P40: 552707316.6 | Q40: 554831168.2 | S40: 0 | T40: 0 | U40: 0 | V40: 0 | W40: 0 | X40: 0 | Y40: 0
A41: DRAB0402 | B41: Inflation addition | C41: 0 | D41: 0 | E41: 0 | F41: 0 | G41: 0 | H41: 0 | I41: 0 | K41: 0 | L41: 0 | M41: 0 | N41: 0 | O41: 0 | P41: 0 | Q41: 0 | S41: 0 | T41: 0 | U41: 0 | V41: 0 | W41: 0 | X41: 0 | Y41: 0
A42: DRAB0403 | B42: Straight line depreciation | C42: -23363095.83 | D42: -24301785.69 | E42: -22216210.42 | F42: -22668278.53 | G42: -23127370.16 | H42: -23602149.79 | I42: -23998925.72 | K42: -23363095.83 | L42: -24301785.69 | M42: -22216210.42 | N42: -22668278.53 | O42: -23127370.16 | P42: -23602149.79 | Q42: -23998925.72 | S42: 0 | T42: 0 | U42: 0 | V42: 0 | W42: 0 | X42: 0 | Y42: 0
A43: DRAB0405 | B43: Actual additions (recognised in RAB) | C43: 44562925.57 | D43: 36035758.79 | E43: 22768539.16 | F43: 28044725.48 | G43: 31330315.44 | H43: 25726001.37 | I43: 30957897.65 | K43: 44562925.57 | L43: 36035758.79 | M43: 22768539.16 | N43: 28044725.48 | O43: 31330315.44 | P43: 25726001.37 | Q43: 30957897.65 | S43: 0 | T43: 0 | U43: 0 | V43: 0 | W43: 0 | X43: 0 | Y43: 0
A44: DRAB0406 | B44: Disposals | C44: 0 | D44: 0 | E44: 0 | F44: 0 | G44: 0 | H44: 0 | I44: 0 | K44: 0 | L44: 0 | M44: 0 | N44: 0 | O44: 0 | P44: 0 | Q44: 0 | S44: 0 | T44: 0 | U44: 0 | V44: 0 | W44: 0 | X44: 0 | Y44: 0
A45: DRAB0407 | B45: Closing value | C45: =SUM(C40+C41+C42+C43+C44) -> 526841622.5 | D45: 538575595.6 | E45: 539127924.3 | F45: 544504371.3 | G45: 552707316.6 | H45: 554831168.2 | I45: =SUM(I40+I41+I42+I43+I44) -> 561790140.1 | K45: =SUM(K40+K41+K42+K43+K44) -> 526841622.5 | L45: =SUM(L40+L41+L42+L43+L44) -> 538575595.6 | M45: 539127924.3 | N45: 544504371.3 | O45: 552707316.6 | P45: 554831168.2 | Q45: =SUM(Q40+Q41+Q42+Q43+Q44) -> 561790140.1 | S45: =SUM(S40+S41+S42+S43+S44) -> 0 | T45: 0 | U45: 0 | V45: 0 | W45: 0 | X45: 0 | Y45: 0
B46: For overhead network assets 33kV and above:
A47: DRAB0501 | B47: Opening value | C47: 1132859322 | D47: 1117239083 | E47: 1106648332 | F47: 1106937099 | G47: 1107798200 | H47: 1106146852 | I47: 1104455434 | K47: 1132859322 | L47: 1117239083 | M47: 1106648332 | N47: 1106937099 | O47: 1107798200 | P47: 1106146852 | Q47: 1104455434 | S47: 0 | T47: 0 | U47: 0 | V47: 0 | W47: 0 | X47: 0 | Y47: 0
A48: DRAB0502 | B48: Inflation addition | C48: 0 | D48: 0 | E48: 0 | F48: 0 | G48: 0 | H48: 0 | I48: 0 | K48: 0 | L48: 0 | M48: 0 | N48: 0 | O48: 0 | P48: 0 | Q48: 0 | S48: 0 | T48: 0 | U48: 0 | V48: 0 | W48: 0 | X48: 0 | Y48: 0
A49: DRAB0503 | B49: Straight line depreciation | C49: -35106453.67 | D49: -36279950.89 | E49: -34050202.61 | F49: -34662190.58 | G49: -35295274.21 | H49: -35895010.52 | I49: -36504642.53 | K49: -35106453.67 | L49: -36279950.89 | M49: -34050202.61 | N49: -34662190.58 | O49: -35295274.21 | P49: -35895010.52 | Q49: -36504642.53 | S49: 0 | T49: 0 | U49: 0 | V49: 0 | W49: 0 | X49: 0 | Y49: 0
A50: DRAB0505 | B50: Actual additions (recognised in RAB) | C50: 19486214.99 | D50: 25689199.15 | E50: 34338969.69 | F50: 35523291.76 | G50: 33643926.63 | H50: 34203591.78 | I50: 34141070.42 | K50: 19486214.99 | L50: 25689199.15 | M50: 34338969.69 | N50: 35523291.76 | O50: 33643926.63 | P50: 34203591.78 | Q50: 34141070.42 | S50: 0 | T50: 0 | U50: 0 | V50: 0 | W50: 0 | X50: 0 | Y50: 0
A51: DRAB0506 | B51: Disposals | C51: 0 | D51: 0 | E51: 0 | F51: 0 | G51: 0 | H51: 0 | I51: 0 | K51: 0 | L51: 0 | M51: 0 | N51: 0 | O51: 0 | P51: 0 | Q51: 0 | S51: 0 | T51: 0 | U51: 0 | V51: 0 | W51: 0 | X51: 0 | Y51: 0
A52: DRAB0507 | B52: Closing value | C52: =SUM(C47+C48+C49+C50+C51) -> 1117239083 | D52: 1106648332 | E52: 1106937099 | F52: 1107798200 | G52: 1106146852 | H52: 1104455434 | I52: 1102091862 | K52: =SUM(K47+K48+K49+K50+K51) -> 1117239083 | L52: 1106648332 | M52: 1106937099 | N52: 1107798200 | O52: 1106146852 | P52: 1104455434 | Q52: 1102091862 | S52: =SUM(S47+S48+S49+S50+S51) -> 0 | T52: 0 | U52: 0 | V52: 0 | W52: 0 | X52: 0 | Y52: 0
B53: For underground network assets 33kV and above:
A54: DRAB0601 | B54: Opening value | C54: 23838807.76 | D54: 26322527.63 | E54: 25497351.95 | F54: 24717947.86 | G54: 23924268.69 | H54: 23122705.95 | I54: 22302970.7 | K54: 23838807.76 | L54: 26322527.63 | M54: 25497351.95 | N54: 24717947.86 | O54: 23924268.69 | P54: 23122705.95 | Q54: 22302970.7 | S54: 0 | T54: 0 | U54: 0 | V54: 0 | W54: 0 | X54: 0 | Y54: 0
A55: DRAB0602 | B55: Inflation addition | C55: 0 | D55: 0 | E55: 0 | F55: 0 | G55: 0 | H55: 0 | I55: 0 | K55: 0 | L55: 0 | M55: 0 | N55: 0 | O55: 0 | P55: 0 | Q55: 0 | S55: 0 | T55: 0 | U55: 0 | V55: 0 | W55: 0 | X55: 0 | Y55: 0
A56: DRAB0603 | B56: Straight line depreciation | C56: -826456.9442 | D56: -854082.7742 | E56: -801591.259 | F56: -815998.3452 | G56: -830902.0541 | H56: -845020.7186 | I56: -859372.342 | K56: -826456.9442 | L56: -854082.7742 | M56: -801591.259 | N56: -815998.3452 | O56: -830902.0541 | P56: -845020.7186 | Q56: -859372.342 | S56: 0 | T56: 0 | U56: 0 | V56: 0 | W56: 0 | X56: 0 | Y56: 0
A57: DRAB0605 | B57: Actual additions (recognised in RAB) | C57: 3310176.81 | D57: 28907.09325 | E57: 22187.17341 | F57: 22319.17426 | G57: 29339.31386 | H57: 25285.47058 | I57: 29544.01403 | K57: 3310176.81 | L57: 28907.09325 | M57: 22187.17341 | N57: 22319.17426 | O57: 29339.31386 | P57: 25285.47058 | Q57: 29544.01403 | S57: 0 | T57: 0 | U57: 0 | V57: 0 | W57: 0 | X57: 0 | Y57: 0
A58: DRAB0606 | B58: Disposals | C58: 0 | D58: 0 | E58: 0 | F58: 0 | G58: 0 | H58: 0 | I58: 0 | K58: 0 | L58: 0 | M58: 0 | N58: 0 | O58: 0 | P58: 0 | Q58: 0 | S58: 0 | T58: 0 | U58: 0 | V58: 0 | W58: 0 | X58: 0 | Y58: 0
A59: DRAB0607 | B59: Closing value | C59: =SUM(C54+C55+C56+C57+C58) -> 26322527.63 | D59: 25497351.95 | E59: 24717947.86 | F59: 23924268.69 | G59: 23122705.95 | H59: 22302970.7 | I59: 21473142.37 | K59: =SUM(K54+K55+K56+K57+K58) -> 26322527.63 | L59: 25497351.95 | M59: 24717947.86 | N59: 23924268.69 | O59: 23122705.95 | P59: 22302970.7 | Q59: 21473142.37 | S59: =SUM(S54+S55+S56+S57+S58) -> 0 | T59: 0 | U59: 0 | V59: 0 | W59: 0 | X59: 0 | Y59: 0
B60: Zone substations and transformers
A61: DRAB0701 | B61: Opening value | C61: 1780353425 | D61: 1765487179 | E61: 1758009114 | F61: 1748454224 | G61: 1733460423 | H61: 1716782451 | I61: 1688890360 | K61: 1780353425 | L61: 1765487179 | M61: 1758009114 | N61: 1748454224 | O61: 1733460423 | P61: 1716782451 | Q61: 1688890360 | S61: 0 | T61: 0 | U61: 0 | V61: 0 | W61: 0 | X61: 0 | Y61: 0
A62: DRAB0702 | B62: Inflation addition | C62: 0 | D62: 0 | E62: 0 | F62: 0 | G62: 0 | H62: 0 | I62: 0 | K62: 0 | L62: 0 | M62: 0 | N62: 0 | O62: 0 | P62: 0 | Q62: 0 | S62: 0 | T62: 0 | U62: 0 | V62: 0 | W62: 0 | X62: 0 | Y62: 0
A63: DRAB0703 | B63: Straight line depreciation | C63: -78215581.68 | D63: -81358152.09 | E63: -74376008.78 | F63: -75889454.22 | G63: -77426413.13 | H63: -79015892.77 | I63: -80344229.57 | K63: -78215581.68 | L63: -81358152.09 | M63: -74376008.78 | N63: -75889454.22 | O63: -77426413.13 | P63: -79015892.77 | Q63: -80344229.57 | S63: 0 | T63: 0 | U63: 0 | V63: 0 | W63: 0 | X63: 0 | Y63: 0
A64: DRAB0705 | B64: Actual additions (recognised in RAB) | C64: 63349335.63 | D64: 73880087.56 | E64: 64821118.33 | F64: 60895653.83 | G64: 60748441.4 | H64: 51123801.29 | I64: 61118453.92 | K64: 63349335.63 | L64: 73880087.56 | M64: 64821118.33 | N64: 60895653.83 | O64: 60748441.4 | P64: 51123801.29 | Q64: 61118453.92 | S64: 0 | T64: 0 | U64: 0 | V64: 0 | W64: 0 | X64: 0 | Y64: 0
A65: DRAB0706 | B65: Disposals | C65: 0 | D65: 0 | E65: 0 | F65: 0 | G65: 0 | H65: 0 | I65: 0 | K65: 0 | L65: 0 | M65: 0 | N65: 0 | O65: 0 | P65: 0 | Q65: 0 | S65: 0 | T65: 0 | U65: 0 | V65: 0 | W65: 0 | X65: 0 | Y65: 0
A66: DRAB0707 | B66: Closing value | C66: =SUM(C61+C62+C63+C64+C65) -> 1765487179 | D66: 1758009114 | E66: 1748454224 | F66: 1733460423 | G66: 1716782451 | H66: 1688890360 | I66: 1669664584 | K66: =SUM(K61+K62+K63+K64+K65) -> 1765487179 | L66: 1758009114 | M66: 1748454224 | N66: 1733460423 | O66: 1716782451 | P66: 1688890360 | Q66: 1669664584 | S66: =SUM(S61+S62+S63+S64+S65) -> 0 | T66: 0 | U66: 0 | V66: 0 | W66: 0 | X66: 0 | Y66: 0
B67: For easements:
A68: DRAB0801 | B68: Opening value | C68: 130543499.7 | D68: 134414391.8 | E68: 143114572.7 | F68: 143114572.7 | G68: 143114572.7 | H68: 143114572.7 | I68: 143114572.7 | K68: 130543499.7 | L68: 134414391.8 | M68: 143114572.7 | N68: 143114572.7 | O68: 143114572.7 | P68: 143114572.7 | Q68: 143114572.7 | S68: 0 | T68: 0 | U68: 0 | V68: 0 | W68: 0 | X68: 0 | Y68: 0
A69: DRAB0802 | B69: Inflation addition | C69: 0 | D69: 0 | E69: 0 | F69: 0 | G69: 0 | H69: 0 | I69: 0 | K69: 0 | L69: 0 | M69: 0 | N69: 0 | O69: 0 | P69: 0 | Q69: 0 | S69: 0 | T69: 0 | U69: 0 | V69: 0 | W69: 0 | X69: 0 | Y69: 0
A70: DRAB0803 | B70: Actual additions (recognised in RAB) | C70: 3870892.137 | D70: 8700180.912 | E70: 0 | F70: 0 | G70: 0 | H70: 0 | I70: 0 | K70: 3870892.137 | L70: 8700180.912 | M70: 0 | N70: 0 | O70: 0 | P70: 0 | Q70: 0 | S70: 0 | T70: 0 | U70: 0 | V70: 0 | W70: 0 | X70: 0 | Y70: 0
A71: DRAB0804 | B71: Disposals | C71: 0 | D71: 0 | E71: 0 | F71: 0 | G71: 0 | H71: 0 | I71: 0 | K71: 0 | L71: 0 | M71: 0 | N71: 0 | O71: 0 | P71: 0 | Q71: 0 | S71: 0 | T71: 0 | U71: 0 | V71: 0 | W71: 0 | X71: 0 | Y71: 0
A72: DRAB0805 | B72: Closing value | C72: =SUM(C68+C69+C70+C71) -> 134414391.8 | D72: 143114572.7 | E72: 143114572.7 | F72: 143114572.7 | G72: 143114572.7 | H72: 143114572.7 | I72: 143114572.7 | K72: =SUM(K68+K69+K70+K71) -> 134414391.8 | L72: 143114572.7 | M72: 143114572.7 | N72: 143114572.7 | O72: 143114572.7 | P72: 143114572.7 | Q72: 143114572.7 | S72: =SUM(S68+S69+S70+S71) -> 0 | T72: 0 | U72: 0 | V72: 0 | W72: 0 | X72: 0 | Y72: 0
B73: For meters:
A74: DRAB0901 | B74: Opening value | C74: 43551268.72 | D74: 48387503.45 | E74: 47894569.3 | F74: 52685342.07 | G74: 57189582.22 | H74: 61340431.41 | I74: 65063968.33 | K74: 43551268.72 | L74: 48387503.45 | M74: 47894569.3 | N74: 52685342.07 | O74: 57189582.22 | P74: 61340431.41 | Q74: 65063968.33 | S74: 90628736.05 | T74: 85861678.64 | U74: 79440884.22 | V74: 72773844.28 | W74: 65306858.06 | X74: 57393549.22 | Y74: 49514018.75
A75: DRAB0902 | B75: Inflation addition | C75: 0 | D75: 0 | E75: 0 | F75: 0 | G75: 0 | H75: 0 | I75: 0 | K75: 0 | L75: 0 | M75: 0 | N75: 0 | O75: 0 | P75: 0 | Q75: 0 | S75: 0 | T75: 0 | U75: 0 | V75: 0 | W75: 0 | X75: 0 | Y75: 0
A76: DRAB0903 | B76: Straight line depreciation | C76: -3093464.545 | D76: -3375231.977 | E76: -2587677.581 | F76: -2872843.394 | G76: -3157956.383 | H76: -3440430.532 | I76: -3717306.91 | K76: -3093464.545 | L76: -3375231.977 | M76: -2587677.581 | N76: -2872843.394 | O76: -3157956.383 | P76: -3440430.532 | Q76: -3717306.91 | S76: -9607411.609 | T76: -9979094.43 | U76: -9723538.881 | V76: -9927305.477 | W76: -10091326.76 | X76: -10236527.96 | Y76: -10393661.12
A77: DRAB0905 | B77: Actual additions (recognised in RAB) | C77: 7929699.278 | D77: 2882297.83 | E77: 7378450.345 | F77: 7377083.545 | G77: 7308805.571 | H77: 7163967.455 | I77: 6938976.025 | K77: 7929699.278 | L77: 2882297.83 | M77: 7378450.345 | N77: 7377083.545 | O77: 7308805.571 | P77: 7163967.455 | Q77: 6938976.025 | S77: 4840354.199 | T77: 3558300.012 | U77: 3056498.94 | V77: 2460319.259 | W77: 2178017.918 | X77: 2356997.482 | Y77: 2065467.654
A78: DRAB0906 | B78: Disposals | C78: 0 | D78: 0 | E78: 0 | F78: 0 | G78: 0 | H78: 0 | I78: 0 | K78: 0 | L78: 0 | M78: 0 | N78: 0 | O78: 0 | P78: 0 | Q78: 0 | S78: 0 | T78: 0 | U78: 0 | V78: 0 | W78: 0 | X78: 0 | Y78: 0
A79: DRAB0907 | B79: Closing value | C79: =SUM(C74+C75+C76+C77+C78) -> 48387503.45 | D79: 47894569.3 | E79: 52685342.07 | F79: 57189582.22 | G79: 61340431.41 | H79: 65063968.33 | I79: 68285637.45 | K79: =SUM(K74+K75+K76+K77+K78) -> 48387503.45 | L79: 47894569.3 | M79: 52685342.07 | N79: 57189582.22 | O79: 61340431.41 | P79: 65063968.33 | Q79: 68285637.45 | S79: =SUM(S74+S75+S76+S77+S78) -> 85861678.64 | T79: 79440884.22 | U79: 72773844.28 | V79: 65306858.06 | W79: 57393549.22 | X79: 49514018.75 | Y79: 41185825.28
B80: For “other” asset items with long lives:
A81: DRAB1001 | B81: Opening value | C81: 393023442.5 | D81: 385959794.6 | E81: 346014766.2 | F81: 379162322.3 | G81: 406586578.7 | H81: 435538257.1 | I81: 467344274.5 | K81: 393023442.5 | L81: 385959794.6 | M81: 346014766.2 | N81: 379162322.3 | O81: 406586578.7 | P81: 435538257.1 | Q81: 467344274.5 | S81: 152060.5881 | T81: 135085.3456 | U81: 117764.9411 | V81: 100493.7965 | W81: 83222.65194 | X81: 65951.50735 | Y81: 48680.36276
A82: DRAB1002 | B82: Inflation addition | C82: 0 | D82: 0 | E82: 0 | F82: 0 | G82: 0 | H82: 0 | I82: 0 | K82: 0 | L82: 0 | M82: 0 | N82: 0 | O82: 0 | P82: 0 | Q82: 0 | S82: 0 | T82: 0 | U82: 0 | V82: 0 | W82: 0 | X82: 0 | Y82: 0
A83: DRAB1003 | B83: Straight line depreciation | C83: -24039534.71 | D83: -25068202.26 | E83: -8980456.267 | F83: -10168298.54 | G83: -11323822.53 | H83: -12291584.28 | I83: -13460088.06 | K83: -24039534.71 | L83: -25068202.26 | M83: -8980456.267 | N83: -10168298.54 | O83: -11323822.53 | P83: -12291584.28 | Q83: -13460088.06 | S83: -16975.24245 | T83: -17320.40452 | U83: -17271.14459 | V83: -17271.14459 | W83: -17271.14459 | X83: -17271.14459 | Y83: -17271.14459
A84: DRAB1005 | B84: Actual additions (recognised in RAB) | C84: 16975886.72 | D84: -14876826.13 | E84: 42128012.41 | F84: 37592554.96 | G84: 40275500.94 | H84: 44097601.62 | I84: 47317061.67 | K84: 16975886.72 | L84: -14876826.13 | M84: 42128012.41 | N84: 37592554.96 | O84: 40275500.94 | P84: 44097601.62 | Q84: 47317061.67 | S84: 0 | T84: 0 | U84: 0 | V84: 0 | W84: 0 | X84: 0 | Y84: 0
A85: DRAB1006 | B85: Disposals | C85: 0 | D85: 0 | E85: 0 | F85: 0 | G85: 0 | H85: 0 | I85: 0 | K85: 0 | L85: 0 | M85: 0 | N85: 0 | O85: 0 | P85: 0 | Q85: 0 | S85: 0 | T85: 0 | U85: 0 | V85: 0 | W85: 0 | X85: 0 | Y85: 0
A86: DRAB1007 | B86: Closing value | C86: =SUM(C81+C82+C83+C84+C85) -> 385959794.6 | D86: 346014766.2 | E86: 379162322.3 | F86: 406586578.7 | G86: 435538257.1 | H86: 467344274.5 | I86: 501201248.1 | K86: =SUM(K81+K82+K83+K84+K85) -> 385959794.6 | L86: 346014766.2 | M86: 379162322.3 | N86: 406586578.7 | O86: 435538257.1 | P86: 467344274.5 | Q86: 501201248.1 | S86: =SUM(S81+S82+S83+S84+S85) -> 135085.3456 | T86: 117764.9411 | U86: 100493.7965 | V86: 83222.65194 | W86: 65951.50735 | X86: 48680.36276 | Y86: 31409.21817
B87: For “other” asset items with short lives:
A88: DRAB1101 | B88: Opening value | C88: 323802223.1 | D88: 355232003.5 | E88: 307184570.5 | F88: 327561594.1 | G88: 324690375.9 | H88: 312446732.8 | I88: 304182260.6 | K88: 323802223.1 | L88: 355232003.5 | M88: 307184570.5 | N88: 327561594.1 | O88: 324690375.9 | P88: 312446732.8 | Q88: 304182260.6 | S88: 0 | T88: 0 | U88: 0 | V88: 0 | W88: 0 | X88: 0 | Y88: 0
A89: DRAB1102 | B89: Inflation addition | C89: 0 | D89: 0 | E89: 0 | F89: 0 | G89: 0 | H89: 0 | I89: 0 | K89: 0 | L89: 0 | M89: 0 | N89: 0 | O89: 0 | P89: 0 | Q89: 0 | S89: 0 | T89: 0 | U89: 0 | V89: 0 | W89: 0 | X89: 0 | Y89: 0
A90: DRAB1103 | B90: Straight line depreciation | C90: -112420694.5 | D90: -104747572.3 | E90: -67362319.39 | F90: -81368576.51 | G90: -85095717.74 | H90: -85666913.08 | I90: -89221305.91 | K90: -112420694.5 | L90: -104747572.3 | M90: -67362319.39 | N90: -81368576.51 | O90: -85095717.74 | P90: -85666913.08 | Q90: -89221305.91 | S90: 0 | T90: 0 | U90: 0 | V90: 0 | W90: 0 | X90: 0 | Y90: 0
A91: DRAB1105 | B91: Actual additions (recognised in RAB) | C91: 147068158.8 | D91: 59434568.53 | E91: 89153004.46 | F91: 80667010.08 | G91: 74883496.27 | H91: 79281122.35 | I91: 71461966.79 | K91: 147068158.8 | L91: 59434568.53 | M91: 89153004.46 | N91: 80667010.08 | O91: 74883496.27 | P91: 79281122.35 | Q91: 71461966.79 | S91: 0 | T91: 0 | U91: 0 | V91: 0 | W91: 0 | X91: 0 | Y91: 0
A92: DRAB1106 | B92: Disposals | C92: -3217683.85 | D92: -2734429.264 | E92: -1413661.39 | F92: -2169651.805 | G92: -2031421.674 | H92: -1878681.407 | I92: -1504788.268 | K92: -3217683.85 | L92: -2734429.264 | M92: -1413661.39 | N92: -2169651.805 | O92: -2031421.674 | P92: -1878681.407 | Q92: -1504788.268 | S92: 0 | T92: 0 | U92: 0 | V92: 0 | W92: 0 | X92: 0 | Y92: 0
A93: DRAB1107 | B93: Closing value | C93: =SUM(C88+C89+C90+C91+C92) -> 355232003.5 | D93: 307184570.5 | E93: 327561594.1 | F93: 324690375.9 | G93: 312446732.8 | H93: 304182260.6 | I93: 284918133.2 | K93: =SUM(K88+K89+K90+K91+K92) -> 355232003.5 | L93: 307184570.5 | M93: 327561594.1 | N93: 324690375.9 | O93: 312446732.8 | P93: 304182260.6 | Q93: 284918133.2 | S93: =SUM(S88+S89+S90+S91+S92) -> 0 | T93: 0 | U93: 0 | V93: 0 | W93: 0 | X93: 0 | Y93: 0
B97: 3.3.3 - TOTAL DISAGGREGATED RAB ASSET VALUES
C98: Network services | K98: Standard control services | S98: Alternative control services
C99: =CONCATENATE(" VALUE Forecast ($0's, real ", dms_DollarReal, ")") -> VALUE Forecast ($0's, real June 2024) | K99: =CONCATENATE(" VALUE Forecast ($0's, real ", dms_DollarReal, ")") -> VALUE Forecast ($0's, real June 2024) | S99: =CONCATENATE(" VALUE Forecast ($0's, real ", dms_DollarReal, ")") -> VALUE Forecast ($0's, real June 2024)
C100: =CRCP_y4 -> 2022-23 | D100: =CRCP_y5 -> 2023-24 | E100: =FRCP_y1 -> 2024-25 | F100: =FRCP_y2 -> 2025-26 | G100: =FRCP_y3 -> 2026-27 | H100: =FRCP_y4 -> 2027-28 | I100: =FRCP_y5 -> 2028-29 | K100: =CRCP_y4 -> 2022-23 | L100: =CRCP_y5 -> 2023-24 | M100: =FRCP_y1 -> 2024-25 | N100: =FRCP_y2 -> 2025-26 | O100: =FRCP_y3 -> 2026-27 | P100: =FRCP_y4 -> 2027-28 | Q100: =FRCP_y5 -> 2028-29 | S100: =CRCP_y4 -> 2022-23 | T100: =CRCP_y5 -> 2023-24 | U100: =FRCP_y1 -> 2024-25 | V100: =FRCP_y2 -> 2025-26 | W100: =FRCP_y3 -> 2026-27 | X100: =FRCP_y4 -> 2027-28 | Y100: =FRCP_y5 -> 2028-29
A101: DRAB1201 | B101: Overhead network assets less than 33kV (wires and poles) | C101: 5056571485 | D101: 5173921099 | E101: 5302800474 | F101: 5426160492 | G101: 5549923017 | H101: 5672416193 | I101: 5790943182 | K101: 5056571485 | L101: 5173921099 | M101: 5302800474 | N101: 5426160492 | O101: 5549923017 | P101: 5672416193 | Q101: 5790943182 | S101: 0 | T101: 0 | U101: 0 | V101: 0 | W101: 0 | X101: 0 | Y101: 0
A102: DRAB1202 | B102: Underground network assets less than 33kV (cables) | C102: 765461305.1 | D102: 762808633.2 | E102: 763423512.1 | F102: 766983724.4 | G102: 769824089.5 | H102: 771666758.5 | I102: 772552085 | K102: 765461305.1 | L102: 762808633.2 | M102: 763423512.1 | N102: 766983724.4 | O102: 769824089.5 | P102: 771666758.5 | Q102: 772552085 | S102: 0 | T102: 0 | U102: 0 | V102: 0 | W102: 0 | X102: 0 | Y102: 0
A103: DRAB1203 | B103: Distribution substations including transformers | C103: 516241707.6 | D103: 532708609 | E103: 538851760 | F103: 541816147.8 | G103: 548605843.9 | H103: 553769242.4 | I103: 558310654.1 | K103: 516241707.6 | L103: 532708609 | M103: 538851760 | N103: 541816147.8 | O103: 548605843.9 | P103: 553769242.4 | Q103: 558310654.1 | S103: 0 | T103: 0 | U103: 0 | V103: 0 | W103: 0 | X103: 0 | Y103: 0
A104: DRAB1204 | B104: Overhead network assets 33kV and above (wires and towers / poles etc) | C104: 1125049203 | D104: 1111943708 | E104: 1106792715 | F104: 1107367649 | G104: 1106972526 | H104: 1105301143 | I104: 1103273648 | K104: 1125049203 | L104: 1111943708 | M104: 1106792715 | N104: 1107367649 | O104: 1106972526 | P104: 1105301143 | Q104: 1103273648 | S104: 0 | T104: 0 | U104: 0 | V104: 0 | W104: 0 | X104: 0 | Y104: 0
A105: DRAB1205 | B105: Underground network assets 33kV and above(cables, ducts etc) | C105: 25080667.7 | D105: 25909939.79 | E105: 25107649.9 | F105: 24321108.28 | G105: 23523487.32 | H105: 22712838.33 | I105: 21888056.54 | K105: 25080667.7 | L105: 25909939.79 | M105: 25107649.9 | N105: 24321108.28 | O105: 23523487.32 | P105: 22712838.33 | Q105: 21888056.54 | S105: 0 | T105: 0 | U105: 0 | V105: 0 | W105: 0 | X105: 0 | Y105: 0
A106: DRAB1206 | B106: Zone substations and transformers | C106: 1772920302 | D106: 1761748146 | E106: 1753231669 | F106: 1740957323 | G106: 1725121437 | H106: 1702836406 | I106: 1679277472 | K106: 1772920302 | L106: 1761748146 | M106: 1753231669 | N106: 1740957323 | O106: 1725121437 | P106: 1702836406 | Q106: 1679277472 | S106: 0 | T106: 0 | U106: 0 | V106: 0 | W106: 0 | X106: 0 | Y106: 0
A107: DRAB1207 | B107: Easements | C107: 132478945.8 | D107: 138764482.3 | E107: 143114572.7 | F107: 143114572.7 | G107: 143114572.7 | H107: 143114572.7 | I107: 143114572.7 | K107: 132478945.8 | L107: 138764482.3 | M107: 143114572.7 | N107: 143114572.7 | O107: 143114572.7 | P107: 143114572.7 | Q107: 143114572.7 | S107: 0 | T107: 0 | U107: 0 | V107: 0 | W107: 0 | X107: 0 | Y107: 0
A108: DRAB1208 | B108: Meters | C108: 45969386.08 | D108: 48141036.38 | E108: 50289955.69 | F108: 54937462.14 | G108: 59265006.81 | H108: 63202199.87 | I108: 66674802.89 | K108: 45969386.08 | L108: 48141036.38 | M108: 50289955.69 | N108: 54937462.14 | O108: 59265006.81 | P108: 63202199.87 | Q108: 66674802.89 | S108: 88245207.35 | T108: 82651281.43 | U108: 76107364.25 | V108: 69040351.17 | W108: 61350203.64 | X108: 53453783.98 | Y108: 45349922.01
A109: DRAB1209 | B109: “Other” assets with long lives | C109: 389491618.5 | D109: 365987280.4 | E109: 362588544.2 | F109: 392874450.5 | G109: 421062417.9 | H109: 451441265.8 | I109: 484272761.3 | K109: 389491618.5 | L109: 365987280.4 | M109: 362588544.2 | N109: 392874450.5 | O109: 421062417.9 | P109: 451441265.8 | Q109: 484272761.3 | S109: 143572.9669 | T109: 126425.1434 | U109: 109129.3688 | V109: 91858.22424 | W109: 74587.07965 | X109: 57315.93506 | Y109: 40044.79047
A110: DRAB1210 | B110: “Other” assets with short lives | C110: 339517113.3 | D110: 331208287 | E110: 317373082.3 | F110: 326125985 | G110: 318568554.3 | H110: 308314496.7 | I110: 294550196.9 | K110: 339517113.3 | L110: 331208287 | M110: 317373082.3 | N110: 326125985 | O110: 318568554.3 | P110: 308314496.7 | Q110: 294550196.9 | S110: 0 | T110: 0 | U110: 0 | V110: 0 | W110: 0 | X110: 0 | Y110: 0
A111: DRAB13 | B111: Value of Capital Contributions or Contributed Assets (included in the above) | C111: 139318151.2 | D111: 120708012.8 | E111: 16785810.42 | F111: 15206446.34 | G111: 15641279.75 | H111: 15428402.41 | I111: 16707686.71 | K111: 139318151.2 | L111: 120708012.8 | M111: 16785810.42 | N111: 15206446.34 | O111: 15641279.75 | P111: 15428402.41 | Q111: 16707686.71 | S111: 0 | T111: 0 | U111: 0 | V111: 0 | W111: 0 | X111: 0 | Y111: 0
B114: 3.3.4 - ASSET LIVES
C115: Network services | K115: Standard control services | S115: Alternative control services
C116: Forecast ( years ) | K116: Forecast ( years ) | S116: Forecast ( years )
C117: =CRCP_y4 -> 2022-23 | D117: =CRCP_y5 -> 2023-24 | E117: =FRCP_y1 -> 2024-25 | F117: =FRCP_y2 -> 2025-26 | G117: =FRCP_y3 -> 2026-27 | H117: =FRCP_y4 -> 2027-28 | I117: =FRCP_y5 -> 2028-29 | K117: =CRCP_y4 -> 2022-23 | L117: =CRCP_y5 -> 2023-24 | M117: =FRCP_y1 -> 2024-25 | N117: =FRCP_y2 -> 2025-26 | O117: =FRCP_y3 -> 2026-27 | P117: =FRCP_y4 -> 2027-28 | Q117: =FRCP_y5 -> 2028-29 | S117: =CRCP_y4 -> 2022-23 | T117: =CRCP_y5 -> 2023-24 | U117: =FRCP_y1 -> 2024-25 | V117: =FRCP_y2 -> 2025-26 | W117: =FRCP_y3 -> 2026-27 | X117: =FRCP_y4 -> 2027-28 | Y117: =FRCP_y5 -> 2028-29
B118: Estimated service life of new assets
A119: DRAB1401 | B119: Overhead network assets less than 33kV (wires and poles) | C119: 53 | D119: 53 | E119: 53 | F119: 53 | G119: 53 | H119: 53 | I119: 53 | K119: 53 | L119: 53 | M119: 53 | N119: 53 | O119: 53 | P119: 53 | Q119: 53 | S119: 0 | T119: 0 | U119: 0 | V119: 0 | W119: 0 | X119: 0 | Y119: 0
A120: DRAB1402 | B120: Underground network assets less than 33kV (cables) | C120: 54 | D120: 54 | E120: 54 | F120: 54 | G120: 54 | H120: 54 | I120: 54 | K120: 54 | L120: 54 | M120: 54 | N120: 54 | O120: 54 | P120: 54 | Q120: 54 | S120: 0 | T120: 0 | U120: 0 | V120: 0 | W120: 0 | X120: 0 | Y120: 0
A121: DRAB1403 | B121: Distribution substations including transformers | C121: 45 | D121: 45 | E121: 45 | F121: 45 | G121: 45 | H121: 45 | I121: 45 | K121: 45 | L121: 45 | M121: 45 | N121: 45 | O121: 45 | P121: 45 | Q121: 45 | S121: 0 | T121: 0 | U121: 0 | V121: 0 | W121: 0 | X121: 0 | Y121: 0
A122: DRAB1404 | B122: Overhead network assets 33kV and above (wires and towers / poles etc) | C122: 55 | D122: 55 | E122: 55 | F122: 55 | G122: 55 | H122: 55 | I122: 55 | K122: 55 | L122: 55 | M122: 55 | N122: 55 | O122: 55 | P122: 55 | Q122: 55 | S122: 0 | T122: 0 | U122: 0 | V122: 0 | W122: 0 | X122: 0 | Y122: 0
A123: DRAB1405 | B123: Underground network assets 33kV and above(cables, ducts etc) | C123: 54 | D123: 54 | E123: 54 | F123: 54 | G123: 54 | H123: 54 | I123: 54 | K123: 54 | L123: 54 | M123: 54 | N123: 54 | O123: 54 | P123: 54 | Q123: 54 | S123: 0 | T123: 0 | U123: 0 | V123: 0 | W123: 0 | X123: 0 | Y123: 0
A124: DRAB1406 | B124: Zone substations and transformers | C124: 46 | D124: 46 | E124: 46 | F124: 46 | G124: 46 | H124: 46 | I124: 46 | K124: 46 | L124: 46 | M124: 46 | N124: 46 | O124: 46 | P124: 46 | Q124: 46 | S124: 0 | T124: 0 | U124: 0 | V124: 0 | W124: 0 | X124: 0 | Y124: 0
A125: DRAB1407 | B125: Meters | C125: 26 | D125: 26 | E125: 26 | F125: 26 | G125: 26 | H125: 26 | I125: 26 | K125: 26 | L125: 26 | M125: 26 | N125: 26 | O125: 26 | P125: 26 | Q125: 26 | S125: 15 | T125: 15 | U125: 15 | V125: 15 | W125: 15 | X125: 15 | Y125: 15
A126: DRAB1408 | B126: “Other” assets with long lives | C126: 42 | D126: 43 | E126: 42 | F126: 42 | G126: 41 | H126: 40 | I126: 40 | K126: 42 | L126: 43 | M126: 42 | N126: 42 | O126: 41 | P126: 40 | Q126: 40 | S126: 15 | T126: 15 | U126: 15 | V126: 15 | W126: 15 | X126: 15 | Y126: 15
A127: DRAB1409 | B127: “Other” assets with short lives | C127: 7 | D127: 7 | E127: 7 | F127: 7 | G127: 7 | H127: 7 | I127: 7 | K127: 7 | L127: 7 | M127: 7 | N127: 7 | O127: 7 | P127: 7 | Q127: 7 | S127: 0 | T127: 0 | U127: 0 | V127: 0 | W127: 0 | X127: 0 | Y127: 0
B128: Estimated residual service life
A129: DRAB1501 | B129: Overhead network assets less than 33kV (wires and poles) | C129: 7.102837571 | D129: 6.561959563 | E129: 6.017331526 | F129: 5.475653158 | G129: 4.955003923 | H129: 4.430681615 | I129: 3.924835903 | K129: 7.102837571 | L129: 6.561959563 | M129: 6.017331526 | N129: 5.475653158 | O129: 4.955003923 | P129: 4.430681615 | Q129: 3.924835903 | S129: 0 | T129: 0 | U129: 0 | V129: 0 | W129: 0 | X129: 0 | Y129: 0
A130: DRAB1502 | B130: Underground network assets less than 33kV (cables) | C130: 32.06729009 | D130: 31.10584266 | E130: 30.16743826 | F130: 29.22939807 | G130: 28.29219429 | H130: 27.35627081 | I130: 26.42170573 | K130: 32.06729009 | L130: 31.10584266 | M130: 30.16743826 | N130: 29.22939807 | O130: 28.29219429 | P130: 27.35627081 | Q130: 26.42170573 | S130: 0 | T130: 0 | U130: 0 | V130: 0 | W130: 0 | X130: 0 | Y130: 0
A131: DRAB1503 | B131: Distribution substations including transformers | C131: 18.84037892 | D131: 18.4163213 | E131: 17.79741603 | F131: 17.25977201 | G131: 16.74503946 | H131: 16.20137135 | I131: 15.70310787 | K131: 18.84037892 | L131: 18.4163213 | M131: 17.79741603 | N131: 17.25977201 | O131: 16.74503946 | P131: 16.20137135 | Q131: 15.70310787 | S131: 0 | T131: 0 | U131: 0 | V131: 0 | W131: 0 | X131: 0 | Y131: 0
A132: DRAB1504 | B132: Overhead network assets 33kV and above (wires and towers / poles etc) | C132: 10.96113251 | D132: 9.988799419 | E132: 9.315264118 | F132: 8.616224687 | G132: 7.819367392 | H132: 7.168138457 | I132: 6.348878321 | K132: 10.96113251 | L132: 9.988799419 | M132: 9.315264118 | N132: 8.616224687 | O132: 7.819367392 | P132: 7.168138457 | Q132: 6.348878321 | S132: 0 | T132: 0 | U132: 0 | V132: 0 | W132: 0 | X132: 0 | Y132: 0
A133: DRAB1505 | B133: Underground network assets 33kV and above (cables, ducts etc) | C133: 34.95698994 | D133: 33.9697546 | E133: 32.98267549 | F133: 31.99575265 | G133: 31.00898615 | H133: 30.02237602 | I133: 29.03592231 | K133: 34.95698994 | L133: 33.9697546 | M133: 32.98267549 | N133: 31.99575265 | O133: 31.00898615 | P133: 30.02237602 | Q133: 29.03592231 | S133: 0 | T133: 0 | U133: 0 | V133: 0 | W133: 0 | X133: 0 | Y133: 0
A134: DRAB1506 | B134: Zone substations and transformers | C134: 20.20836805 | D134: 19.53239802 | E134: 18.78372716 | F134: 18.03895721 | G134: 17.2875522 | H134: 16.52036297 | I134: 15.79517795 | K134: 20.20836805 | L134: 19.53239802 | M134: 18.78372716 | N134: 18.03895721 | O134: 17.2875522 | P134: 16.52036297 | Q134: 15.79517795 | S134: 0 | T134: 0 | U134: 0 | V134: 0 | W134: 0 | X134: 0 | Y134: 0
A135: DRAB1507 | B135: Meters | C135: 17.77477897 | D135: 17.66487307 | E135: 17.91102845 | F135: 18.02736869 | G135: 18.04412616 | H135: 17.98070235 | I135: 17.84989861 | K135: 17.77477897 | L135: 17.66487307 | M135: 17.91102845 | N135: 18.02736869 | O135: 18.04412616 | P135: 17.98070235 | Q135: 17.84989861 | S135: 9.54108587 | T135: 8.799850068 | U135: 8.066613083 | V135: 7.326051929 | W135: 6.605996347 | X135: 5.976564387 | Y135: 5.377946477
A136: DRAB1508 | B136: “Other” assets with long lives | C136: 32.09361179 | D136: 33.43568057 | E136: 34.82672974 | F136: 34.15943001 | G136: 33.68340911 | H136: 33.25579937 | I136: 32.86797574 | K136: 32.09361179 | L136: 33.43568057 | M136: 34.82672974 | N136: 34.15943001 | O136: 33.68340911 | P136: 33.25579937 | Q136: 32.86797574 | S136: 8.922640439 | T136: 7.922640439 | U136: 6.922640439 | V136: 5.922640439 | W136: 4.922640439 | X136: 3.922640439 | Y136: 2.922640439
A137: DRAB1509 | B137: “Other” assets with short lives | C137: 4.24413296 | D137: 4.140116818 | E137: 4.185078274 | F137: 3.905702297 | G137: 3.683533751 | H137: 3.596949348 | I137: 3.408964107 | K137: 4.24413296 | L137: 4.140116818 | M137: 4.185078274 | N137: 3.905702297 | O137: 3.683533751 | P137: 3.596949348 | Q137: 3.408964107 | S137: 0 | T137: 0 | U137: 0 | V137: 0 | W137: 0 | X137: 0 | Y137: 0

Sheet 3.4 Operational data
B1: =INDEX(dms_Worksheet_List,MATCH(dms_Model,dms_Model_List)) -> REGULATORY REPORTING STATEMENT
B2: =INDEX(dms_TradingNameFull_List,MATCH(dms_TradingName,dms_TradingName_List)) -> Essential Energy
B3: =CONCATENATE("REGULATORY PERIOD FROM ", FRCP_y1," TO ",dms_MultiYear_FinalYear_Result) -> REGULATORY PERIOD FROM 2024-25 TO 2028-29
B4: 3.4 OPERATIONAL DATA
B6: There are TWO tables on this worksheet. Each table has been grouped for ease of navigation. See the Instructions sheet on how to group or ungroup tables.
B8: 3.4.1 - ENERGY DELIVERY
D9: Standard control services
D10: Forecast
C11: Units | D11: =CRCP_y4 -> 2022-23 | E11: =CRCP_y5 -> 2023-24 | F11: =FRCP_y1 -> 2024-25 | G11: =FRCP_y2 -> 2025-26 | H11: =FRCP_y3 -> 2026-27 | I11: =FRCP_y4 -> 2027-28 | J11: =FRCP_y5 -> 2028-29
A12: DOPED01 | B12: TOTAL ENERGY DELIVERED
B13: 3.4.1.1 - Energy grouping - delivery by chargeable quantity
A14: DOPED0201 | B14: Energy Delivery where time of use is not a determinant | C14: GWh | D14: 3163.276557 | E14: 2886.822417 | F14: 2662.600919 | G14: 2404.568865 | H14: 2143.677286 | I14: 1869.897416 | J14: 1595.214888
A15: DOPED0202 | B15: Energy Delivery at On-peak times | C15: GWh | D15: 870.3785365 | E15: 889.4021017 | F15: 950.1723402 | G15: 996.9830958 | H15: 1048.380835 | I15: 1089.595571 | J15: 1131.176758
A16: DOPED0203 | B16: Energy Delivery at Shoulder times | C16: GWh | D16: 3312.631567 | E16: 3472.686198 | F16: 3337.64888 | G16: 3488.966832 | H16: 3653.452897 | I16: 3789.919926 | J16: 3934.376415
A17: DOPED0204 | B17: Energy Delivery at Off-peak times | C17: GWh | D17: 4046.06336 | E17: 4139.342866 | F17: 4516.503468 | G17: 4721.970075 | H17: 4937.886652 | I17: 5097.852459 | J17: 5270.300578
A18: DOPED0205 | B18: Controlled load energy deliveries | C18: GWh | D18: 929.8199026 | E18: 913.8232924 | F18: 904.4028114 | G18: 890.3656913 | H18: 875.4285756 | I18: 860.4914644 | J18: 846.4543576
A19: DOPED0206 | B19: Energy Delivery to unmetered supplies | C19: GWh | D19: 71.55731085 | E19: 57.77305341 | F19: 57.27204071 | G19: 56.76351282 | H19: 57.15909602 | I19: 58.01648246 | J19: 58.88672969
B20: 3.4.1.2 - Energy - received from TNSP and other DNSPs by time of receipt
A21: DOPED0301 | B21: Energy into DNSP network at On-peak times | C21: GWh | D21: 1159.715736 | E21: 1143.813316 | F21: 1156.743673 | G21: 1160.020692 | H21: 1167.491664 | I21: 1161.943678 | J21: 1159.405252
A22: DOPED0302 | B22: Energy into DNSP network at Shoulder times | C22: GWh | D22: 2792.254305 | E22: 2753.965957 | F22: 2785.098452 | G22: 2792.988549 | H22: 2810.976452 | I22: 2797.618535 | J22: 2791.506752
A23: DOPED0303 | B23: Energy into DNSP network at Off-peak times | C23: GWh | D23: 5166.312774 | E23: 5095.470523 | F23: 5153.0728 | G23: 5167.671294 | H23: 5200.953053 | I23: 5176.237835 | J23: 5164.929629
A24: DOPED0304 | B24: Energy received from TNSP and other DNSPs not included in the above categories | C24: GWh
B25: 3.4.1.3 - Energy - received into DNSP system from embedded generation by time of receipt
A26: DOPED0401 | B26: Energy into DNSP network at On-peak times from non-residential embedded generation | C26: GWh | D26: 170.6689353 | E26: 170.6689353 | F26: 170.6689353 | G26: 170.6689353 | H26: 170.6689353 | I26: 170.6689353 | J26: 170.6689353
A27: DOPED0402 | B27: Energy into DNSP network at Shoulder times from non-residential embedded generation | C27: GWh | D27: 1308.59407 | E27: 1308.59407 | F27: 1308.59407 | G27: 1308.59407 | H27: 1308.59407 | I27: 1308.59407 | J27: 1308.59407
A28: DOPED0403 | B28: Energy into DNSP network at Off-peak times from non-residential embedded generation | C28: GWh | D28: 1199.023228 | E28: 1199.023228 | F28: 1199.023228 | G28: 1199.023228 | H28: 1199.023228 | I28: 1199.023228 | J28: 1199.023228
A29: DOPED0404 | B29: Energy received from embedded generation not included in above categories from non-residential embedded generation | C29: GWh
A30: DOPED0405 | B30: Energy into DNSP network at On-peak times from residential embedded generation | C30: GWh
A31: DOPED0406 | B31: Energy into DNSP network at Shoulder times from residential embedded generation | C31: GWh
A32: DOPED0407 | B32: Energy into DNSP network at Off-peak times from residential embedded generation | C32: GWh
A33: DOPED0408 | B33: Energy received from embedded generation not included in above categories from residential embedded generation | C33: GWh | D33: 1255.723008 | E33: 1345.645704 | F33: 1366 | G33: 1440.832034 | H33: 1549.783673 | I33: 1653.28967 | J33: 1753.81711
B34: 3.4.1.4 - Energy grouping - customer type or class
A35: DOPED0501 | B35: Residential customers energy deliveries | C35: GWh | D35: 4541.283528 | E35: 4470.151056 | F35: 4492.026294 | G35: 4485.495088 | H35: 4494.527054 | I35: 4503.393727 | J35: 4523.225153
A36: DOPED0502 | B36: Non residential customers not on demand tariffs energy deliveries | C36: GWh | D36: 1594.113983 | E36: 1619.938579 | F36: 1689.320292 | G36: 1770.811645 | H36: 1860.659627 | I36: 1931.307857 | J36: 2008.992591
A37: DOPED0503 | B37: Non-residential low voltage demand tariff customers energy deliveries | C37: GWh | D37: 2336.37724 | E37: 2320.388233 | F37: 2251.574738 | G37: 2233.360893 | H37: 2214.377918 | I37: 2165.80963 | J37: 2120.76019
A38: DOPED0504 | B38: Non-residential high voltage demand tariff customers energy deliveries | C38: GWh | D38: 3921.952483 | E38: 3949.37206 | F38: 3995.679136 | G38: 4069.950445 | H38: 4146.420742 | I38: 4165.262104 | J38: 4183.431792
A39: DOPED0505 | B39: Other Customer Class Energy Deliveries | C39: GWh
B43: 3.4.3 - SYSTEM DEMAND
D44: Standard control services
D45: Forecast
C46: Units | D46: =CRCP_y4 -> 2022-23 | E46: =CRCP_y5 -> 2023-24 | F46: =FRCP_y1 -> 2024-25 | G46: =FRCP_y2 -> 2025-26 | H46: =FRCP_y3 -> 2026-27 | I46: =FRCP_y4 -> 2027-28 | J46: =FRCP_y5 -> 2028-29
B47: 3.4.3.1 - Annual system maximum demand characteristics at the zone substation level – MW measure
A48: DOPSD0102 | B48: Non–coincident Summated Weather Adjusted System Annual Maximum Demand 10% POE | C48: MW | D48: 2700 | E48: 2736 | F48: 2788 | G48: 2811 | H48: 2831 | I48: 2853 | J48: 2874
A49: DOPSD0103 | B49: Non–coincident Summated Weather Adjusted System Annual Maximum Demand 50% POE | C49: MW | D49: 2373 | E49: 2402 | F49: 2449 | G49: 2463 | H49: 2477 | I49: 2491 | J49: 2506
A50: DOPSD0105 | B50: Coincident Weather Adjusted System Annual Maximum Demand 10% POE | C50: MW | D50: 2125 | E50: 2149 | F50: 2186 | G50: 2199 | H50: 2209 | I50: 2222 | J50: 2234
A51: DOPSD0106 | B51: Coincident Weather Adjusted System Annual Maximum Demand 50% POE | C51: MW | D51: 1868 | E51: 1887 | F51: 1920 | G51: 1927 | H51: 1933 | I51: 1940 | J51: 1948
B52: 3.4.3.2 - Annual system maximum demand characteristics at the transmission connection point – MW measure
A53: DOPSD0108 | B53: Non–coincident Summated Weather Adjusted System Annual Maximum Demand 10% POE | C53: MW | D53: 3347 | E53: 3376 | F53: 3406 | G53: 3435 | H53: 3465 | I53: 3494 | J53: 3523
A54: DOPSD0109 | B54: Non–coincident Summated Weather Adjusted System Annual Maximum Demand 50% POE | C54: MW | D54: 3055 | E54: 3082 | F54: 3109 | G54: 3136 | H54: 3163 | I54: 3190 | J54: 3217
A55: DOPSD0111 | B55: Coincident Weather Adjusted System Annual Maximum Demand 10% POE | C55: MW | D55: 2653 | E55: 2676 | F55: 2699 | G55: 2722 | H55: 2746 | I55: 2769 | J55: 2792
A56: DOPSD0112 | B56: Coincident Weather Adjusted System Annual Maximum Demand 50% POE | C56: MW | D56: 2443 | E56: 2470 | F56: 2497 | G56: 2524 | H56: 2552 | I56: 2579 | J56: 2606
B57: 3.4.3.3 - Annual system maximum demand characteristics at the zone substation level – MVA measure
A58: DOPSD0202 | B58: Non–coincident Summated Weather Adjusted System Annual Maximum Demand 10% POE | C58: MVA | D58: 2722 | E58: 2755 | F58: 2806 | G58: 2829 | H58: 2851 | I58: 2872 | J58: 2893
A59: DOPSD0203 | B59: Non–coincident Summated Weather Adjusted System Annual Maximum Demand 50% POE | C59: MVA | D59: 2399 | E59: 2421 | F59: 2467 | G59: 2482 | H59: 2498 | I59: 2511 | J59: 2526
A60: DOPSD0205 | B60: Coincident Weather Adjusted System Annual Maximum Demand 10% POE | C60: MVA | D60: 2138 | E60: 2158 | F60: 2193 | G60: 2207 | H60: 2218 | I60: 2230 | J60: 2242
A61: DOPSD0206 | B61: Coincident Weather Adjusted System Annual Maximum Demand 50% POE | C61: MVA | D61: 1887 | E61: 1897 | F61: 1928 | G61: 1937 | H61: 1945 | I61: 1950 | J61: 1958
B62: 3.4.3.4 - Annual system maximum demand characteristics at the transmission connection point – MVA measure
A63: DOPSD0208 | B63: Non–coincident Summated Weather Adjusted System Annual Maximum Demand 10% POE | C63: MVA | D63: 3353 | E63: 3381 | F63: 3410 | G63: 3439 | H63: 3470 | I63: 3499 | J63: 3528
A64: DOPSD0209 | B64: Non–coincident Summated Weather Adjusted System Annual Maximum Demand 50% POE | C64: MVA | D64: 3061 | E64: 3086 | F64: 3113 | G64: 3140 | H64: 3168 | I64: 3194 | J64: 3221
A65: DOPSD0211 | B65: Coincident Weather Adjusted System Annual Maximum Demand 10% POE | C65: MVA | D65: 2656 | E65: 2678 | F65: 2701 | G65: 2724 | H65: 2748 | I65: 2771 | J65: 2794
A66: DOPSD0212 | B66: Coincident Weather Adjusted System Annual Maximum Demand 50% POE | C66: MVA | D66: 2446 | E66: 2472 | F66: 2499 | G66: 2526 | H66: 2554 | I66: 2581 | J66: 2608
B67: 3.4.3.5 - Power factor conversion between MVA and MW
A68: DOPSD0301 | B68: Average overall network power factor conversion between MVA and MW | C68: Factor | D68: 0.993 | E68: 0.995 | F68: 0.996 | G68: 0.996 | H68: 0.996 | I68: 0.996 | J68: 0.996
A69: DOPSD0302 | B69: Average power factor conversion for low voltage distribution lines | C69: Factor | D69: 0.85 | E69: 0.85 | F69: 0.85 | G69: 0.85 | H69: 0.85 | I69: 0.85 | J69: 0.85
A70: DOPSD0303 | B70: Average power factor conversion for 3.3 kV lines | C70: Factor | D70: 0 | E70: 0 | F70: 0 | G70: 0 | H70: 0 | I70: 0 | J70: 0
A71: DOPSD0304 | B71: Average power factor conversion for 6.6 kV lines | C71: Factor | D71: 0.975 | E71: 0.975 | F71: 0.975 | G71: 0.975 | H71: 0.975 | I71: 0.975 | J71: 0.975
A72: DOPSD0305 | B72: Average power factor conversion for 7.6 kV lines | C72: Factor | D72: 0 | E72: 0 | F72: 0 | G72: 0 | H72: 0 | I72: 0 | J72: 0
A73: DOPSD0306 | B73: Average power factor conversion for 11 kV lines | C73: Factor | D73: 0.92 | E73: 0.92 | F73: 0.92 | G73: 0.92 | H73: 0.92 | I73: 0.92 | J73: 0.92
A74: DOPSD0307 | B74: Average power factor conversion for SWER lines | C74: Factor | D74: 1 | E74: 1 | F74: 1 | G74: 1 | H74: 1 | I74: 1 | J74: 1
A75: DOPSD0308 | B75: Average power factor conversion for 22 kV lines | C75: Factor | D75: 0.94 | E75: 0.94 | F75: 0.94 | G75: 0.94 | H75: 0.94 | I75: 0.94 | J75: 0.94
A76: DOPSD0309 | B76: Average power factor conversion for 33 kV lines | C76: Factor | D76: 0.96 | E76: 0.96 | F76: 0.96 | G76: 0.96 | H76: 0.96 | I76: 0.96 | J76: 0.96
A77: DOPSD0310 | B77: Average power factor conversion for 44 kV lines | C77: Factor | D77: 0 | E77: 0 | F77: 0 | G77: 0 | H77: 0 | I77: 0 | J77: 0
A78: DOPSD0311 | B78: Average power factor conversion for 66 kV lines | C78: Factor | D78: 0.98 | E78: 0.98 | F78: 0.98 | G78: 0.98 | H78: 0.98 | I78: 0.98 | J78: 0.98
A79: DOPSD0312 | B79: Average power factor conversion for 110 kV lines | C79: Factor | D79: 1 | E79: 1 | F79: 1 | G79: 1 | H79: 1 | I79: 1 | J79: 1
A80: DOPSD0313 | B80: Average power factor conversion for 132 kV lines | C80: Factor | D80: 0.98 | E80: 0.98 | F80: 0.98 | G80: 0.98 | H80: 0.98 | I80: 0.98 | J80: 0.98
A81: DOPSD0314 | B81: Average power factor conversion for 220 kV lines | C81: Factor | D81: 0.958 | E81: 0.956 | F81: 0.955 | G81: 0.953 | H81: 0.952 | I81: 0.95 | J81: 0.949
B82: 3.4.3.6 - Demand supplied (for customers charged on this basis) – MW measure
A83: DOPSD0401 | B83: Summated Chargeable Contracted Maximum Demand | C83: MW
A84: DOPSD0402 | B84: Summated Chargeable Measured Maximum Demand | C84: MW | D84: 470 | E84: 470 | F84: 470 | G84: 470 | H84: 470 | I84: 470 | J84: 470
B85: 3.4.3.7 - Demand supplied (for customers charged on this basis) – MVA measure
A86: DOPSD0403 | B86: Summated Chargeable Contracted Maximum Demand | C86: MVA | D86: 198.6646482 | E86: 138.5839908 | F86: 0 | G86: 0 | H86: 0 | I86: 0 | J86: 0
A87: DOPSD0404 | B87: Summated Chargeable Measured Maximum Demand | C87: MVA | D87: 35632.00691 | E87: 35790.86177 | F87: 36203.6236 | G87: 36473.93787 | H87: 36829.87568 | I87: 37076.39908 | J87: 37348.56719

Sheet 3.5 Physical assets
B1: =INDEX(dms_Worksheet_List,MATCH(dms_Model,dms_Model_List)) -> REGULATORY REPORTING STATEMENT
B2: =INDEX(dms_TradingNameFull_List,MATCH(dms_TradingName,dms_TradingName_List)) -> Essential Energy
B3: =CONCATENATE("REGULATORY PERIOD FROM ", FRCP_y1," TO ",dms_MultiYear_FinalYear_Result) -> REGULATORY PERIOD FROM 2024-25 TO 2028-29
B4: 3.5 PHYSICAL ASSETS DATA
B6: There are THREE tables on this worksheet. Each table has been grouped (and sub-grouped) for ease of navigation. See the Instructions sheet on how to group or ungroup tables.
B8: 3.5.1 - NETWORK CAPACITIES VARIABLES
D9: Forecast
C10: Units | D10: 2022-23 | E10: 2023-24 | F10: 2024-25 | G10: 2025-26 | H10: 2026-27 | I10: 2027-28 | J10: 2028-29
B11: CIRCUIT LENGTH
B12: 3.5.1.1 - Overhead network length of circuit at each voltage
A13: DPA0101 | B13: Overhead low voltage distribution | C13: km | D13: 25220.75038 | E13: 25137.7321 | F13: 25054.71383 | G13: 24971.69555 | H13: 24888.67727 | I13: 24805.65899 | J13: 24722.64072
A14: DPA0102 | B14: Overhead 2.2 kV | C14: km | D14: 0 | E14: 0 | F14: 0 | G14: 0 | H14: 0 | I14: 0 | J14: 0
A15: DPA0103 | B15: Overhead 7.6 kV | C15: km | D15: 18.80089822 | E15: 18.79316015 | F15: 18.78542207 | G15: 18.777684 | H15: 18.76994592 | I15: 18.76220785 | J15: 18.75446977
A16: DPA0104 | B16: Overhead 11 kV | C16: km | D16: 0 | E16: 0 | F16: 0 | G16: 0 | H16: 0 | I16: 0 | J16: 0
A17: DPA0105 | B17: Overhead SWER | C17: km | D17: 70309.97014 | E17: 70294.80931 | F17: 70279.64848 | G17: 70264.48765 | H17: 70249.32682 | I17: 70234.166 | J17: 70219.00517
A18: DPA0106 | B18: Overhead 22 kV | C18: km | D18: 29642.06534 | E18: 29637.09852 | F18: 29632.1317 | G18: 29627.16488 | H18: 29622.19806 | I18: 29617.23124 | J18: 29612.26442
A19: DPA0107 | B19: Overhead 33 kV | C19: km | D19: 42579.43351 | E19: 42598.09513 | F19: 42616.75675 | G19: 42635.41837 | H19: 42654.07999 | I19: 42672.74161 | J19: 42691.40322
A20: DPA0108 | B20: Overhead 44 kV | C20: km | D20: 5442.334571 | E20: 5453.498109 | F20: 5464.661647 | G20: 5475.825185 | H20: 5486.988723 | I20: 5498.152261 | J20: 5509.315799
A21: DPA0109 | B21: Overhead 66 kV | C21: km | D21: 0 | E21: 0 | F21: 0 | G21: 0 | H21: 0 | I21: 0 | J21: 0
A22: DPA0110 | B22: Overhead 132 kV | C22: km | D22: 7541.499717 | E22: 7528.705332 | F22: 7515.910947 | G22: 7503.116563 | H22: 7490.322178 | I22: 7477.527793 | J22: 7464.733408
A23: DPA0111 | B23: Overhead 6.6kv | C23: km | D23: 21.00973696 | E23: 21.00967131 | F23: 21.00960567 | G23: 21.00954003 | H23: 21.00947439 | I23: 21.00940874 | J23: 21.0093431
A24: DPA0112 | B24: Overhead 110kV | C24: km | D24: 2187.410127 | E24: 2197.893579 | F24: 2208.37703 | G24: 2218.860482 | H24: 2229.343934 | I24: 2239.827385 | J24: 2250.310837
A25: DPA0113 | B25: Overhead 220kV | C25: km | D25: 2.986014993 | E25: 2.987161657 | F25: 2.98830832 | G25: 2.989454984 | H25: 2.990601648 | I25: 2.991748311 | J25: 2.992894975
A26: DPA0114 | B26: Other | C26: km | D26: 0 | E26: 0 | F26: 0 | G26: 0 | H26: 0 | I26: 0 | J26: 0
A27: DPA01 | B27: Total overhead circuit km | D27: =SUM(D13:D26) -> 182966.2604 | E27: 182890.6221 | F27: 182814.9837 | G27: 182739.3454 | H27: 182663.707 | I27: 182588.0686 | J27: 182512.4303
B28: 3.5.1.2 - Underground network circuit length at each voltage
A29: DPA0201 | B29: Underground low voltage distribution | C29: km | D29: 7346.18001 | E29: 7572.063647 | F29: 7797.947285 | G29: 8023.830922 | H29: 8249.71456 | I29: 8475.598197 | J29: 8701.481835
A30: DPA0202 | B30: Underground 5 kV | C30: km | D30: 0 | E30: 0 | F30: 0 | G30: 0 | H30: 0 | I30: 0 | J30: 0
A31: DPA0203 | B31: Underground 6.6 Kv | C31: km | D31: 0.05 | E31: 0.05 | F31: 0.05 | G31: 0.05 | H31: 0.05 | I31: 0.05 | J31: 0.05
A32: DPA0204 | B32: Underground 7.6 kV | C32: km | D32: 0 | E32: 0 | F32: 0 | G32: 0 | H32: 0 | I32: 0 | J32: 0
A33: DPA0205 | B33: Underground 11 kV | C33: km | D33: 2500.818629 | E33: 2556.388816 | F33: 2611.959002 | G33: 2667.529189 | H33: 2723.099375 | I33: 2778.669562 | J33: 2834.239749
A34: DPA0206 | B34: Underground SWER | C34: km | D34: 41.55616429 | E34: 41.8635919 | F34: 42.17101952 | G34: 42.47844714 | H34: 42.78587476 | I34: 43.09330238 | J34: 43.40073
A35: DPA0207 | B35: Underground 22 kV | C35: km | D35: 389.6267253 | E35: 399.4045994 | F35: 409.1824735 | G35: 418.9603476 | H35: 428.7382217 | I35: 438.5160958 | J35: 448.29397
A36: DPA0208 | B36: Underground 33 kV | C36: km | D36: 52.93659554 | E36: 53.67373524 | F36: 54.41087494 | G36: 55.14801464 | H36: 55.88515435 | I36: 56.62229405 | J36: 57.35943375
A37: DPA0209 | B37: Underground 66 kV | C37: km | D37: 40.02963773 | E37: 40.89160658 | F37: 41.75357543 | G37: 42.61554428 | H37: 43.47751313 | I37: 44.33948198 | J37: 45.20145083
A38: DPA0210 | B38: Underground 110 kV | C38: km | D38: 0 | E38: 0 | F38: 0 | G38: 0 | H38: 0 | I38: 0 | J38: 0
A39: DPA0211 | B39: Underground 132 kV | C39: km | D39: 12.25 | E39: 12.325 | F39: 12.4 | G39: 12.475 | H39: 12.55 | I39: 12.625 | J39: 12.7
A40: DPA0212 | B40: Other | C40: km | D40: 0 | E40: 0 | F40: 0 | G40: 0 | H40: 0 | I40: 0 | J40: 0
A41: DPA02 | B41: Total underground circuit km | D41: =SUM(D29:D40) -> 10383.44776 | E41: 10676.661 | F41: 10969.87423 | G41: 11263.08746 | H41: 11556.3007 | I41: 11849.51393 | J41: 12142.72717
B43: CIRCUIT CAPACITY MVA
B44: 3.5.1.3 - Estimated overhead network weighted average MVA capacity by voltage class
A45: DPA0301 | B45: Overhead low voltage distribution | C45: MVA | D45: 0.08979398529 | E45: 0.08998709274 | F45: 0.09018020018 | G45: 0.09037330762 | H45: 0.09056641506 | I45: 0.09075952251 | J45: 0.09095262995
A46: DPA0302 | B46: Overhead 6.6 kV | C46: MVA | D46: 0.6684484985 | E46: 0.6684484985 | F46: 0.6684484985 | G46: 0.6684484985 | H46: 0.6684484985 | I46: 0.6684484985 | J46: 0.6684484985
A47: DPA0303 | B47: Overhead 7.6 kV | C47: MVA | D47: 0 | E47: 0 | F47: 0 | G47: 0 | H47: 0 | I47: 0 | J47: 0
A48: DPA0304 | B48: Overhead 11 kV | C48: MVA | D48: 1.251188952 | E48: 1.25657918 | F48: 1.261969408 | G48: 1.267359636 | H48: 1.272749864 | I48: 1.278140092 | J48: 1.28353032
A49: DPA0305 | B49: Overhead SWER | C49: MVA | D49: 0.2077994862 | E49: 0.207926219 | F49: 0.2080529518 | G49: 0.2081796846 | H49: 0.2083064174 | I49: 0.2084331502 | J49: 0.208559883
A50: DPA0306 | B50: Overhead 22 kV | C50: MVA | D50: 2.155552476 | E50: 2.160851368 | F50: 2.16615026 | G50: 2.171449152 | H50: 2.176748044 | I50: 2.182046936 | J50: 2.187345828
A51: DPA0307 | B51: Overhead 33 kV | C51: MVA | D51: 8.167971007 | E51: 8.205465356 | F51: 8.242959706 | G51: 8.280454055 | H51: 8.317948404 | I51: 8.355442753 | J51: 8.392937102
A52: DPA0308 | B52: Overhead 44 kV | C52: MVA | D52: 0 | E52: 0 | F52: 0 | G52: 0 | H52: 0 | I52: 0 | J52: 0
A53: DPA0309 | B53: Overhead 66 kV | C53: MVA | D53: 24.75476567 | E53: 24.75852945 | F53: 24.76229324 | G53: 24.76605703 | H53: 24.76982081 | I53: 24.7735846 | J53: 24.77734839
A54: DPA0310 | B54: Overhead 110 kV | C54: MVA | D54: 106 | E54: 106 | F54: 106 | G54: 106 | H54: 106 | I54: 106 | J54: 106
A55: DPA0311 | B55: Overhead 132 kV | C55: MVA | D55: 127.693145 | E55: 127.7964191 | F55: 127.8996932 | G55: 128.0029673 | H55: 128.1062414 | I55: 128.2095155 | J55: 128.3127896
A56: DPA0312 | B56: Overhead 220 kV | C56: MVA | D56: 213 | E56: 213 | F56: 213 | G56: 213 | H56: 213 | I56: 213 | J56: 213
A57: DPA0313 | B57: Other | C57: MVA | D57: 0 | E57: 0 | F57: 0 | G57: 0 | H57: 0 | I57: 0 | J57: 0
B58: 3.5.1.4 - Estimated underground network weighted average MVA capacity by voltage class
A59: DPA0401 | B59: Underground low voltage distribution | C59: MVA | D59: 0.1828951689 | E59: 0.1831875295 | F59: 0.1834798902 | G59: 0.1837722508 | H59: 0.1840646115 | I59: 0.1843569721 | J59: 0.1846493328
A60: DPA0402 | B60: Underground 5 kV | C60: MVA | D60: 0 | E60: 0 | F60: 0 | G60: 0 | H60: 0 | I60: 0 | J60: 0
A61: DPA0403 | B61: Underground 6.6 kV | C61: MVA | D61: 2.102892 | E61: 2.102892 | F61: 2.102892 | G61: 2.102892 | H61: 2.102892 | I61: 2.102892 | J61: 2.102892
A62: DPA0404 | B62: Underground 7.6 kV | C62: MVA | D62: 0 | E62: 0 | F62: 0 | G62: 0 | H62: 0 | I62: 0 | J62: 0
A63: DPA0405 | B63: Underground 11 kV | C63: MVA | D63: 5.522606924 | E63: 5.541070311 | F63: 5.559533698 | G63: 5.577997085 | H63: 5.596460471 | I63: 5.614923858 | J63: 5.633387245
A64: DPA0406 | B64: Underground SWER | C64: MVA | D64: 0.4720959891 | E64: 0.471229575 | F64: 0.4703631609 | G64: 0.4694967468 | H64: 0.4686303327 | I64: 0.4677639186 | J64: 0.4668975045
A65: DPA0407 | B65: Underground 12.7 kV | C65: MVA | D65: 0 | E65: 0 | F65: 0 | G65: 0 | H65: 0 | I65: 0 | J65: 0
A66: DPA0408 | B66: Underground 22 kV | C66: MVA | D66: 9.648098804 | E66: 9.660854478 | F66: 9.673610151 | G66: 9.686365825 | H66: 9.699121499 | I66: 9.711877172 | J66: 9.724632846
A67: DPA0409 | B67: Underground 33 kV | C67: MVA | D67: 19.35061015 | E67: 19.37279926 | F67: 19.39498838 | G67: 19.4171775 | H67: 19.43936661 | I67: 19.46155573 | J67: 19.48374485
A68: DPA0410 | B68: Underground 66 kV | C68: MVA | D68: 77.24010993 | E68: 77.19632006 | F68: 77.15253019 | G68: 77.10874032 | H68: 77.06495044 | I68: 77.02116057 | J68: 76.9773707
A69: DPA0411 | B69: Underground 110 kV | C69: MVA | D69: 0 | E69: 0 | F69: 0 | G69: 0 | H69: 0 | I69: 0 | J69: 0
A70: DPA0412 | B70: Underground 132 kV | C70: MVA | D70: 160.4461986 | E70: 160.4461986 | F70: 160.4461986 | G70: 160.4461986 | H70: 160.4461986 | I70: 160.4461986 | J70: 160.4461986
A71: DPA0413 | B71: Other | C71: MVA | D71: 0 | E71: 0 | F71: 0 | G71: 0 | H71: 0 | I71: 0 | J71: 0
B75: 3.5.2 - TRANSFORMER CAPACITIES VARIABLES
D76: VOLUMES
C77: Units | D77: =CRCP_y4 -> 2022-23 | E77: =CRCP_y5 -> 2023-24 | F77: =FRCP_y1 -> 2024-25 | G77: =FRCP_y2 -> 2025-26 | H77: =FRCP_y3 -> 2026-27 | I77: =FRCP_y4 -> 2027-28 | J77: =FRCP_y5 -> 2028-29
B78: Distribution transformer total installed capacity
A79: DPA0501 | B79: Distribution transformer capacity owned by utility | C79: MVA | D79: 10888.59714 | E79: 11041.97712 | F79: 11195.3571 | G79: 11348.73707 | H79: 11502.11705 | I79: 11655.49702 | J79: 11808.877
A80: DPA0502 | B80: Distribution transformer capacity owned by High Voltage Customers | C80: MVA | D80: 1106.277 | E80: 1129.715 | F80: 1153.153 | G80: 1176.591 | H80: 1200.029 | I80: 1223.467 | J80: 1246.905
A81: DPA0503 | B81: Cold spare capacity included in DPA0501 | C81: MVA | D81: 223.072 | E81: 218.7456 | F81: 215.28448 | G81: 212.515584 | H81: 210.3004672 | I81: 208.5283738 | J81: 207.110699
B82: Zone substation transformer capacity
A83: DPA0601 | B83: Total installed capacity for first step transformation where there are two steps to reach distribution voltage | C83: MVA | D83: 2106.446429 | E83: 2103.10119 | F83: 2099.755952 | G83: 2096.410714 | H83: 2093.065476 | I83: 2089.720238 | J83: 2086.375
A84: DPA0602 | B84: Total installed capacity for second step transformation where there are two steps to reach distribution voltage | C84: MVA | D84: 2184.616667 | E84: 2187.116667 | F84: 2189.616667 | G84: 2192.116667 | H84: 2194.616667 | I84: 2197.116667 | J84: 2199.616667
A85: DPA0603 | B85: Total zone substation transformer capacity where there is only a single step transformation to reach distribution voltage | C85: MVA | D85: 6616.567571 | E85: 6622.581226 | F85: 6628.594881 | G85: 6634.608536 | H85: 6640.62219 | I85: 6646.635845 | J85: 6652.6495
A86: DPA0604 | B86: Total zone substation transformer capacity | C86: MVA | D86: 11956.72775 | E86: 12042.27375 | F86: 12127.81975 | G86: 12213.36575 | H86: 12298.91175 | I86: 12384.45775 | J86: 12470.00375
A87: DPA0605 | B87: Cold spare capacity of zone substation transformers included in DPA0604 | C87: MVA | D87: 4414.14485 | E87: 4413.35174 | F87: 4412.55863 | G87: 4411.765521 | H87: 4410.972411 | I87: 4410.179301 | J87: 4409.386191
B91: 3.5.3 - PUBLIC LIGHTING
D92: VOLUMES
C93: Units | D93: =CRCP_y4 -> 2022-23 | E93: =CRCP_y5 -> 2023-24 | F93: =FRCP_y1 -> 2024-25 | G93: =FRCP_y2 -> 2025-26 | H93: =FRCP_y3 -> 2026-27 | I93: =FRCP_y4 -> 2027-28 | J93: =FRCP_y5 -> 2028-29
A94: DPA0701 | B94: Public lighting luminaires | C94: 0's | D94: 166718 | E94: 169,391 | F94: 172,227 | G94: 174,737 | H94: 177,332 | I94: 179,972 | J94: 182,658
A95: DPA0702 | B95: Public lighting poles | C95: 0's | D95: 78983 | E95: 80,160 | F95: 81,354 | G95: 82,566 | H95: 83,796 | I95: 85,045 | J95: 86,312

Sheet 5.4 MD & utilisation-Spatial
B1: =INDEX(dms_Worksheet_List,MATCH(dms_Model,dms_Model_List)) -> REGULATORY REPORTING STATEMENT
B2: =INDEX(dms_TradingNameFull_List,MATCH(dms_TradingName,dms_TradingName_List)) -> Essential Energy
B3: =CONCATENATE("REGULATORY PERIOD FROM ", FRCP_y1," TO ",dms_MultiYear_FinalYear_Result) -> REGULATORY PERIOD FROM 2024-25 TO 2028-29
B4: 5.4 MAXIMUM DEMAND AND UTILISATION AT SPATIAL LEVEL
B6: There are two tables on this worksheet. The tables have been sub-grouped for ease of navigation. See the Instructions sheet on how to group or ungroup tables.
B8: 5.4.1 - NON-COINCIDENT & COINCIDENT MAXIMUM DEMAND
B9: SUBTRANSMISSION SUBSTATION
F10: DEMAND
B11: SUBSTATION | C11: FORECASTING ELEMENTS | D11: UNIT | E11: MAX DEMAND | F11: =CRCP_y4 -> 2022-23 | G11: =CRCP_y5 -> 2023-24 | H11: =FRCP_y1 -> 2024-25 | I11: =FRCP_y2 -> 2025-26 | J11: =FRCP_y3 -> 2026-27 | K11: =FRCP_y4 -> 2027-28 | L11: =FRCP_y5 -> 2028-29
B12: Adaminaby 33kV | C12: Substation Rating | D12: MVA | E12: Non-Coincident | F12: 6 | G12: 6 | H12: 6 | I12: 6 | J12: 6 | K12: 6 | L12: 6
E13: Coincident | F13: 6 | G13: 6 | H13: 6 | I13: 6 | J13: 6 | K13: 6 | L13: 6
C14: Raw Adjusted MD | D14: MW | E14: Non-Coincident
E15: Coincident
C16: Raw Adjusted MD | D16: MVA | E16: Non-Coincident
E17: Coincident
C18: Date MD occurred | E18: Non-Coincident
E19: Coincident
C20: Half hour time period MD occurred | E20: Non-Coincident
E21: Coincident
C22: Winter/Summer Peaking | E22: Non-Coincident | F22: Winter | G22: Winter | H22: Winter | I22: Winter | J22: Winter | K22: Winter | L22: Winter
E23: Coincident | F23: Winter | G23: Winter | H23: Winter | I23: Winter | J23: Winter | K23: Winter | L23: Winter
C24: Adjustments - Embedded generation | D24: MW | E24: Non-Coincident | F24: 0 | G24: 0 | H24: 0 | I24: 0 | J24: 0 | K24: 0 | L24: 0
E25: Coincident | F25: 0 | G25: 0 | H25: 0 | I25: 0 | J25: 0 | K25: 0 | L25: 0
C26: Weather Corrected 10% POE | D26: MW | E26: Non-Coincident | F26: 0.465 | G26: 0.471 | H26: 0.474 | I26: 0.475 | J26: 0.478 | K26: 0.485 | L26: 0.468
E27: Coincident | F27: 0.074 | G27: 0.075 | H27: 0.075 | I27: 0.076 | J27: 0.076 | K27: 0.077 | L27: 0.075
C28: Weather Corrected MD 10% POE | D28: MVA | E28: Non-Coincident | F28: 0.469 | G28: 0.475 | H28: 0.48 | I28: 0.484 | J28: 0.491 | K28: 0.504 | L28: 0.495
E29: Coincident | F29: 0.074 | G29: 0.075 | H29: 0.076 | I29: 0.077 | J29: 0.078 | K29: 0.08 | L29: 0.079
C30: Weather Corrected MD 50% POE | D30: MW | E30: Non-Coincident | F30: 0.254 | G30: 0.259 | H30: 0.258 | I30: 0.257 | J30: 0.259 | K30: 0.258 | L30: 0.255
E31: Coincident | F31: 0.041 | G31: 0.042 | H31: 0.042 | I31: 0.041 | J31: 0.042 | K31: 0.042 | L31: 0.041
C32: Weather Corrected MD 50% POE | D32: MVA | E32: Non-Coincident | F32: 0.258 | G32: 0.266 | H32: 0.269 | I32: 0.275 | J32: 0.284 | K32: 0.293 | L32: 0.3
E33: Coincident | F33: 0.042 | G33: 0.043 | H33: 0.043 | I33: 0.044 | J33: 0.046 | K33: 0.047 | L33: 0.048
B34: Ballina 132kV | C34: Substation Rating | D34: MVA | E34: Non-Coincident | F34: 72 | G34: 72 | H34: 72 | I34: 72 | J34: 66 | K34: 66 | L34: 66
E35: Coincident | F35: 72 | G35: 72 | H35: 72 | I35: 72 | J35: 72 | K35: 72 | L35: 72
C36: Raw Adjusted MD | D36: MW | E36: Non-Coincident
E37: Coincident
C38: Raw Adjusted MD | D38: MVA | E38: Non-Coincident
E39: Coincident
C40: Date MD occurred | E40: Non-Coincident
E41: Coincident
C42: Half hour time period MD occurred | E42: Non-Coincident
E43: Coincident
C44: Winter/Summer Peaking | E44: Non-Coincident | F44: Winter | G44: Winter | H44: Winter | I44: Winter | J44: Summer | K44: Summer | L44: Summer
E45: Coincident | F45: Winter | G45: Winter | H45: Winter | I45: Winter | J45: Winter | K45: Winter | L45: Winter
C46: Adjustments - Embedded generation | D46: MW | E46: Non-Coincident | F46: 0 | G46: 0 | H46: 0 | I46: 0 | J46: 0 | K46: 0 | L46: 0
E47: Coincident | F47: 0 | G47: 0 | H47: 0 | I47: 0 | J47: 0 | K47: 0 | L47: 0
C48: Weather Corrected 10% POE | D48: MW | E48: Non-Coincident | F48: 24.254 | G48: 24.356 | H48: 24.18 | I48: 24.445 | J48: 24.396 | K48: 24.706 | L48: 24.618
E49: Coincident | F49: 11.804 | G49: 11.854 | H49: 11.768 | I49: 11.897 | J49: 11.873 | K49: 12.024 | L49: 11.981
C50: Weather Corrected MD 10% POE | D50: MVA | E50: Non-Coincident | F50: 24.714 | G50: 24.931 | H50: 24.847 | I50: 25.083 | J50: 25.14 | K50: 25.45 | L50: 25.58
E51: Coincident | F51: 12.738 | G51: 12.85 | H51: 12.806 | I51: 12.928 | J51: 12.957 | K51: 13.117 | L51: 13.184
C52: Weather Corrected MD 50% POE | D52: MW | E52: Non-Coincident | F52: 19.202 | G52: 19.063 | H52: 18.939 | I52: 18.89 | J52: 18.898 | K52: 18.956 | L52: 18.875
E53: Coincident | F53: 9.535 | G53: 9.466 | H53: 9.404 | I53: 9.38 | J53: 9.384 | K53: 9.412 | L53: 9.372
C54: Weather Corrected MD 50% POE | D54: MVA | E54: Non-Coincident | F54: 19.719 | G54: 19.598 | H54: 19.503 | I54: 19.677 | J54: 19.752 | K54: 19.958 | L54: 20.017
E55: Coincident | F55: 10.313 | G55: 10.25 | H55: 10.2 | I55: 10.291 | J55: 10.33 | K55: 10.438 | L55: 10.469
B56: Bega 132kV | C56: Substation Rating | D56: MVA | E56: Non-Coincident | F56: 144 | G56: 144 | H56: 144 | I56: 144 | J56: 144 | K56: 144 | L56: 144
E57: Coincident | F57: 144 | G57: 144 | H57: 144 | I57: 144 | J57: 144 | K57: 144 | L57: 144
C58: Raw Adjusted MD | D58: MW | E58: Non-Coincident
E59: Coincident
C60: Raw Adjusted MD | D60: MVA | E60: Non-Coincident
E61: Coincident
C62: Date MD occurred | E62: Non-Coincident
E63: Coincident
C64: Half hour time period MD occurred | E64: Non-Coincident
E65: Coincident
C66: Winter/Summer Peaking | E66: Non-Coincident | F66: Winter | G66: Winter | H66: Winter | I66: Winter | J66: Winter | K66: Winter | L66: Winter
E67: Coincident | F67: Winter | G67: Winter | H67: Winter | I67: Winter | J67: Winter | K67: Winter | L67: Winter
C68: Adjustments - Embedded generation | D68: MW | E68: Non-Coincident | F68: 0 | G68: 0 | H68: 0 | I68: 0 | J68: 0 | K68: 0 | L68: 0
E69: Coincident | F69: 0 | G69: 0 | H69: 0 | I69: 0 | J69: 0 | K69: 0 | L69: 0
C70: Weather Corrected 10% POE | D70: MW | E70: Non-Coincident | F70: 48.345 | G70: 48.857 | H70: 49.329 | I70: 50.002 | J70: 50.281 | K70: 50.777 | L70: 51.341
E71: Coincident | F71: 41.008 | G71: 41.442 | H71: 41.843 | I71: 42.413 | J71: 42.65 | K71: 43.071 | L71: 43.549
C72: Weather Corrected MD 10% POE | D72: MVA | E72: Non-Coincident | F72: 48.82 | G72: 49.431 | H72: 50.114 | I72: 50.846 | J72: 51.336 | K72: 52.068 | L72: 52.788
E73: Coincident | F73: 41.649 | G73: 42.17 | H73: 42.753 | I73: 43.377 | J73: 43.796 | K73: 44.42 | L73: 45.034
C74: Weather Corrected MD 50% POE | D74: MW | E74: Non-Coincident | F74: 44.673 | G74: 45.076 | H74: 45.446 | I74: 45.83 | J74: 46.203 | K74: 46.579 | L74: 46.94
E75: Coincident | F75: 37.898 | G75: 38.24 | H75: 38.554 | I75: 38.88 | J75: 39.196 | K75: 39.515 | L75: 39.821
C76: Weather Corrected MD 50% POE | D76: MVA | E76: Non-Coincident | F76: 45.181 | G76: 45.738 | H76: 46.253 | I76: 46.762 | J76: 47.363 | K76: 47.931 | L76: 48.505
E77: Coincident | F77: 38.55 | G77: 39.025 | H77: 39.464 | I77: 39.899 | J77: 40.411 | K77: 40.896 | L77: 41.386
B78: Boambee South 66kV | C78: Substation Rating | D78: MVA | E78: Non-Coincident | F78: 72 | G78: 72 | H78: 72 | I78: 72 | J78: 72 | K78: 72 | L78: 72
E79: Coincident | F79: 72 | G79: 72 | H79: 72 | I79: 72 | J79: 72 | K79: 72 | L79: 72
C80: Raw Adjusted MD | D80: MW | E80: Non-Coincident
E81: Coincident
C82: Raw Adjusted MD | D82: MVA | E82: Non-Coincident
E83: Coincident
C84: Date MD occurred | E84: Non-Coincident
E85: Coincident
C86: Half hour time period MD occurred | E86: Non-Coincident
E87: Coincident
C88: Winter/Summer Peaking | E88: Non-Coincident | F88: Winter | G88: Winter | H88: Winter | I88: Winter | J88: Winter | K88: Winter | L88: Winter
E89: Coincident | F89: Winter | G89: Winter | H89: Winter | I89: Winter | J89: Winter | K89: Winter | L89: Winter
C90: Adjustments - Embedded generation | D90: MW | E90: Non-Coincident | F90: 0 | G90: 0 | H90: 0 | I90: 0 | J90: 0 | K90: 0 | L90: 0
E91: Coincident | F91: 0 | G91: 0 | H91: 0 | I91: 0 | J91: 0 | K91: 0 | L91: 0
C92: Weather Corrected 10% POE | D92: MW | E92: Non-Coincident | F92: 10.24 | G92: 10.413 | H92: 10.563 | I92: 10.725 | J92: 10.926 | K92: 11.076 | L92: 11.213
E93: Coincident | F93: 8.986 | G93: 9.137 | H93: 9.269 | I93: 9.411 | J93: 9.588 | K93: 9.719 | L93: 9.839
C94: Weather Corrected MD 10% POE | D94: MVA | E94: Non-Coincident | F94: 10.29 | G94: 10.483 | H94: 10.656 | I94: 10.825 | J94: 11.038 | K94: 11.212 | L94: 11.369
E95: Coincident | F95: 9.036 | G95: 9.206 | H95: 9.358 | I95: 9.506 | J95: 9.693 | K95: 9.846 | L95: 9.984
C96: Weather Corrected MD 50% POE | D96: MW | E96: Non-Coincident | F96: 9.512 | G96: 9.628 | H96: 9.746 | I96: 9.869 | J96: 9.994 | K96: 10.109 | L96: 10.227
E97: Coincident | F97: 8.335 | G97: 8.437 | H97: 8.54 | I97: 8.648 | J97: 8.758 | K97: 8.858 | L97: 8.962
C98: Weather Corrected MD 50% POE | D98: MVA | E98: Non-Coincident | F98: 9.571 | G98: 9.699 | H98: 9.837 | I98: 9.974 | J98: 10.121 | K98: 10.255 | L98: 10.386
E99: Coincident | F99: 8.394 | G99: 8.506 | H99: 8.627 | I99: 8.747 | J99: 8.876 | K99: 8.993 | L99: 9.108
B100: Cartwrights Hill 33kV | C100: Substation Rating | D100: MVA | E100: Non-Coincident | F100: 9.9 | G100: 9.9 | H100: 9.9 | I100: 9.9 | J100: 9.9 | K100: 9.9 | L100: 9.9
E101: Coincident | F101: 10.8 | G101: 10.8 | H101: 10.8 | I101: 10.8 | J101: 10.8 | K101: 10.8 | L101: 10.8
C102: Raw Adjusted MD | D102: MW | E102: Non-Coincident
E103: Coincident
C104: Raw Adjusted MD | D104: MVA | E104: Non-Coincident
E105: Coincident
C106: Date MD occurred | E106: Non-Coincident
E107: Coincident
C108: Half hour time period MD occurred | E108: Non-Coincident
E109: Coincident
C110: Winter/Summer Peaking | E110: Non-Coincident | F110: Summer | G110: Summer | H110: Summer | I110: Summer | J110: Summer | K110: Summer | L110: Summer
E111: Coincident | F111: Winter | G111: Winter | H111: Winter | I111: Winter | J111: Winter | K111: Winter | L111: Winter
C112: Adjustments - Embedded generation | D112: MW | E112: Non-Coincident | F112: 0 | G112: 0 | H112: 0 | I112: 0 | J112: 0 | K112: 0 | L112: 0
E113: Coincident | F113: 0 | G113: 0 | H113: 0 | I113: 0 | J113: 0 | K113: 0 | L113: 0
C114: Weather Corrected 10% POE | D114: MW | E114: Non-Coincident | F114: 1.947 | G114: 1.928 | H114: 1.918 | I114: 1.894 | J114: 1.875 | K114: 1.864 | L114: 1.848
E115: Coincident | F115: 1.205 | G115: 1.193 | H115: 1.187 | I115: 1.172 | J115: 1.16 | K115: 1.153 | L115: 1.144
C116: Weather Corrected MD 10% POE | D116: MVA | E116: Non-Coincident | F116: 2.003 | G116: 1.985 | H116: 1.969 | I116: 1.945 | J116: 1.921 | K116: 1.913 | L116: 1.893
E117: Coincident | F117: 1.247 | G117: 1.236 | H117: 1.226 | I117: 1.211 | J117: 1.196 | K117: 1.191 | L117: 1.179
C118: Weather Corrected MD 50% POE | D118: MW | E118: Non-Coincident | F118: 1.728 | G118: 1.717 | H118: 1.7 | I118: 1.683 | J118: 1.665 | K118: 1.655 | L118: 1.634
E119: Coincident | F119: 1.07 | G119: 1.063 | H119: 1.053 | I119: 1.042 | J119: 1.031 | K119: 1.025 | L119: 1.012
C120: Weather Corrected MD 50% POE | D120: MVA | E120: Non-Coincident | F120: 1.791 | G120: 1.778 | H120: 1.759 | I120: 1.74 | J120: 1.72 | K120: 1.707 | L120: 1.685
E121: Coincident | F121: 1.116 | G121: 1.108 | H121: 1.096 | I121: 1.084 | J121: 1.072 | K121: 1.064 | L121: 1.05
B122: Casino 132/66kV | C122: Substation Rating | D122: MVA | E122: Non-Coincident | F122: 66 | G122: 66 | H122: 66 | I122: 66 | J122: 66 | K122: 66 | L122: 66
E123: Coincident | F123: 72 | G123: 72 | H123: 72 | I123: 72 | J123: 72 | K123: 72 | L123: 72
C124: Raw Adjusted MD | D124: MW | E124: Non-Coincident
E125: Coincident
C126: Raw Adjusted MD | D126: MVA | E126: Non-Coincident
E127: Coincident
C128: Date MD occurred | E128: Non-Coincident
E129: Coincident
C130: Half hour time period MD occurred | E130: Non-Coincident
E131: Coincident
C132: Winter/Summer Peaking | E132: Non-Coincident | F132: Summer | G132: Summer | H132: Summer | I132: Summer | J132: Summer | K132: Summer | L132: Summer
E133: Coincident | F133: Winter | G133: Winter | H133: Winter | I133: Winter | J133: Winter | K133: Winter | L133: Winter
C134: Adjustments - Embedded generation | D134: MW | E134: Non-Coincident | F134: 0 | G134: 0 | H134: 0 | I134: 0 | J134: 0 | K134: 0 | L134: 0
E135: Coincident | F135: 0 | G135: 0 | H135: 0 | I135: 0 | J135: 0 | K135: 0 | L135: 0
C136: Weather Corrected 10% POE | D136: MW | E136: Non-Coincident | F136: 36.603 | G136: 36.968 | H136: 37.493 | I136: 37.852 | J136: 38.407 | K136: 38.861 | L136: 39.27
E137: Coincident | F137: 27.914 | G137: 28.193 | H137: 28.593 | I137: 28.867 | J137: 29.29 | K137: 29.636 | L137: 29.948
C138: Weather Corrected MD 10% POE | D138: MVA | E138: Non-Coincident | F138: 36.979 | G138: 37.347 | H138: 37.866 | I138: 38.262 | J138: 38.78 | K138: 39.224 | L138: 39.589
E139: Coincident | F139: 28.014 | G139: 28.293 | H139: 28.686 | I139: 28.986 | J139: 29.379 | K139: 29.715 | L139: 29.991
C140: Weather Corrected MD 50% POE | D140: MW | E140: Non-Coincident | F140: 33.018 | G140: 33.223 | H140: 33.558 | I140: 33.777 | J140: 34.001 | K140: 34.268 | L140: 34.545
E141: Coincident | F141: 25.286 | G141: 25.443 | H141: 25.7 | I141: 25.867 | J141: 26.039 | K141: 26.243 | L141: 26.456
C142: Weather Corrected MD 50% POE | D142: MVA | E142: Non-Coincident | F142: 33.436 | G142: 33.65 | H142: 33.961 | I142: 34.193 | J142: 34.398 | K142: 34.665 | L142: 34.933
E143: Coincident | F143: 25.459 | G143: 25.622 | H143: 25.859 | I143: 26.036 | J143: 26.192 | K143: 26.395 | L143: 26.599
B144: Casino 66/33kV | C144: Substation Rating | D144: MVA | E144: Non-Coincident | F144: 12.65 | G144: 12.65 | H144: 12.65 | I144: 12.65 | J144: 12.65 | K144: 12.65 | L144: 12.65
E145: Coincident | F145: 13.8 | G145: 13.8 | H145: 13.8 | I145: 13.8 | J145: 13.8 | K145: 13.8 | L145: 13.8
C146: Raw Adjusted MD | D146: MW | E146: Non-Coincident
E147: Coincident
C148: Raw Adjusted MD | D148: MVA | E148: Non-Coincident
E149: Coincident
C150: Date MD occurred | E150: Non-Coincident
E151: Coincident
C152: Half hour time period MD occurred | E152: Non-Coincident
E153: Coincident
C154: Winter/Summer Peaking | E154: Non-Coincident | F154: Summer | G154: Summer | H154: Summer | I154: Summer | J154: Summer | K154: Summer | L154: Summer
E155: Coincident | F155: Winter | G155: Winter | H155: Winter | I155: Winter | J155: Winter | K155: Winter | L155: Winter
C156: Adjustments - Embedded generation | D156: MW | E156: Non-Coincident | F156: 0 | G156: 0 | H156: 0 | I156: 0 | J156: 0 | K156: 0 | L156: 0
E157: Coincident | F157: 0 | G157: 0 | H157: 0 | I157: 0 | J157: 0 | K157: 0 | L157: 0
C158: Weather Corrected 10% POE | D158: MW | E158: Non-Coincident | F158: 4.585 | G158: 4.678 | H158: 4.798 | I158: 4.887 | J158: 4.991 | K158: 5.091 | L158: 5.2
E159: Coincident | F159: 3.77 | G159: 3.846 | H159: 3.945 | I159: 4.018 | J159: 4.104 | K159: 4.186 | L159: 4.275
C160: Weather Corrected MD 10% POE | D160: MVA | E160: Non-Coincident | F160: 4.654 | G160: 4.74 | H160: 4.855 | I160: 4.941 | J160: 5.041 | K160: 5.137 | L160: 5.239
E161: Coincident | F161: 3.813 | G161: 3.884 | H161: 3.978 | I161: 4.048 | J161: 4.13 | K161: 4.209 | L161: 4.293
C162: Weather Corrected MD 50% POE | D162: MW | E162: Non-Coincident | F162: 4.167 | G162: 4.256 | H162: 4.334 | I162: 4.422 | J162: 4.5 | K162: 4.585 | L162: 4.671
E163: Coincident | F163: 3.435 | G163: 3.509 | H163: 3.573 | I163: 3.646 | J163: 3.71 | K163: 3.78 | L163: 3.851
C164: Weather Corrected MD 50% POE | D164: MVA | E164: Non-Coincident | F164: 4.242 | G164: 4.325 | H164: 4.397 | I164: 4.481 | J164: 4.552 | K164: 4.635 | L164: 4.714
E165: Coincident | F165: 3.487 | G165: 3.555 | H165: 3.614 | I165: 3.683 | J165: 3.741 | K165: 3.81 | L165: 3.875
B166: Coleambally 132 | C166: Substation Rating | D166: MVA | E166: Non-Coincident | F166: 55 | G166: 55 | H166: 55 | I166: 55 | J166: 55 | K166: 55 | L166: 55
E167: Coincident | F167: 60 | G167: 60 | H167: 60 | I167: 60 | J167: 60 | K167: 60 | L167: 60
C168: Raw Adjusted MD | D168: MW | E168: Non-Coincident
E169: Coincident
C170: Raw Adjusted MD | D170: MVA | E170: Non-Coincident
E171: Coincident
C172: Date MD occurred | E172: Non-Coincident
E173: Coincident
C174: Half hour time period MD occurred | E174: Non-Coincident
E175: Coincident
C176: Winter/Summer Peaking | E176: Non-Coincident | F176: Summer | G176: Summer | H176: Summer | I176: Summer | J176: Summer | K176: Summer | L176: Summer
E177: Coincident | F177: Winter | G177: Winter | H177: Winter | I177: Winter | J177: Winter | K177: Winter | L177: Winter
C178: Adjustments - Embedded generation | D178: MW | E178: Non-Coincident | F178: 0 | G178: 0 | H178: 0 | I178: 0 | J178: 0 | K178: 0 | L178: 0
E179: Coincident | F179: 0 | G179: 0 | H179: 0 | I179: 0 | J179: 0 | K179: 0 | L179: 0
C180: Weather Corrected 10% POE | D180: MW | E180: Non-Coincident | F180: 15.235 | G180: 15.351 | H180: 15.422 | I180: 15.472 | J180: 15.588 | K180: 15.702 | L180: 15.764
E181: Coincident | F181: 8.97 | G181: 9.039 | H181: 9.081 | I181: 9.11 | J181: 9.178 | K181: 9.245 | L181: 9.282
C182: Weather Corrected MD 10% POE | D182: MVA | E182: Non-Coincident | F182: 16.128 | G182: 16.23 | H182: 16.258 | I182: 16.289 | J182: 16.373 | K182: 16.455 | L182: 16.49
E183: Coincident | F183: 9.387 | G183: 9.446 | H183: 9.462 | I183: 9.48 | J183: 9.529 | K183: 9.577 | L183: 9.597
C184: Weather Corrected MD 50% POE | D184: MW | E184: Non-Coincident | F184: 13.784 | G184: 13.881 | H184: 13.929 | I184: 13.999 | J184: 14.081 | K184: 14.129 | L184: 14.211
E185: Coincident | F185: 8.177 | G185: 8.234 | H185: 8.263 | I185: 8.304 | J185: 8.353 | K185: 8.381 | L185: 8.43
C186: Weather Corrected MD 50% POE | D186: MVA | E186: Non-Coincident | F186: 14.764 | G186: 14.816 | H186: 14.824 | I186: 14.862 | J186: 14.914 | K186: 14.939 | L186: 14.997
E187: Coincident | F187: 8.659 | G187: 8.689 | H187: 8.694 | I187: 8.716 | J187: 8.747 | K187: 8.762 | L187: 8.796
B188: Dubbo 132/66kV | C188: Substation Rating | D188: MVA | E188: Non-Coincident | F188: 148.5 | G188: 148.5 | H188: 148.5 | I188: 148.5 | J188: 148.5 | K188: 148.5 | L188: 148.5
E189: Coincident | F189: 162 | G189: 162 | H189: 162 | I189: 162 | J189: 162 | K189: 162 | L189: 162
C190: Raw Adjusted MD | D190: MW | E190: Non-Coincident
E191: Coincident
C192: Raw Adjusted MD | D192: MVA | E192: Non-Coincident
E193: Coincident
C194: Date MD occurred | E194: Non-Coincident
E195: Coincident
C196: Half hour time period MD occurred | E196: Non-Coincident
E197: Coincident
C198: Winter/Summer Peaking | E198: Non-Coincident | F198: Summer | G198: Summer | H198: Summer | I198: Summer | J198: Summer | K198: Summer | L198: Summer
E199: Coincident | F199: Winter | G199: Winter | H199: Winter | I199: Winter | J199: Winter | K199: Winter | L199: Winter
C200: Adjustments - Embedded generation | D200: MW | E200: Non-Coincident | F200: 0 | G200: 0 | H200: 0 | I200: 0 | J200: 0 | K200: 0 | L200: 0
E201: Coincident | F201: 0 | G201: 0 | H201: 0 | I201: 0 | J201: 0 | K201: 0 | L201: 0
C202: Weather Corrected 10% POE | D202: MW | E202: Non-Coincident | F202: 67.862 | G202: 100.427 | H202: 100.332 | I202: 100.652 | J202: 100.866 | K202: 100.951 | L202: 101.118
... 11370 more rows

Sheet 3.6 Quality of service
B1: =INDEX(dms_Worksheet_List,MATCH(dms_Model,dms_Model_List)) -> REGULATORY REPORTING STATEMENT
B2: =INDEX(dms_TradingNameFull_List,MATCH(dms_TradingName,dms_TradingName_List)) -> Essential Energy
B3: =CONCATENATE("REGULATORY PERIOD FROM ", FRCP_y1," TO ",dms_MultiYear_FinalYear_Result) -> REGULATORY PERIOD FROM 2024-25 TO 2028-29
B4: 3.6 QUALITY OF SERVICE DATA
B6: 3.6.2 - ENERGY NOT SUPPLIED
D7: FORECAST
C8: Units | D8: 2022-23 | E8: 2023-24 | F8: 2024-25 | G8: 2025-26 | H8: 2026-27 | I8: 2027-28 | J8: 2028-29
A9: DQS0201 | B9: Energy Not Supplied (planned) | C9: GWh | D9: 4.226588769 | E9: 4.226588769 | F9: 4.226588769 | G9: 4.226588769 | H9: 4.226588769 | I9: 4.226588769 | J9: 4.226588769
A10: DQS0202 | B10: Energy Not Supplied (unplanned) | C10: GWh | D10: 7.904950248 | E10: 7.904950248 | F10: 7.904950248 | G10: 7.904950248 | H10: 7.904950248 | I10: 7.904950248 | J10: 7.904950248
A11: DQS02 | B11: Total | D11: =SUM(D9:D10) -> 12.13153902 | E11: 12.13153902 | F11: 12.13153902 | G11: 12.13153902 | H11: 12.13153902 | I11: 12.13153902 | J11: 12.13153902
B13: 3.6.3 - SYSTEM LOSSES
D14: FORECAST
C15: Units | D15: 2022-23 | E15: 2023-24 | F15: 2024-25 | G15: 2025-26 | H15: 2026-27 | I15: 2027-28 | J15: 2028-29
A16: DQS03 | B16: System losses | C16: % | D16: 0.0504558755 | E16: 0.05049724425 | F16: 0.05408248869 | G16: 0.05137394768 | H16: 0.05157607258 | I16: 0.05209646155 | J16: 0.05251979189
B18: 3.6.4 - CAPACITY UTILISATION
D19: FORECAST
C20: Units | D20: 2022-23 | E20: 2023-24 | F20: 2024-25 | G20: 2025-26 | H20: 2026-27 | I20: 2027-28 | J20: 2028-29
A21: DQS04 | B21: Overall utilisation | C21: % | D21: 0.272576955 | E21: 0.2748107857 | F21: 0.2797619434 | G21: 0.2811914887 | H21: 0.2827314621 | I21: 0.283929248 | J21: 0.2853506608

Sheet 3.7 Operating Environment
B1: =INDEX(dms_Worksheet_List,MATCH(dms_Model,dms_Model_List)) -> REGULATORY REPORTING STATEMENT
B2: =INDEX(dms_TradingNameFull_List,MATCH(dms_TradingName,dms_TradingName_List)) -> Essential Energy
B3: =CONCATENATE("REGULATORY PERIOD FROM ", FRCP_y1," TO ",dms_MultiYear_FinalYear_Result) -> REGULATORY PERIOD FROM 2024-25 TO 2028-29
B4: 3.7 OPERATING ENVIRONMENT FACTORS
B6: There are THREE tables on this worksheet. Each table has been grouped (and sub-grouped) for ease of navigation. See the Instructions sheet on how to group or ungroup tables.
A8: DOEF01 | B8: 3.7.1 - DENSITY FACTORS
D9: Forecast
C10: Units | D10: 2022-23 | E10: 2023-24 | F10: 2024-25 | G10: 2025-26 | H10: 2026-27 | I10: 2027-28 | J10: 2028-29
A11: DOEF0101 | B11: Customer density | C11: Customer / km | D11: 5.173008702
A12: DOEF0102 | B12: Energy density | C12: MWh/customer | D12: 13.19828477
A13: DOEF0103 | B13: Demand density | C13: kVA / customer | D13: 2.55473471
A15: DOEF02 | B15: 3.7.2 - TERRAIN FACTORS
D16: Forecast
C17: Units | D17: 2022-23 | E17: 2023-24 | F17: 2024-25 | G17: 2025-26 | H17: 2026-27 | I17: 2027-28 | J17: 2028-29
A18: DOEF0201 | B18: Rural proportion | C18: % | D18: 0.8856
A19: DOEF0202 | B19: Urban and CBD vegetation maintenance spans | C19: 0's | D19: 79527
A20: DOEF0203 | B20: Rural vegetation maintenance spans | C20: 0's | D20: 91825
A21: DOEF0204 | B21: Total vegetation maintenance spans | C21: 0's | D21: 171352
A22: DOEF0205 | B22: Total number of spans | C22: 0's | D22: 1770843
A23: DOEF0206 | B23: Average urban and CBD vegetation maintenance span cycle | C23: Years | D23: 1.21
A24: DOEF0207 | B24: Average rural vegetation maintenance span cycle | C24: Years | D24: 3.36
A25: DOEF0208 | B25: Average number of trees per urban and CBD vegetation maintenance span | C25: Trees | D25: 2.09
A26: DOEF0209 | B26: Average number of trees per rural vegetation maintenance span | C26: Trees | D26: 2.94
A27: DOEF0210 | B27: Average number of defects per urban and CBD vegetation maintenance span | C27: Defects | D27: 1.11
A28: DOEF0211 | B28: Average number of defects per rural vegetation maintenance span | C28: Defects | D28: 1.33
A29: DOEF0212 | B29: Tropical proportion | C29: Spans | D29: 308546
A30: DOEF0213 | B30: Standard vehicle access | C30: km | D30: 80797 | E30: 80797 | F30: 80797 | G30: 80797 | H30: 80797 | I30: 80797 | J30: 80797
A31: DOEF0214 | B31: Bushfire risk | C31: Spans | D31: 1130606
A33: DOEF03 | B33: 3.7.3 - SERVICE AREA FACTORS
D34: Forecast
C35: Units | D35: 2022-23 | E35: 2023-24 | F35: 2024-25 | G35: 2025-26 | H35: 2026-27 | I35: 2027-28 | J35: 2028-29
A36: DOEF0301 | B36: Route Line length | C36: km | D36: 181527 | E36: 181427 | F36: 181193 | G36: 180941 | H36: 180669 | I36: 180374 | J36: 180025

Sheet 4.1 Public lighting
B1: =INDEX(dms_Worksheet_List,MATCH(dms_Model,dms_Model_List)) -> REGULATORY REPORTING STATEMENT
B2: =INDEX(dms_TradingNameFull_List,MATCH(dms_TradingName,dms_TradingName_List)) -> Essential Energy
B3: =CONCATENATE("REGULATORY PERIOD FROM ", FRCP_y1," TO ",dms_MultiYear_FinalYear_Result) -> REGULATORY PERIOD FROM 2024-25 TO 2028-29
B4: 4.1 PUBLIC LIGHTING
B6: There are TWO tables on this worksheet. Each table has been grouped (and sub-grouped) for ease of navigation. See the Instructions sheet on how to group or ungroup tables.
B8: 4.1.2 - DESCRIPTOR METRICS ANNUALLY
D9: VOLUMES & EXPENDITURE
C10: Units | D10: =CRCP_y4 -> 2022-23 | E10: =CRCP_y5 -> 2023-24 | F10: =FRCP_y1 -> 2024-25 | G10: =FRCP_y2 -> 2025-26 | H10: =FRCP_y3 -> 2026-27 | I10: =FRCP_y4 -> 2027-28 | J10: =FRCP_y5 -> 2028-29
B11: LIGHT INSTALLATION
B12: Number of lights installed | C12: 0's | D12: 1206.091538 | E12: 2673.022911 | F12: 2835.461024 | G12: 2509.97794 | H12: 2595.772609 | I12: 2639.801022 | J12: 2686.106906
B13: Number of poles installed | C13: 0's | D13: 1334.11 | E13: 1176.49665 | F13: 1194.1441 | G13: 1212.056261 | H13: 1230.237105 | I13: 1248.690662 | J13: 1267.421022
B14: Total expenditure | C14: $0's | D14: 0 | E14: 0 | F14: 0 | G14: 0 | H14: 0 | I14: 0 | J14: 0
B15: LIGHT REPLACEMENT
B16: Number of lights replaced | C16: 0's | D16: 1150.354832 | E16: 1168.79869 | F16: 1188.363371 | G16: 1205.682219 | H16: 1223.59305 | I16: 1241.807677 | J16: 1260.341814
B17: Number of poles replaced | C17: 0's | D17: 537.085148 | E17: 545.0853252 | F17: 553.2055051 | G17: 561.4474877 | H17: 569.8131 | I17: 578.3041965 | J17: 586.9226594
B18: Total expenditure | C18: $0's | D18: 2296008.755 | E18: 2330821.437 | F18: 2366551.319 | G18: 2401628.936 | H18: 2437388.163 | I18: 2473700.218 | J18: 2510578.615
B19: LIGHT MAINTENANCE
B20: Number of lights maintained | C20: 0's | D20: 63720.97776 | E20: 64742.62833 | F20: 65826.36404 | G20: 66785.69753 | H20: 67777.82242 | I20: 68786.77532 | J20: 69813.4267
B21: Number of poles maintained | C21: 0's | D21: 21349.6181 | E21: 21667.63235 | F21: 21990.4168 | G21: 22318.04303 | H21: 22650.58365 | I21: 22988.11238 | J21: 23330.70404
B22: Total expenditure | C22: $0's | D22: 6743183.897 | E22: 6306065.386 | F22: 6288506.486 | G22: 6273321.792 | H22: 6260799.217 | I22: 6288138.875 | J22: 6382379.337
B23: QUALITY OF SUPPLY
B24: Mean days to rectify/replace public lighting assets | C24: days | D24: 7 | E24: 7 | F24: 7 | G24: 7 | H24: 7 | I24: 7 | J24: 7
B25: GSO breaches | C25: 0's | D25: 100 | E25: 100 | F25: 100 | G25: 100 | H25: 100 | I25: 100 | J25: 100
B26: GSL payments | C26: $0's | D26: 2500 | E26: 2500 | F26: 2500 | G26: 2500 | H26: 2500 | I26: 2500 | J26: 2500
B27: Customer complaints | C27: 0's | D27: 1435 | E27: 1435 | F27: 1435 | G27: 1435 | H27: 1435 | I27: 1435 | J27: 1435
B31: 4.1.3 - COST METRICS
D32: =CONCATENATE("AVERAGE UNIT COST ($0's, real ",dms_DollarReal, ")") -> AVERAGE UNIT COST ($0's, real June 2024)
D33: =CRCP_y4 -> 2022-23 | E33: =CRCP_y5 -> 2023-24 | F33: =FRCP_y1 -> 2024-25 | G33: =FRCP_y2 -> 2025-26 | H33: =FRCP_y3 -> 2026-27 | I33: =FRCP_y4 -> 2027-28 | J33: =FRCP_y5 -> 2028-29
B34: LIGHT INSTALLATION
B35: LED 33W Luminaire StreetLED2 Category P3 Aeroscreen | D35: - | E35: - | F35: - | G35: - | H35: - | I35: - | J35: -
B36: LED 17W Luminaire StreetLED3 3000K P4/P5 | D36: - | E36: - | F36: - | G36: - | H36: - | I36: - | J36: -
B37: LED 17W Luminaire StreetLED3 Louvred Category P4/P5 Reduced RRW | D37: - | E37: - | F37: - | G37: - | H37: - | I37: - | J37: -
B38: LED 25W Luminaire StreetLED3 2200K, 2022lm, 505mA | D38: - | E38: - | F38: - | G38: - | H38: - | I38: - | J38: -
B39: LED 50W Luminaire RoadLED Midi 4000K, 7614lm, 208mA | D39: - | E39: - | F39: - | G39: - | H39: - | I39: - | J39: -
B40: LED 80W Luminaire RoadLED Midi 4000K, 9509lm, 661mA | D40: - | E40: - | F40: - | G40: - | H40: - | I40: - | J40: -
B41: LED 150W Luminaire RoadLED Midi 4000K, 20321lm, 650mA | D41: - | E41: - | F41: - | G41: - | H41: - | I41: - | J41: -
B42: LED 300W Luminaire RoadLED 4K 4000K, 35254lm, 650mA, Aeroscreen | D42: - | E42: - | F42: - | G42: - | H42: - | I42: - | J42: -
B43: LED 27W Luminaire, IGNIS Mini 020 MX2 Square 3000K, 425mA, 3685lm | D43: - | E43: - | F43: - | G43: - | H43: - | I43: - | J43: -
B44: LED 22W Luminaire, IGNIS Mini 020 MX2 Square 3000K , 275mA, 2506lm | D44: - | E44: - | F44: - | G44: - | H44: - | I44: - | J44: -
B45: LED 22W Luminaire, IGNIS Mini 020 MX2 Square 3000K, 275mA, 2200lm & Shield | D45: - | E45: - | F45: - | G45: - | H45: - | I45: - | J45: -
B46: LED 22W Luminaire, IGNIS Mini 020 MX2 Square 2200K, 350mA, 2811lm | D46: - | E46: - | F46: - | G46: - | H46: - | I46: - | J46: -
B47: LED 71W Luminaire, IGNIS 1 036 NSW1 Square 4000K, 650mA, 8960lm | D47: - | E47: - | F47: - | G47: - | H47: - | I47: - | J47: -
B48: LED 49W Luminaire, IGNIS 1 036 NSW1 Square 4000K, 450mA, 6532lm | D48: - | E48: - | F48: - | G48: - | H48: - | I48: - | J48: -
B49: LED 17W Luminaire GE Evolve 3000K P4/P5 | D49: - | E49: - | F49: - | G49: - | H49: - | I49: - | J49: -
B50: LED210-Emilio Catenary 71W | D50: - | E50: - | F50: - | G50: - | H50: - | I50: - | J50: -
B51: LED214-GE Area Lighter Flood Light 150W | D51: - | E51: - | F51: - | G51: - | H51: - | I51: - | J51: -
B52: LED218-GE Area Lighter Flood Light 240W | D52: - | E52: - | F52: - | G52: - | H52: - | I52: - | J52: -
B53: LED222-Sirkel Catenary 100W | D53: - | E53: - | F53: - | G53: - | H53: - | I53: - | J53: -
B54: LED 76W Luminaire, IGNIS 1 036 RMS5 4000K, 675mA | D54: - | E54: - | F54: - | G54: - | H54: - | I54: - | J54: -
B55: LED0240-GE EVOLVE CAT V LEOPARD 204W | D55: - | E55: - | F55: - | G55: - | H55: - | I55: - | J55: -
B56: LED0244-GE EVOLVE CAT V LEOPARD 122W | D56: - | E56: - | F56: - | G56: - | H56: - | I56: - | J56: -
B57: LED0249-StreetLED3 13.7W 3K DALI | D57: - | E57: - | F57: - | G57: - | H57: - | I57: - | J57: -
B58: LED0253-StreetLED3 24W 3K DALI Aeroscreen | D58: - | E58: - | F58: - | G58: - | H58: - | I58: - | J58: -
B59: LED0257- 14W Bourke Hill Mk2 3K TOP ENTRY | D59: - | E59: - | F59: - | G59: - | H59: - | I59: - | J59: -
B60: LED0258- 14W Bourke Hill Mk2 3K SIDE ENTRY | D60: - | E60: - | F60: - | G60: - | H60: - | I60: - | J60: -
B61: LED0260- 16W Kensington 3000k | D61: - | E61: - | F61: - | G61: - | H61: - | I61: - | J61: -
B62: LED0262- 24W Bourke Hill Mk2 3K TOP ENTRY | D62: - | E62: - | F62: - | G62: - | H62: - | I62: - | J62: -
B63: LED0264- 24W Bourke Hill Mk2 3K SIDE ENTRY | D63: - | E63: - | F63: - | G63: - | H63: - | I63: - | J63: -
B64: LED0266- 30W Kensington 3000k | D64: - | E64: - | F64: - | G64: - | H64: - | I64: - | J64: -
B65: LED0268- 80W Parkville Mk2 4K TOP ENTRY | D65: - | E65: - | F65: - | G65: - | H65: - | I65: - | J65: -
B66: LED0270- 80W Parkville Mk2 4K SIDE ENTRY | D66: - | E66: - | F66: - | G66: - | H66: - | I66: - | J66: -
B67: LED0272- 100W Parkville Mk2 4K TOP ENTRY | D67: - | E67: - | F67: - | G67: - | H67: - | I67: - | J67: -
B68: LED0274- 100W Parkville Mk2 4K SIDE ENTRY | D68: - | E68: - | F68: - | G68: - | H68: - | I68: - | J68: -
B69: LED0276- 150W Parkville Mk2 4K TOP ENTRY | D69: - | E69: - | F69: - | G69: - | H69: - | I69: - | J69: -
B70: LED0278- 150W Parkville Mk2 4K SIDE ENTRY | D70: - | E70: - | F70: - | G70: - | H70: - | I70: - | J70: -
B71: LED0280- 14W Avenue Mk2 3K TOP ENTRY | D71: - | E71: - | F71: - | G71: - | H71: - | I71: - | J71: -
B72: LED0282- 14W Avenue Mk2 3K SIDE ENTRY | D72: - | E72: - | F72: - | G72: - | H72: - | I72: - | J72: -
B73: LED0284- 17W B2001 Mk2 3K | D73: - | E73: - | F73: - | G73: - | H73: - | I73: - | J73: -
B74: LED0286- 24W Avenue Mk2 3K TOP ENTRY | D74: - | E74: - | F74: - | G74: - | H74: - | I74: - | J74: -
B75: LED0288- 24W Avenue Mk2 3K SIDE ENTRY | D75: - | E75: - | F75: - | G75: - | H75: - | I75: - | J75: -
B76: LED0290- 28W B2001 Mk2 3K | D76: - | E76: - | F76: - | G76: - | H76: - | I76: - | J76: -
B77: LED0292-GE Area Lighter Flood Light 500W | D77: - | E77: - | F77: - | G77: - | H77: - | I77: - | J77: -
B95: LIGHT REPLACEMENT
B96: LED 33W Luminaire StreetLED2 Category P3 Aeroscreen | D96: 405.7421053 | E96: 405.7421053 | F96: 405.7421053 | G96: 405.7421053 | H96: 405.7421053 | I96: 405.7421053 | J96: 405.7421053
B97: LED 17W Luminaire StreetLED3 3000K P4/P5 | D97: 339.3979264 | E97: 339.3979264 | F97: 339.3979264 | G97: 339.3979264 | H97: 339.3979264 | I97: 339.3979264 | J97: 339.3979264
B98: LED 17W Luminaire StreetLED3 Louvred Category P4/P5 Reduced RRW | D98: 331.5265832 | E98: 331.5265832 | F98: 331.5265832 | G98: 331.5265832 | H98: 331.5265832 | I98: 331.5265832 | J98: 331.5265832
B99: LED 25W Luminaire StreetLED3 2200K, 2022lm, 505mA | D99: 363.0119562 | E99: 363.0119562 | F99: 363.0119562 | G99: 363.0119562 | H99: 363.0119562 | I99: 363.0119562 | J99: 363.0119562
B100: LED 50W Luminaire RoadLED Midi 4000K, 7614lm, 208mA | D100: 792.843477 | E100: 792.843477 | F100: 792.843477 | G100: 792.843477 | H100: 792.843477 | I100: 792.843477 | J100: 792.843477
B101: LED 80W Luminaire RoadLED Midi 4000K, 9509lm, 661mA | D101: 792.843477 | E101: 792.843477 | F101: 792.843477 | G101: 792.843477 | H101: 792.843477 | I101: 792.843477 | J101: 792.843477
B102: LED 150W Luminaire RoadLED Midi 4000K, 20321lm, 650mA | D102: 809.7106411 | E102: 809.7106411 | F102: 809.7106411 | G102: 809.7106411 | H102: 809.7106411 | I102: 809.7106411 | J102: 809.7106411
B103: LED 300W Luminaire RoadLED 4K 4000K, 35254lm, 650mA, Aeroscreen | D103: 1130.186759 | E103: 1130.186759 | F103: 1130.186759 | G103: 1130.186759 | H103: 1130.186759 | I103: 1130.186759 | J103: 1130.186759
B104: LED 27W Luminaire, IGNIS Mini 020 MX2 Square 3000K, 425mA, 3685lm | D104: 405.1798665 | E104: 405.1798665 | F104: 405.1798665 | G104: 405.1798665 | H104: 405.1798665 | I104: 405.1798665 | J104: 405.1798665
B105: LED 22W Luminaire, IGNIS Mini 020 MX2 Square 3000K , 275mA, 2506lm | D105: 405.1798665 | E105: 405.1798665 | F105: 405.1798665 | G105: 405.1798665 | H105: 405.1798665 | I105: 405.1798665 | J105: 405.1798665
B106: LED 22W Luminaire, IGNIS Mini 020 MX2 Square 3000K, 275mA, 2200lm & Shield | D106: 405.1798665 | E106: 405.1798665 | F106: 405.1798665 | G106: 405.1798665 | H106: 405.1798665 | I106: 405.1798665 | J106: 405.1798665
B107: LED 22W Luminaire, IGNIS Mini 020 MX2 Square 2200K, 350mA, 2811lm | D107: 405.1798665 | E107: 405.1798665 | F107: 405.1798665 | G107: 405.1798665 | H107: 405.1798665 | I107: 405.1798665 | J107: 405.1798665
B108: LED 71W Luminaire, IGNIS 1 036 NSW1 Square 4000K, 650mA, 8960lm | D108: 726.4992981 | E108: 726.4992981 | F108: 726.4992981 | G108: 726.4992981 | H108: 726.4992981 | I108: 726.4992981 | J108: 726.4992981
B109: LED 49W Luminaire, IGNIS 1 036 NSW1 Square 4000K, 450mA, 6532lm | D109: 726.4992981 | E109: 726.4992981 | F109: 726.4992981 | G109: 726.4992981 | H109: 726.4992981 | I109: 726.4992981 | J109: 726.4992981
B110: LED 17W Luminaire GE Evolve 3000K P4/P5 | D110: 327.0286728 | E110: 327.0286728 | F110: 327.0286728 | G110: 327.0286728 | H110: 327.0286728 | I110: 327.0286728 | J110: 327.0286728
B111: LED210-Emilio Catenary 71W | D111: 1180.87163 | E111: 1180.87163 | F111: 1180.87163 | G111: 1180.87163 | H111: 1180.87163 | I111: 1180.87163 | J111: 1180.87163
B112: LED214-GE Area Lighter Flood Light 150W | D112: 750.7422641 | E112: 750.7422641 | F112: 750.7422641 | G112: 750.7422641 | H112: 750.7422641 | I112: 750.7422641 | J112: 750.7422641
B113: LED218-GE Area Lighter Flood Light 240W | D113: 838.4515174 | E113: 838.4515174 | F113: 838.4515174 | G113: 838.4515174 | H113: 838.4515174 | I113: 838.4515174 | J113: 838.4515174
B114: LED222-Sirkel Catenary 100W | D114: 1737.582598 | E114: 1737.582598 | F114: 1737.582598 | G114: 1737.582598 | H114: 1737.582598 | I114: 1737.582598 | J114: 1737.582598
B115: LED 76W Luminaire, IGNIS 1 036 RMS5 4000K, 675mA | D115: 715.9892752 | E115: 715.9892752 | F115: 715.9892752 | G115: 715.9892752 | H115: 715.9892752 | I115: 715.9892752 | J115: 715.9892752
B116: LED0240-GE EVOLVE CAT V LEOPARD 204W | D116: 894.2248045 | E116: 894.2248045 | F116: 894.2248045 | G116: 894.2248045 | H116: 894.2248045 | I116: 894.2248045 | J116: 894.2248045
B117: LED0244-GE EVOLVE CAT V LEOPARD 122W | D117: 804.3317235 | E117: 804.3317235 | F117: 804.3317235 | G117: 804.3317235 | H117: 804.3317235 | I117: 804.3317235 | J117: 804.3317235
B118: LED0249-StreetLED3 13.7W 3K DALI | D118: 357.2456024 | E118: 357.2456024 | F118: 357.2456024 | G118: 357.2456024 | H118: 357.2456024 | I118: 357.2456024 | J118: 357.2456024
B119: LED0253-StreetLED3 24W 3K DALI Aeroscreen | D119: 415.2617868 | E119: 415.2617868 | F119: 415.2617868 | G119: 415.2617868 | H119: 415.2617868 | I119: 415.2617868 | J119: 415.2617868
B120: LED0257- 14W Bourke Hill Mk2 3K TOP ENTRY | D120: 1175.233069 | E120: 1175.233069 | F120: 1175.233069 | G120: 1175.233069 | H120: 1175.233069 | I120: 1175.233069 | J120: 1175.233069
B121: LED0258- 14W Bourke Hill Mk2 3K SIDE ENTRY | D121: 1175.233069 | E121: 1175.233069 | F121: 1175.233069 | G121: 1175.233069 | H121: 1175.233069 | I121: 1175.233069 | J121: 1175.233069
B122: LED0260- 16W Kensington 3000k | D122: 1378.900718 | E122: 1378.900718 | F122: 1378.900718 | G122: 1378.900718 | H122: 1378.900718 | I122: 1378.900718 | J122: 1378.900718
B123: LED0262- 24W Bourke Hill Mk2 3K TOP ENTRY | D123: 1175.233069 | E123: 1175.233069 | F123: 1175.233069 | G123: 1175.233069 | H123: 1175.233069 | I123: 1175.233069 | J123: 1175.233069
B124: LED0264- 24W Bourke Hill Mk2 3K SIDE ENTRY | D124: 1175.233069 | E124: 1175.233069 | F124: 1175.233069 | G124: 1175.233069 | H124: 1175.233069 | I124: 1175.233069 | J124: 1175.233069
B125: LED0266- 30W Kensington 3000k | D125: 1413.815172 | E125: 1413.815172 | F125: 1413.815172 | G125: 1413.815172 | H125: 1413.815172 | I125: 1413.815172 | J125: 1413.815172
B126: LED0268- 80W Parkville Mk2 4K TOP ENTRY | D126: 1506.670881 | E126: 1506.670881 | F126: 1506.670881 | G126: 1506.670881 | H126: 1506.670881 | I126: 1506.670881 | J126: 1506.670881
B127: LED0270- 80W Parkville Mk2 4K SIDE ENTRY | D127: 1553.223486 | E127: 1553.223486 | F127: 1553.223486 | G127: 1553.223486 | H127: 1553.223486 | I127: 1553.223486 | J127: 1553.223486
B128: LED0272- 100W Parkville Mk2 4K TOP ENTRY | D128: 1506.670881 | E128: 1506.670881 | F128: 1506.670881 | G128: 1506.670881 | H128: 1506.670881 | I128: 1506.670881 | J128: 1506.670881
B129: LED0274- 100W Parkville Mk2 4K SIDE ENTRY | D129: 1553.223486 | E129: 1553.223486 | F129: 1553.223486 | G129: 1553.223486 | H129: 1553.223486 | I129: 1553.223486 | J129: 1553.223486
B130: LED0276- 150W Parkville Mk2 4K TOP ENTRY | D130: 1559.042562 | E130: 1559.042562 | F130: 1559.042562 | G130: 1559.042562 | H130: 1559.042562 | I130: 1559.042562 | J130: 1559.042562
B131: LED0278- 150W Parkville Mk2 4K SIDE ENTRY | D131: 1605.595167 | E131: 1605.595167 | F131: 1605.595167 | G131: 1605.595167 | H131: 1605.595167 | I131: 1605.595167 | J131: 1605.595167
B132: LED0280- 14W Avenue Mk2 3K TOP ENTRY | D132: 959.9272697 | E132: 959.9272697 | F132: 959.9272697 | G132: 959.9272697 | H132: 959.9272697 | I132: 959.9272697 | J132: 959.9272697
B133: LED0282- 14W Avenue Mk2 3K SIDE ENTRY | D133: 959.9272697 | E133: 959.9272697 | F133: 959.9272697 | G133: 959.9272697 | H133: 959.9272697 | I133: 959.9272697 | J133: 959.9272697
B134: LED0284- 17W B2001 Mk2 3K | D134: 1076.308783 | E134: 1076.308783 | F134: 1076.308783 | G134: 1076.308783 | H134: 1076.308783 | I134: 1076.308783 | J134: 1076.308783
B135: LED0286- 24W Avenue Mk2 3K TOP ENTRY | D135: 959.9272697 | E135: 959.9272697 | F135: 959.9272697 | G135: 959.9272697 | H135: 959.9272697 | I135: 959.9272697 | J135: 959.9272697
B136: LED0288- 24W Avenue Mk2 3K SIDE ENTRY | D136: 959.9272697 | E136: 959.9272697 | F136: 959.9272697 | G136: 959.9272697 | H136: 959.9272697 | I136: 959.9272697 | J136: 959.9272697
B137: LED0290- 28W B2001 Mk2 3K | D137: 1076.308783 | E137: 1076.308783 | F137: 1076.308783 | G137: 1076.308783 | H137: 1076.308783 | I137: 1076.308783 | J137: 1076.308783
B138: LED0292-GE Area Lighter Flood Light 500W | D138: 1553.223486 | E138: 1553.223486 | F138: 1553.223486 | G138: 1553.223486 | H138: 1553.223486 | I138: 1553.223486 | J138: 1553.223486
B156: LIGHT MAINTENANCE
B157: LED 33W Luminaire StreetLED2 Category P3 Aeroscreen | D157: 37.51944233 | E157: 37.51944233 | F157: 37.51944233 | G157: 37.51944233 | H157: 37.51944233 | I157: 37.51944233 | J157: 37.51944233
B158: LED 17W Luminaire StreetLED3 3000K P4/P5 | D158: 37.51944233 | E158: 37.51944233 | F158: 37.51944233 | G158: 37.51944233 | H158: 37.51944233 | I158: 37.51944233 | J158: 37.51944233
B159: LED 17W Luminaire StreetLED3 Louvred Category P4/P5 Reduced RRW | D159: 37.51944233 | E159: 37.51944233 | F159: 37.51944233 | G159: 37.51944233 | H159: 37.51944233 | I159: 37.51944233 | J159: 37.51944233
B160: LED 25W Luminaire StreetLED3 2200K, 2022lm, 505mA | D160: 37.51944233 | E160: 37.51944233 | F160: 37.51944233 | G160: 37.51944233 | H160: 37.51944233 | I160: 37.51944233 | J160: 37.51944233
B161: LED 50W Luminaire RoadLED Midi 4000K, 7614lm, 208mA | D161: 58.90192967 | E161: 58.90192967 | F161: 58.90192967 | G161: 58.90192967 | H161: 58.90192967 | I161: 58.90192967 | J161: 58.90192967
B162: LED 80W Luminaire RoadLED Midi 4000K, 9509lm, 661mA | D162: 58.90192967 | E162: 58.90192967 | F162: 58.90192967 | G162: 58.90192967 | H162: 58.90192967 | I162: 58.90192967 | J162: 58.90192967
B163: LED 150W Luminaire RoadLED Midi 4000K, 20321lm, 650mA | D163: 58.90192967 | E163: 58.90192967 | F163: 58.90192967 | G163: 58.90192967 | H163: 58.90192967 | I163: 58.90192967 | J163: 58.90192967
B164: LED 300W Luminaire RoadLED 4K 4000K, 35254lm, 650mA, Aeroscreen | D164: 58.90192967 | E164: 58.90192967 | F164: 58.90192967 | G164: 58.90192967 | H164: 58.90192967 | I164: 58.90192967 | J164: 58.90192967
B165: LED 27W Luminaire, IGNIS Mini 020 MX2 Square 3000K, 425mA, 3685lm | D165: 37.51944233 | E165: 37.51944233 | F165: 37.51944233 | G165: 37.51944233 | H165: 37.51944233 | I165: 37.51944233 | J165: 37.51944233
B166: LED 22W Luminaire, IGNIS Mini 020 MX2 Square 3000K , 275mA, 2506lm | D166: 37.51944233 | E166: 37.51944233 | F166: 37.51944233 | G166: 37.51944233 | H166: 37.51944233 | I166: 37.51944233 | J166: 37.51944233
B167: LED 22W Luminaire, IGNIS Mini 020 MX2 Square 3000K, 275mA, 2200lm & Shield | D167: 37.51944233 | E167: 37.51944233 | F167: 37.51944233 | G167: 37.51944233 | H167: 37.51944233 | I167: 37.51944233 | J167: 37.51944233
B168: LED 22W Luminaire, IGNIS Mini 020 MX2 Square 2200K, 350mA, 2811lm | D168: 37.51944233 | E168: 37.51944233 | F168: 37.51944233 | G168: 37.51944233 | H168: 37.51944233 | I168: 37.51944233 | J168: 37.51944233
B169: LED 71W Luminaire, IGNIS 1 036 NSW1 Square 4000K, 650mA, 8960lm | D169: 58.90192967 | E169: 58.90192967 | F169: 58.90192967 | G169: 58.90192967 | H169: 58.90192967 | I169: 58.90192967 | J169: 58.90192967
B170: LED 49W Luminaire, IGNIS 1 036 NSW1 Square 4000K, 450mA, 6532lm | D170: 58.90192967 | E170: 58.90192967 | F170: 58.90192967 | G170: 58.90192967 | H170: 58.90192967 | I170: 58.90192967 | J170: 58.90192967
B171: LED 17W Luminaire GE Evolve 3000K P4/P5 | D171: 37.51944233 | E171: 37.51944233 | F171: 37.51944233 | G171: 37.51944233 | H171: 37.51944233 | I171: 37.51944233 | J171: 37.51944233
B172: LED210-Emilio Catenary 71W | D172: 58.90192967 | E172: 58.90192967 | F172: 58.90192967 | G172: 58.90192967 | H172: 58.90192967 | I172: 58.90192967 | J172: 58.90192967
B173: LED214-GE Area Lighter Flood Light 150W | D173: 58.90192967 | E173: 58.90192967 | F173: 58.90192967 | G173: 58.90192967 | H173: 58.90192967 | I173: 58.90192967 | J173: 58.90192967
B174: LED218-GE Area Lighter Flood Light 240W | D174: 58.90192967 | E174: 58.90192967 | F174: 58.90192967 | G174: 58.90192967 | H174: 58.90192967 | I174: 58.90192967 | J174: 58.90192967
B175: LED222-Sirkel Catenary 100W | D175: 58.90192967 | E175: 58.90192967 | F175: 58.90192967 | G175: 58.90192967 | H175: 58.90192967 | I175: 58.90192967 | J175: 58.90192967
B176: LED 76W Luminaire, IGNIS 1 036 RMS5 4000K, 675mA | D176: 58.90192967 | E176: 58.90192967 | F176: 58.90192967 | G176: 58.90192967 | H176: 58.90192967 | I176: 58.90192967 | J176: 58.90192967
B177: LED0240-GE EVOLVE CAT V LEOPARD 204W | D177: 58.90192967 | E177: 58.90192967 | F177: 58.90192967 | G177: 58.90192967 | H177: 58.90192967 | I177: 58.90192967 | J177: 58.90192967
B178: LED0244-GE EVOLVE CAT V LEOPARD 122W | D178: 58.90192967 | E178: 58.90192967 | F178: 58.90192967 | G178: 58.90192967 | H178: 58.90192967 | I178: 58.90192967 | J178: 58.90192967
B179: LED0249-StreetLED3 13.7W 3K DALI | D179: 37.51944233 | E179: 37.51944233 | F179: 37.51944233 | G179: 37.51944233 | H179: 37.51944233 | I179: 37.51944233 | J179: 37.51944233
B180: LED0253-StreetLED3 24W 3K DALI Aeroscreen | D180: 37.51944233 | E180: 37.51944233 | F180: 37.51944233 | G180: 37.51944233 | H180: 37.51944233 | I180: 37.51944233 | J180: 37.51944233
B181: LED0257- 14W Bourke Hill Mk2 3K TOP ENTRY | D181: 37.51944233 | E181: 37.51944233 | F181: 37.51944233 | G181: 37.51944233 | H181: 37.51944233 | I181: 37.51944233 | J181: 37.51944233
B182: LED0258- 14W Bourke Hill Mk2 3K SIDE ENTRY | D182: 37.51944233 | E182: 37.51944233 | F182: 37.51944233 | G182: 37.51944233 | H182: 37.51944233 | I182: 37.51944233 | J182: 37.51944233
B183: LED0260- 16W Kensington 3000k | D183: 37.51944233 | E183: 37.51944233 | F183: 37.51944233 | G183: 37.51944233 | H183: 37.51944233 | I183: 37.51944233 | J183: 37.51944233
B184: LED0262- 24W Bourke Hill Mk2 3K TOP ENTRY | D184: 37.51944233 | E184: 37.51944233 | F184: 37.51944233 | G184: 37.51944233 | H184: 37.51944233 | I184: 37.51944233 | J184: 37.51944233
B185: LED0264- 24W Bourke Hill Mk2 3K SIDE ENTRY | D185: 37.51944233 | E185: 37.51944233 | F185: 37.51944233 | G185: 37.51944233 | H185: 37.51944233 | I185: 37.51944233 | J185: 37.51944233
B186: LED0266- 30W Kensington 3000k | D186: 37.51944233 | E186: 37.51944233 | F186: 37.51944233 | G186: 37.51944233 | H186: 37.51944233 | I186: 37.51944233 | J186: 37.51944233
B187: LED0268- 80W Parkville Mk2 4K TOP ENTRY | D187: 58.90192967 | E187: 58.90192967 | F187: 58.90192967 | G187: 58.90192967 | H187: 58.90192967 | I187: 58.90192967 | J187: 58.90192967
B188: LED0270- 80W Parkville Mk2 4K SIDE ENTRY | D188: 58.90192967 | E188: 58.90192967 | F188: 58.90192967 | G188: 58.90192967 | H188: 58.90192967 | I188: 58.90192967 | J188: 58.90192967
B189: LED0272- 100W Parkville Mk2 4K TOP ENTRY | D189: 58.90192967 | E189: 58.90192967 | F189: 58.90192967 | G189: 58.90192967 | H189: 58.90192967 | I189: 58.90192967 | J189: 58.90192967
B190: LED0274- 100W Parkville Mk2 4K SIDE ENTRY | D190: 58.90192967 | E190: 58.90192967 | F190: 58.90192967 | G190: 58.90192967 | H190: 58.90192967 | I190: 58.90192967 | J190: 58.90192967
B191: LED0276- 150W Parkville Mk2 4K TOP ENTRY | D191: 58.90192967 | E191: 58.90192967 | F191: 58.90192967 | G191: 58.90192967 | H191: 58.90192967 | I191: 58.90192967 | J191: 58.90192967
B192: LED0278- 150W Parkville Mk2 4K SIDE ENTRY | D192: 58.90192967 | E192: 58.90192967 | F192: 58.90192967 | G192: 58.90192967 | H192: 58.90192967 | I192: 58.90192967 | J192: 58.90192967
B193: LED0280- 14W Avenue Mk2 3K TOP ENTRY | D193: 37.51944233 | E193: 37.51944233 | F193: 37.51944233 | G193: 37.51944233 | H193: 37.51944233 | I193: 37.51944233 | J193: 37.51944233
B194: LED0282- 14W Avenue Mk2 3K SIDE ENTRY | D194: 37.51944233 | E194: 37.51944233 | F194: 37.51944233 | G194: 37.51944233 | H194: 37.51944233 | I194: 37.51944233 | J194: 37.51944233
B195: LED0284- 17W B2001 Mk2 3K | D195: 37.51944233 | E195: 37.51944233 | F195: 37.51944233 | G195: 37.51944233 | H195: 37.51944233 | I195: 37.51944233 | J195: 37.51944233
B196: LED0286- 24W Avenue Mk2 3K TOP ENTRY | D196: 37.51944233 | E196: 37.51944233 | F196: 37.51944233 | G196: 37.51944233 | H196: 37.51944233 | I196: 37.51944233 | J196: 37.51944233
B197: LED0288- 24W Avenue Mk2 3K SIDE ENTRY | D197: 37.51944233 | E197: 37.51944233 | F197: 37.51944233 | G197: 37.51944233 | H197: 37.51944233 | I197: 37.51944233 | J197: 37.51944233
B198: LED0290- 28W B2001 Mk2 3K | D198: 37.51944233 | E198: 37.51944233 | F198: 37.51944233 | G198: 37.51944233 | H198: 37.51944233 | I198: 37.51944233 | J198: 37.51944233
B199: LED0292-GE Area Lighter Flood Light 500W | D199: 58.90192967 | E199: 58.90192967 | F199: 58.90192967 | G199: 58.90192967 | H199: 58.90192967 | I199: 58.90192967 | J199: 58.90192967

Sheet 6.2 Reliability & Cust serv
B1: =INDEX(dms_Worksheet_List,MATCH(dms_Model,dms_Model_List)) -> REGULATORY REPORTING STATEMENT
B2: =INDEX(dms_TradingNameFull_List,MATCH(dms_TradingName,dms_TradingName_List)) -> Essential Energy
B3: =CONCATENATE("REGULATORY PERIOD FROM ", FRCP_y1," TO ",dms_MultiYear_FinalYear_Result) -> REGULATORY PERIOD FROM 2024-25 TO 2028-29
B4: 6.2 RELIABILITY AND CUSTOMER SERVICE PERFORMANCE
B6: There are FIVE tables on this worksheet. Each table has been grouped for ease of navigation. See the Instructions sheet on how to group or ungroup tables.
B8: 6.2.1 - UNPLANNED MINUTES OFF SUPPLY (SAIDI)
E9: Proposed target
B10: SAIDI | E10: =FRCP_y1 -> 2024-25 | F10: =FRCP_y2 -> 2025-26 | G10: =FRCP_y3 -> 2026-27 | H10: =FRCP_y4 -> 2027-28 | I10: =FRCP_y5 -> 2028-29
B11: Total sustained minutes off supply after removing excluded events
B12: =INDEX(dms_FeederName_1,MATCH(dms_TradingName,dms_TradingName_List)) -> CBD
B13: =INDEX(dms_FeederName_2,MATCH(dms_TradingName,dms_TradingName_List)) -> Urban | E13: 68.97635996 | F13: 68.97635996 | G13: 68.97635996 | H13: 68.97635996 | I13: 68.97635996
B14: =INDEX(dms_FeederName_3,MATCH(dms_TradingName,dms_TradingName_List)) -> Short rural | E14: 212.9337708 | F14: 212.9337708 | G14: 212.9337708 | H14: 212.9337708 | I14: 212.9337708
B15: =INDEX(dms_FeederName_4,MATCH(dms_TradingName,dms_TradingName_List)) -> Long rural | E15: 492.6000064 | F15: 492.6000064 | G15: 492.6000064 | H15: 492.6000064 | I15: 492.6000064
B16: =IF(ISBLANK(INDEX(dms_FeederName_5,MATCH(dms_TradingName,dms_TradingName_List))),"",INDEX(dms_FeederName_5,MATCH(dms_TradingName,dms_TradingName_List))) -> 
B17: Total | E17: =SUM(E12:E16) -> 774.5101372 | F17: =SUM(F12:F16) -> 774.5101372 | G17: =SUM(G12:G16) -> 774.5101372 | H17: =SUM(H12:H16) -> 774.5101372 | I17: =SUM(I12:I16) -> 774.5101372
B20: 6.2.2 - UNPLANNED INTERRUPTIONS TO SUPPLY (SAIFI)
E21: Proposed target
B22: SAIFI | E22: =FRCP_y1 -> 2024-25 | F22: =FRCP_y2 -> 2025-26 | G22: =FRCP_y3 -> 2026-27 | H22: =FRCP_y4 -> 2027-28 | I22: =FRCP_y5 -> 2028-29
B23: Total sustained interruptions after removing excluded events
B24: =INDEX(dms_FeederName_1,MATCH(dms_TradingName,dms_TradingName_List)) -> CBD
B25: =INDEX(dms_FeederName_2,MATCH(dms_TradingName,dms_TradingName_List)) -> Urban | E25: 0.8335196782 | F25: 0.8335196782 | G25: 0.8335196782 | H25: 0.8335196782 | I25: 0.8335196782
B26: =INDEX(dms_FeederName_3,MATCH(dms_TradingName,dms_TradingName_List)) -> Short rural | E26: 1.75224974 | F26: 1.75224974 | G26: 1.75224974 | H26: 1.75224974 | I26: 1.75224974
B27: =INDEX(dms_FeederName_4,MATCH(dms_TradingName,dms_TradingName_List)) -> Long rural | E27: 2.808787634 | F27: 2.808787634 | G27: 2.808787634 | H27: 2.808787634 | I27: 2.808787634
B28: =IF(ISBLANK(INDEX(dms_FeederName_5,MATCH(dms_TradingName,dms_TradingName_List))),"",INDEX(dms_FeederName_5,MATCH(dms_TradingName,dms_TradingName_List))) -> 
B29: Total | E29: =SUM(E24:E28) -> 5.394557053 | F29: =SUM(F24:F28) -> 5.394557053 | G29: =SUM(G24:G28) -> 5.394557053 | H29: =SUM(H24:H28) -> 5.394557053 | I29: =SUM(I24:I28) -> 5.394557053
B32: 6.2.3 - UNPLANNED MOMENTARY INTERRUPTIONS TO SUPPLY (MAIFI)
E33: Proposed target
B34: MAIFI | E34: =FRCP_y1 -> 2024-25 | F34: =FRCP_y2 -> 2025-26 | G34: =FRCP_y3 -> 2026-27 | H34: =FRCP_y4 -> 2027-28 | I34: =FRCP_y5 -> 2028-29
B35: Total momentary interruptions after removing excluded events
B36: =INDEX(dms_FeederName_1,MATCH(dms_TradingName,dms_TradingName_List)) -> CBD
B37: =INDEX(dms_FeederName_2,MATCH(dms_TradingName,dms_TradingName_List)) -> Urban
B38: =INDEX(dms_FeederName_3,MATCH(dms_TradingName,dms_TradingName_List)) -> Short rural
B39: =INDEX(dms_FeederName_4,MATCH(dms_TradingName,dms_TradingName_List)) -> Long rural
B40: =IF(ISBLANK(INDEX(dms_FeederName_5,MATCH(dms_TradingName,dms_TradingName_List))),"",INDEX(dms_FeederName_5,MATCH(dms_TradingName,dms_TradingName_List))) -> 
B41: Total | E41: =SUM(E36:E40) -> 0 | F41: =SUM(F36:F40) -> 0 | G41: =SUM(G36:G40) -> 0 | H41: =SUM(H36:H40) -> 0 | I41: =SUM(I36:I40) -> 0
B44: 6.2.3(B) - UNPLANNED MOMENTARY INTERRUPTIONS TO SUPPLY (MAIFIe)
E45: Proposed target
B46: MAIFIe | E46: =FRCP_y1 -> 2024-25 | F46: =FRCP_y2 -> 2025-26 | G46: =FRCP_y3 -> 2026-27 | H46: =FRCP_y4 -> 2027-28 | I46: =FRCP_y5 -> 2028-29
B47: Total momentary interruptions after removing excluded events
B48: =INDEX(dms_FeederName_1,MATCH(dms_TradingName,dms_TradingName_List)) -> CBD
B49: =INDEX(dms_FeederName_2,MATCH(dms_TradingName,dms_TradingName_List)) -> Urban
B50: =INDEX(dms_FeederName_3,MATCH(dms_TradingName,dms_TradingName_List)) -> Short rural
B51: =INDEX(dms_FeederName_4,MATCH(dms_TradingName,dms_TradingName_List)) -> Long rural
B52: =IF(ISBLANK(INDEX(dms_FeederName_5,MATCH(dms_TradingName,dms_TradingName_List))),"",INDEX(dms_FeederName_5,MATCH(dms_TradingName,dms_TradingName_List))) -> 
B53: Total | E53: =SUM(E48:E52) -> 0 | F53: =SUM(F48:F52) -> 0 | G53: =SUM(G48:G52) -> 0 | H53: =SUM(H48:H52) -> 0 | I53: =SUM(I48:I52) -> 0
B56: The number of distribution customers is calculated as the average of the number of customers at the beginning of the reporting period and the number of customers at the end of the reporting period.
B58: 6.2.4 - DISTRIBUTION CUSTOMER NUMBERS
C59: Forecast
B60: Average customer numbers | C60: =CRCP_y4 -> 2022-23 | D60: =CRCP_y5 -> 2023-24 | E60: =FRCP_y1 -> 2024-25 | F60: =FRCP_y2 -> 2025-26 | G60: =FRCP_y3 -> 2026-27 | H60: =FRCP_y4 -> 2027-28 | I60: =FRCP_y5 -> 2028-29
B61: =INDEX(dms_FeederName_1,MATCH(dms_TradingName,dms_TradingName_List)) -> CBD
B62: =INDEX(dms_FeederName_2,MATCH(dms_TradingName,dms_TradingName_List)) -> Urban | C62: 191245.395 | D62: 192779.9474 | E62: 194314.4801 | F62: 195854.5739 | G62: 197397.0229 | H62: 198940.578 | I62: 200484.1317
B63: =INDEX(dms_FeederName_3,MATCH(dms_TradingName,dms_TradingName_List)) -> Short rural | C63: 605189.9157 | D63: 610045.9574 | E63: 614901.9371 | F63: 619775.5145 | G63: 624656.5449 | H63: 629541.0754 | I63: 634425.6015
B64: =INDEX(dms_FeederName_4,MATCH(dms_TradingName,dms_TradingName_List)) -> Long rural | C64: 142605.4399 | D64: 143749.7055 | E64: 144893.9564 | F64: 146042.354 | G64: 147192.5078 | H64: 148343.4864 | I64: 149494.4639
B65: =IF(ISBLANK(INDEX(dms_FeederName_5,MATCH(dms_TradingName,dms_TradingName_List))),"",INDEX(dms_FeederName_5,MATCH(dms_TradingName,dms_TradingName_List))) -> 
B66: Total | C66: =SUM(C61:C65) -> 939040.7507 | D66: 946575.6102 | E66: 954110.3735 | F66: 961672.4423 | G66: 969246.0757 | H66: 976825.1398 | I66: 984404.1971
B68: The AER's definition of calls answered within 30 seconds is as follows: Calls to the fault line answered in 30 seconds where the time to answer a call is measured from when the call enters the telephone system of the call centre (including that time when it may be ringing unanswered by any response) and the caller speaks with a human operator, but excluding the time that the caller is connected to an automated interactive service that provides substantive information. This measure does not apply to: - calls to payment lines and automated interactive services; - calls abandoned by the customer within 30 seconds of the call being queued for response by a human operator. Where the time in which a telephone call is abandoned is not measured, then an estimate of the number of calls abandoned within 30 seconds will be determined by taking 20 per cent of all calls abandoned. Note: Being placed in a queuing system (automated or otherwise) does not constitute a response. 'Calls answered within 30 seconds' and 'Calls received' should be calculated excluding calls abandoned within 30 seconds of being queued for a human operator; and calls to payment lines and automated interactive services.
B70: 6.2.5 - CUSTOMER SERVICE
E71: Proposed target
E72: =FRCP_y1 -> 2024-25 | F72: =FRCP_y2 -> 2025-26 | G72: =FRCP_y3 -> 2026-27 | H72: =FRCP_y4 -> 2027-28 | I72: =FRCP_y5 -> 2028-29
B73: Number of calls received | E73: 154021 | F73: 154021 | G73: 154021 | H73: 125000 | I73: 125000
B74: Number of calls answered within 30 seconds | E74: 112435.33 | F74: 112435.33 | G74: 112435.33 | H74: 97500 | I74: 97500
B75: Percentage of calls answered within 30 seconds | E75: =IFERROR((E74/E73),"") -> 0.73 | F75: =IFERROR((F74/F73),"") -> 0.73 | G75: =IFERROR((G74/G73),"") -> 0.73 | H75: =IFERROR((H74/H73),"") -> 0.78 | I75: =IFERROR((I74/I73),"") -> 0.78

Sheet 7.1 Policies and Procedures
B1: =INDEX(dms_Worksheet_List,MATCH(dms_Model,dms_Model_List)) -> REGULATORY REPORTING STATEMENT
B2: =INDEX(dms_TradingNameFull_List,MATCH(dms_TradingName,dms_TradingName_List)) -> Essential Energy
B3: =CONCATENATE("REGULATORY PERIOD FROM ", FRCP_y1," TO ",dms_MultiYear_FinalYear_Result) -> REGULATORY PERIOD FROM 2024-25 TO 2028-29
B4: 7.1 PLANS, POLICIES, PROCEDURES AND STRATEGIES
B6: 7.1.1 - PLANS, POLICIES, PROCEDURES AND STRATEGIES
C7: Brief description | D7: Relevance to regulatory proposal | E7: Expenditure impact
C8: Description of the plan, policy, procedure or strategy. | D8: Identify the element of the proposal/supporting documents that the policy, plan, procedure or strategy is relevant to e.g. replacement capex, capacity utilisation thresholds, opex | E8: Is this policy, plan or procedure identified in the response to section 4 'Step Changes' of the notice (yes or no)?
B9: Corporate
B10: Statement of Corporate Intent (SCI) | C10: This is summary document outlining our commitment to shareholders for the next budget period and the following three years. | D10: All of business financial forecast. | E10: No
B11: Corporate Strategy | C11: Essential Energy's 5 to 10 year strategy | D11: Corporate Strategy including our vision, purpose, objectives and strategic pillars | E11: No
B13: Governance framework
B14: CECP0002 - Board Policy - Governance | C14: This framework includes the processes by which the company is directed, controlled, held to account and is the main element to maintaining the integrity of the company and its culture of compliance. | D14: Corporate governance | E14: No
B15: CECP0002.30 - Company Policy - Investment Governance | C15: This Policy provides clear guidance and accountability in respect of the development, determination and approval of investments, both network (systems) and non-systems. | D15: Corporate governance | E15: No
B16: CECP0002.03 - Board Policy - Risk Management | C16: To ensure that the requirements for the development, implementation, communication and review of the Risk Management Framework are continually aligned with the delivery of proactive, systematic risk management that is aimed at integrating risk management into all that we do as a company. | D16: Comply with standards and NSW Govt guidelines | E16: No
B17: CEOP0002.46 - Company Procedure - Charters of Committees | C17: This procedure applies to all company committees as defined within this procedure. This procedure does not apply to Working Groups. | D17: Corporate governance | E17: No
B18: CECP0002.82 - Network Investment Governance | C18: This Procedure provides guidance on the process to obtain endorsement for network investments in order to support investment decisions | D18: Investment governance | E18: No
B19: CECP0002.33 - Company Procedure- Non System Investments | C19: To provide guidance on the process to obtain endorsement for non-system investments in order to support investment decision | D19: Investment governance | E19: No
B20: CECP0002.02 - Board Policy - Compliance | C20: To outline the company's compliance management framework | D20: Compliance | E20: No
B21: CECP0001.02 - Company Policy - Sub Delegation of Authority by Chief Executive | C21: The companys sub-delegations are a key element in effective governance and management of the organisation. This Policy and the Sub-delegation Schedules set the framework for managing sub-delegated authority throughout the company to ensure that responsibility and accountability are provided from the CEO to the employees of the company to discharge the responsibilities required of their positions and to enable the efficient delivery of outcomes. | D21: Framework for sub delegations | E21: No
B22: CEOP0002.21 - Company Procedure - Risk Management | C22: This Procedure has direct application to assist with the management of Enterprise risks at a Corporate level and also applies to divisional risk management | D22: Risk Management | E22: No
B23: CECP0002.01 - Board Policy (Governance) Preventing Fraud and Corruption | C23: To outline the approach the company will take to promote an ethical framework in managing the risk of fraud and corrupt conduct, based on underlying principles including its commitment to preventing, detecting, investigating and responding to allegations of fraud and corruption. | D23: Compliance | E23: No
B24: CEOP2074 Regulatory Compliance | C24: The purpose of this Procedure is to provide the business with a clear and accessible overview of Essential Energy’s regulatory compliance program. In practical terms, this Procedure seeks to outline the processes, through which regulatory compliance obligations are met, the method of reporting against these obligations and assurance activities in place to verify regulatory compliance. | D24: Compliance | E24: No
B25: CECP2476 Ringfencing policy | C25: The purpose of this policy is to outline Essential Energy’s approach to compliance with the obligations outlined in the Guideline. This policy is intended to be read in conjunction with the Ring-Fencing Procedure. | D25: Compliance | E25: No
B26: CEOP2477 Ringfencing procedure | C26: The purpose of this procedure is to provide guidance to Essential Energy employees on how to adhere to the Ring-Fencing Policy. | D26: Compliance | E26: No
B27: CECP0002.32 - Investment Evaluation | C27: To outline the process for preparing and reviewing financial evaluations on investment options so that these evaluations are conducted in a streamlined and consistent manner | D27: Investment Evaluation | E27: No
B31: Accounting policies, procedures and methodologies (including a capitalisation policy, depreciation policy and an approved expenditure allocation methodology)
B32: CECP2416 - Asset Capitalisation | C32: This policy aims to achieve consistent interpretation and accounting treatment of capital expenditure across all areas of Essential Energy | D32: Asset capitalisation and depreciation | E32: Yes
B33: Cost Allocation Methodology (CAM) | C33: The CAM establishes a method for attributing direct costs and allocating indirect costs between various categories of Essential Energy’s distribution services, that is, between direct control services (standard control services and alternative control services), negotiated services and unregulated distribution services. | D33: Cost Allocation | E33: No
B35: Asset management plan or equivalent documentation
B36: Asset Management Policies
B37: Asset Management Policy CECP1004 | C37: Guiding principles for asset management | D37: Guiding principles for asset management opex and capex | E37: No
B39: Asset Management Strategies
B40: Strategic Asset Management Plan (SAMP) | C40: Objectives and scope of the asset management system | D40: Objectives for asset management opex and capex | E40: No
B44: Asset Management Plans
B45: Network Resilience Plan | C45: Framework and plan for addressing network resilience | D45: Replacement Capex, Augex, Opex | E45: No
B46: Auxiliary AC/DC Systems Invesment Case | C46: Asset class strategy, investment methodology and justification | D46: Replacement capex (Repex) | E46: No
B47: Circuit Breakers Investment Case | C47: Asset class strategy, investment methodology and justification | D47: Replacement capex (Repex) | E47: No
B48: Distribution Power Transformers Investment Case | C48: Asset class strategy, investment methodology and justification | D48: Replacement capex (Repex) | E48: No
B49: Electrical Network Telecommunications System Investment Case | C49: Asset class strategy, investment methodology and justification | D49: Replacement capex (Repex) | E49: No
B50: HV Ring Main Units Investment Case | C50: Asset class strategy, investment methodology and justification | D50: Replacement capex (Repex) | E50: No
B51: Instrument Transformers Investment Case | C51: Asset class strategy, investment methodology and justification | D51: Replacement capex (Repex) | E51: No
B52: Load Control Investment Case | C52: Asset class strategy, investment methodology and justification | D52: Replacement capex (Repex) | E52: No
B53: Overhead Conductors Investment Case | C53: Asset class strategy, investment methodology and justification | D53: Replacement capex (Repex) | E53: No
B54: Overhead Customer Service Connections Investment Case | C54: Asset class strategy, investment methodology and justification | D54: Replacement capex (Repex) | E54: No
B55: Overhead Links, Switches and Fuses Investment Case | C55: Asset class strategy, investment methodology and justification | D55: Replacement capex (Repex) | E55: No
B56: Poles Investment Case | C56: Asset class strategy, investment methodology and justification | D56: Replacement capex (Repex) | E56: No
B57: Pole Top Equipment Investment Case | C57: Asset class strategy, investment methodology and justification | D57: Replacement capex (Repex) | E57: No
B58: Protection and Control Systems Investment Case | C58: Asset class strategy, investment methodology and justification | D58: Replacement capex (Repex) | E58: No
B59: Reactive Plant Investmnt Case | C59: Asset class strategy, investment methodology and justification | D59: Replacement capex (Repex) | E59: No
B60: Stand Alone Power System (SAPS) Investment Case | C60: Asset class strategy, investment methodology and justification | D60: Replacement capex (Repex) | E60: No
B61: Substation Buildings and Property Investment Case | C61: Asset class strategy, investment methodology and justification | D61: Replacement capex (Repex) | E61: No
B62: Surge Arrestors Investment Case | C62: Asset class strategy, investment methodology and justification | D62: Replacement capex (Repex) | E62: No
B63: Switchboards Investment Case | C63: Asset class strategy, investment methodology and justification | D63: Replacement capex (Repex) | E63: No
B64: Underground Cables Investment Case | C64: Asset class strategy, investment methodology and justification | D64: Replacement capex (Repex) | E64: No
B65: Underground Pits, Pillars and Cubicles Investment Case | C65: Asset class strategy, investment methodology and justification | D65: Replacement capex (Repex) | E65: No
B66: Voltage Regulators Investment Case | C66: Asset class strategy, investment methodology and justification | D66: Replacement capex (Repex) | E66: No
B67: Zone Sub Outdoor Busbar, Isolators and Disconnectors Investment Case | C67: Asset class strategy, investment methodology and justification | D67: Replacement capex (Repex) | E67: No
B68: Zone Substation Transformers Investment Case | C68: Asset class strategy, investment methodology and justification | D68: Replacement capex (Repex) | E68: No
B69: Capital expenditure policies and procedures (including capex approval policies and procedures and replacement policy)
B70: Network Investment Governance (CEOP0002.82) | C70: To outline the process for reviewing and approving network investments and change control. | D70: Capex | E70: No
B72: Internal standards for network planning, design, maintenance and operation
B73: Bushfire Risk Management Plan (CEOP8022) | C73: Framework and plan for addressing network risk in relation to bushfire prevention | D73: Opex | E73: No
B74: Asset Disposal (CEOP2531) | C74: Procedure for asset disposal | D74: Capitalisation Policy | E74: No
B75: Electrical Safety Rules (CECP8096) | C75: Operating procedure for Electrical Safety Rules | D75: Capex and Opex | E75: No
B76: Network Strategy - Network Safety | C76: Strategy and approach to planning network safety | D76: Capex and Opex | E76: No
B77: Network Strategy - Network Security | C77: Strategy and approach to planning network security | D77: Capex and Opex | E77: No
B78: Asset Inspection Critical Distribution Equipment (CEOP2034) | C78: Procedure for asset inspection | D78: Opex | E78: No
B79: Network Strategy - Network Sustainability | C79: Strategy and approach to planning network sustatainability | D79: Capex and Opex | E79: No
B80: Technical Maintenance Plan Substations (CEOP8011) | C80: Procedure for asset inspection and maintenance | D80: Opex | E80: No
B81: Overhead Asset Inspection Manual (CEOM7005) | C81: Procedure for asset inspection and maintenance | D81: Opex | E81: No
B82: Distribution Maintenance (CEOP8009) | C82: Procedure for asset inspection and maintenance | D82: Opex | E82: No
B83: Maintenance Strategy - Pole & Line Inspection (CEOP2446) | D83: Opex | E83: No
B84: Network Asset Health Catalogue (CERM7118) | C84: Procedure for categorisation of asset condition and rectification guidelines | D84: Capex and Opex | E84: No
B85: Pit, Pillar and Switchgear Inspection (CEOP8069) | C85: Procedure for asset inspection and maintenance | D85: Opex | E85: No
B86: Underground Substations, Cables and HV Switch Cubicles Inspection and Maintenance (CEOP2474) | C86: Procedure for asset inspection and maintenance | D86: Opex | E86: No
B87: Planned & Unplanned Interruptions (CEOP2514.20) | C87: Procedure for planning and responding to power interruptions | D87: Opex | E87: No
B88: Underground Renewal & Refurbishment Guideline (CEOM7804) | C88: Procedure for asset inspection and maintenance | D88: Replacement capex (Repex) | E88: No
B89: Business Rules for PoF, CoF and asset risk models | C89: business rules for developing Probability and Consequence of Failure models | D89: Replacement capex (Repex) | E89: No
B90: AM Decision Making Guide | C90: Guideline for asset management decision making | D90: Capex and Opex | E90: No
B91: Risk Management Procedure (CEOP0002.21) | C91: Strategy and approach to planning network safety | D91: Capex and Opex | E91: No
B92: Network Risk Management Division Manual (CEOM1141.01) | C92: Procedure for network risk management | D92: Capex and Opex | E92: No
B93: Appraisal Value Framework (CECG1140) | C93: Procedure for applying monetised risk value for analysis of investments | D93: Capex and Opex | E93: No
B94: System Capital Risk and Value Based Investment | C94: procedure and | D94: Capex | E94: No
B95: Network Strategy - Power Quality | C95: Strategy and approach to planning power quality | D95: Capex and Opex | E95: No
B96: Network Strategy - Reliability | C96: Strategy and approach to planning network relaibility | D96: Capex and Opex | E96: No
B97: Network Strategy - Asset Intervention and Retirement | C97: Strategy and approach to planning asset intervention and retirement | D97: Capex and Opex | E97: No
B98: Network Strategy - Network Visibility | C98: Strategy and approach to planning network visibility | D98: Capex and Opex | E98: No
B99: Subtransmission & Distribution Network Planning Criteria (CEOP8003) | D99: Capex and Opex | E99: No
B100: Network Strategy - Protection | C100: Strategy and approach to planning network protection | D100: Capex and Opex | E100: No
B101: Network Strategy - Capacity | C101: Strategy and approach to planning network capacity | D101: Capex and Opex | E101: No
B152: Procurement and contracting out policies
B153: Source to Contract Procedure CEOP0009.06 | C153: The purpose of this procedure is to: • establish a common approach to procurement activity in the company; • drive value for money and sustainable benefits; • embed common effective risk and compliance controls; and • set out the business rules for the source to contract process within the company. | D153: Procurement Procedure | E153: No
B154: Company Policy - Procurement (CECP0009.04) | C154: This Policy governs the procurement of external goods and services; to establish a common approach, drive value for money and sustainable benefits and embed effective risks & compliance controls. | D154: Procurement Policy | E154: No
B155: Information technology policies or strategies
B156: CECP0002 - Governance | C156: This framework includes the processes by which the company is directed, controlled, held to account and is the main element to maintaining the integrity of the company and its culture of compliance. | D156: Provides governance model for technology investment. | E156: No
B157: CECP0002.17 Contracts Register Framework | C157: To establish an accountability framework for the recording and production of contracts. | D157: Evidence of contract management maturity. | E157: No
B158: CECP0002.30 - Investment Governance Framework | C158: Provides the basis for making investment decisions in a transparent and efficient manner by taking into account a full life cycle approach to such investments, and thereby providing assurance to the board and other stakeholders that investment decisions are linked to organisational objectives and are designed to maximise value for customers and shareholders. | D158: Provides governance model for technology investment. | E158: No
B159: CECP0002.33 Governance Procedure | C159: To provide guidance on the process to obtain endorsement for non-system investments in order to support investment decisions which are: • streamlined – decision pathway flows are clear and efficient; • consistent – assessment of needs, outcomes and risks are aligned; and • relevant – appropriate information, both level and content, is submitted to the necessary forum to enable informed decisions. | D159: Provides governance model for technology investment. | E159: No
B160: CECP0002.71 Intellectual Property Management | C160: To articulate the principles that will govern the company’s management of intellectual property. | D160: Evidence of technology IP processes. | E160: No
B161: CECP2537 Cyber Security | C161: Defines and establishes the Cyber Security Management System or Essential Energy, being the policies, standards, processes, and procedures as defined by the information security principles, framework, context, scope, requirements, and responsibilities | D161: Evidence of technology security processes. | E161: No
B162: CECP1005.01 Acceptable Use Of Technology | C162: The key purpose of this policy is to: ensure safe, compliant, and appropriate use of technology resources by all employees, labour hire and ESPs as endorsed by the Executive Leadership Team; protect electronic information from common electronic security risks and to improve incident reporting; clearly inform all users of Essential Energy’s technology of what is acceptable use and the consequence of misuse; notify all users of Essential Energy’s technology that system activity is logged and monitored; and improve productivity, compliance, and security through efficient and responsible behaviour. | D162: Evidence of prudent technology usage controls. | E162: No
B163: CECP7018 Software Asset Management | C163: To provide guidance to Essential Energy employees and contractors of the responsibilities, risks and process surrounding Software Asset Management (SAM) based on the NSW Government Software Asset Management Standard. | D163: Evidence of prudent technology asset management process. | E163: No
B164: CEOM7522.01 Information Technology Disaster Recovery Guideline | C164: To outline the approach to IT Disaster Recovery adopted by Essential Energy in accordance with corporate and regulatory requirements and to define the key aspects of Essential Energy’s IT Disaster Recovery Policy and Framework. | D164: Evidence of prudent disaster recovery management. | E164: No
B165: CEOM7621.01 Technology Guideline: Places In The Network | C165: The Essential Energy Asset Management division provides Telecommunication infrastructure services to many different office types and locations in support of business services. | D165: Evidence of prudent technology asset management process. | E165: No
B166: CEOP2548 Cyber Security Incident Response Plan | C166: This Procedure supports Essential Energy in managing contemporary cyber threats and incidents. | D166: Evidence of technology security processes. | E166: No
B167: CEOS2546 Telecommunications Network Security Management | C167: This Standard ensures the protection of our telecommunications networks and its supporting information processing and control facilities. | D167: Evidence of technology security processes. | E167: No
B168: CECP2548.03 Cyber Security Incident Management | C168: Provides a consistent and effective approach to the management of cyber security incidents, including communication on security events and weaknesses and to limit the scope, impact, and severity of an incident as well as to reduce the likelihood of recurrence of an incident through effective remediation and lessons learned. | D168: Evidence of technology security processes. | E168: No
B169: CEOP2313 Operational Procedure: Information Security: Forensics Plan | C169: Describes the Information System Forensics Framework that will be used when capturing IS evidence and the activities that will be initiated in response to the detection of all information security incidents. | D169: Evidence of technology security processes. | E169: No
B170: CEOP2319 Secure Disposal Of ICT Equipment | C170: The process for the secure disposal of Essential Energy’s information technology (ICT) equipment containing security-classified material. | D170: Evidence of prudent technology asset management process. | E170: No
B171: CEOP2322 User Access Review | C171: To ensure that applicable controls are operating and being maintained in accordance with Essential Energy’s CEOP1003 Information Security Policy. | D171: Evidence of technology security processes. | E171: No
B172: CEOS2547 - Cyber Security Event Logging and Monitoring | C172: This Standard sets out the minimal baseline requirements for logging and monitoring cyber-security events within the company. | D172: Evidence of technology security processes. | E172: No
B173: CEOS2539 Digital Identity and Access Management | C173: This Standard applies to all systems, applications, OT/SCADA, and ICT devices whether internally managed or third party and is part of Essential Energy's cyber-security Identify function. | D173: Evidence of technology security processes. | E173: No
B174: CEOP7003.01 - CONFIGURATION MANAGEMENT DATABASE (CMDB) | C174: Clearly identify, define and communicate the responsibilities and accountabilities for all Essential Energy Essential Technology (eTech) employees, contractors, and vendors in relation to the Configuration Management Database (CMDB). This procedure is based on Information Technology Infrastructure Library (ITIL) Best Practice. | D174: Evidence of prudent technology asset management process. | E174: No
B175: CEOP7009 ICT Change Management Procedure | C175: To outline/describe the procedure for Information Communication and Technology (ICT) change management that is to be followed by the company. This procedure is based on Information Technology Infrastructure Library (ITIL) Best Practice. | D175: Evidence of prudent technology asset management process. | E175: No
B176: CEOP7019 Software Asset Management | C176: Provides guidance to Essential Energy employees (including agency employees, contractors, or External Service Providers) on how to adhere to Company Policy (Information & Communication Technology) - Software Asset Management Policy – CECP7018 | D176: Evidence of prudent technology asset management process. | E176: No
B177: CEOS2549 - Data Backup, Retention and Disposal | C177: This Standard sets out the baseline requirements for backup, recovery, retention and disposal of data within the Company. | D177: Evidence of technology security processes. | E177: No
B178: CEOM7602 eTech Incident Management | C178: To provide eTech Incident Management information | D178: Evidence of prudent technology incident management. | E178: No
B179: DFSI-2015-04-NSW Government Cloud Policy _ ARP | C179: The policy provides guidance for NSW Government agencies to determine which cloud delivery model is best suited to their business needs. | D179: NSW Government policy that EE complies with in regard to technology spend on cloud based services. | E179: No
B180: NSW ICT Investment Policy And Guidelines | C180: The Strategy recognises that opportunities for improved government performance will be provided by collaborative effort and more sustainable, consistent and standardised solutions. | D180: NSW Government policy that EE are complying with in regard to technology spend on standardised solutions. | E180: No
B192: Demand management policies or strategies
B193: CECP0007.01 Network Demand Management Policy | C193: This policy is aimed at ensuring demand management solutions are investigated and implemented where cost effective. | D193: Demand Management / Capex | E193: No
B194: CEOP1121 Demand Management Strategy | C194: This Strategy provides the long-term strategic direction for Essential Energy’s demand management program. | D194: Demand Management / Capex | E194: No
B196: Self insurance guidelines or policy
B197: Insurance Guidelines | C197: This document describes Essential Energy's insurance practise, and discusses when we self insure and when we transfer risk to third parties. | D197: Insurance | E197: No
B199: Land and easement acquisition polices
B200: CEOP8046 - Easement Requirements | C200: This Procedure provides guidelines for easement requirements for powerlines in Essential Energy’s New South Wales distribution area. | D200: Easements | E200: No
B201: CEOP4304.5 - Easement Acquisition Process | C201: The Easement Acquisition Process document provides guidelines for easement requirements and processes for easement requirements and processes for Powerlines in Essential Energy's New South Wales Network | D201: Easements | E201: No
B204: Asset security plans and policies
B205: CECP0016 Security Strategy | C205: Strategic security policy CECP0016 sets out Essential Energy’s guiding principles, objectives, and priorities for physical and cyber security whilst aligning with asset management key requirements. It establishes the requirement for frameworks for managing physical and cyber security in a way that is efficient, cost effective, and consistent. | D205: Provides governance for Asset Protection and Security which align and comply with legaslative requirements | E205: No
B206: CECP7029 Physical Security Framework | C206: Essential Energy’s security framework articulates strategic priorities, objectives and identifies how security risks will consequently be managed. The security framework describes Essential Energy’s protective security requirements and mitigation strategies appropriate to the level of risk. | D206: Provides framework for Asset Protection and Security which align and comply with legaslative requirements | E206: No
B215: Disaster recovery policy
B216: CEOP8078a - Company Procedure: Business Resilience | C216: This Procedure is designed to minimise adverse impacts from disruptive incidents consistent with Essential Energy's risk appetite. | D216: Business Continuity | E216: No
B217: CEOM7531-Business Continuity Plan Volume 2: Business Impact Assessment - Engineering Services | C217: This Business Impact Assessment (BIA) document forms the basis for implementing ‘Business Continuity’ measures which will allow Engineering Services to survive a range of potential disasters. | D217: Business Continuity | E217: No
B218: CEOM7532-Business Impact Assessment: Chief Financial Officer | C218: Business Continuity Planning | D218: Business Continuity | E218: No
B219: CEOM7534-Business Impact Assessment: Network Services | C219: This Manual forms the basis for implementing ‘Business Continuity’ measures which will allow Network Services to survive a range of potential disasters. | D219: Business Continuity | E219: No
B220: CEOM7542-Business Impact Assessment: Safety, Human Resources & Environment (SHRE) | C220: Business Continuity Planning | D220: Business Continuity | E220: No
B221: CEOM7543-Business Impact Assessment: Customer & Stakeholder Engagement | C221: Business Continuity Planning | D221: Business Continuity | E221: No
B222: CEOM7550-Recovery Action Plan: Customer Contact | C222: This Manual contains information specific to Customer Contact's recovery which will be used 'on the day' of a business interruption. To be used in conjunction with the Business Impact Assessment (BIA). | D222: Business Continuity | E222: No
B223: CEOM7551-Business Continuity Plan: Overarching Business Continuity Strategies | C223: BCP overarching Business Continuity Strategies | D223: Business Continuity | E223: No
B224: CEOM7589-Recovery Action Plan: Telecommunications | C224: This Manual is to be invoked upon discovery of an actual or potential business disruption. | D224: Business Continuity | E224: No
B225: CEOM7586-Recovery Action Plan: HSE | C225: Information for ‘the day’ of a Business Continuity event. The response to a Business Continuity event will not work unless employees are familiar with their roles and responsibilities and measures to facilitate and support business recovery have been implemented. | D225: Business Continuity | E225: No
B226: CEOM7583-Recovery Action Plan: Network Revenue Services | C226: Information for ‘the day’ of a Business Continuity event. The response to a Business Continuity event will not work unless employees are familiar with their roles and responsibilities and measures to facilitate and support business recovery have been implemented. | D226: Business Continuity | E226: No
B227: CEOM7582-Recovery Action Plan: Property Services | C227: This Procedure is to be invoked upon discovery of an actual or potential business disruption. | D227: Business Continuity | E227: No
B228: CEOM7581-Recovery Action Plan: Payroll | C228: This procedure is to be invoked upon discovery of an actual or potential business disruption | D228: Business Continuity | E228: No
B229: CEOM7580-Recovery Action Plan: Metering Services | C229: This Manual contains information for the day of a Business Continuity event. The response to a Business Continuity event will not work unless employees are familiar with their roles and responsibilities and measures to facilitate and support business recovery have been implemented. | D229: Business Continuity | E229: No
B230: CEOM7578-Recovery Action Plan: ICT Operations | C230: This Procedure is to be invoked upon discovery of an actual or potential business disruption | D230: Business Continuity | E230: No
B231: CEOM7574-Recovery Action Plan: Finance (excluding Billing, Accounts Payable & Payroll) | C231: This Procedure is to be invoked upon discovery of an actual or potential business disruption. The associated CBA Payment Form is part of this Finance Recovery Action Plan. | D231: Business Continuity | E231: No
B232: CEOM7572-Operational Manual: Recovery Action Plan: Asset Management Stay @ Home Plan for: Asset Performance and Risk Commercial Services, Network Design, Engineering & Planning | C232: This procedure is to be invoked upon discovery of an actual or potential business disruption. | D232: Business Continuity | E232: No
B233: CEOM7608-Recovery Action Plan: Accounts Payable | C233: Information for ‘the day’ of a Business Continuity event. The response to a Business Continuity event will not work unless employees are familiar with their roles and responsibilities and measures to facilitate and support business recovery have been implemented. | D233: Business Continuity | E233: No
B234: CEOM7624-Recovery Action Plan: Asset Operations | C234: Information for the day of a Business Continuity event. The response to a Business Continuity event will not work unless employees are familiar with their roles and responsibilities and measures to facilitate and support business recovery have been implemented. | D234: Business Continuity | E234: No
B235: CEOM7625-Recovery Action Plan: Vegetation Operations | C235: Information for the day of a Business Continuity event. The response to a Business Continuity event will not work unless employees are familiar with their roles and responsibilities and measures to facilitate and support business recovery have been implemented. | D235: Business Continuity | E235: No
B236: CEOM7524-Business Impact Assessment: General Counsel & Company Secretary | C236: This Manual forms the basis for implementing ‘Business Continuity’ measures which will allow General Counsel & Company Secretary to survive a range of potential disasters. | D236: Business Continuity | E236: No
B237: CEOM7549.01 - Recovery Action Plan: System Operations | C237: Information specific to System Operations recovery, which will be used on the day of a business interruption. | D237: Business Continuity | E237: No
B238: CEOP0002.34-Company Procedure: Business Continuity | C238: To provide an overview of Business Continuity Management Framework (BCMF) and the detailed business continuity approach that minimises the impacts of disruptive events on the company’s essential service delivery. | D238: Business Continuity | E238: No
B239: CEOM7636/7-Recovery Action Plan | C239: This procedure is to be invoked upon discovery of an actual or potential business disruption | D239: Business Continuity | E239: No

Sheet 7.2 Contingent projects
B1: =INDEX(dms_Worksheet_List,MATCH(dms_Model,dms_Model_List)) -> REGULATORY REPORTING STATEMENT
B2: =INDEX(dms_TradingNameFull_List,MATCH(dms_TradingName,dms_TradingName_List)) -> Essential Energy
B3: =CONCATENATE("REGULATORY PERIOD FROM ", FRCP_y1," TO ",dms_MultiYear_FinalYear_Result) -> REGULATORY PERIOD FROM 2024-25 TO 2028-29
B4: 7.2 CONTINGENT PROJECTS
B6: 7.2.1 - PROPOSED CONTINGENT PROJECTS FOR THE FORTHCOMING REGULATORY CONTROL PERIOD
B7: Proposed contingent project name | C7: Proposed contingent capital expenditure ($0's, nominal) | D7: Proposed trigger events | E7: =CONCATENATE("Proposed annual revenue requirement for ", FRCP_y1, " ($0's, nominal)") -> Proposed annual revenue requirement for 2024-25 ($0's, nominal) | F7: =CONCATENATE("5% of the annual revenue requirement for ",FRCP_y1,"") -> 5% of the annual revenue requirement for 2024-25
B8: Nil | F8: =+E8*0.05 -> 0
E9: =+$E$8 -> 0 | F9: 0
E10: 0 | F10: 0
E11: 0 | F11: 0
E12: 0 | F12: 0
E13: 0 | F13: 0
E14: 0 | F14: 0
E15: 0 | F15: 0
E16: 0 | F16: 0
E17: 0 | F17: 0
E18: 0 | F18: 0
E19: 0 | F19: 0
E20: 0 | F20: 0
E21: 0 | F21: 0
E22: 0 | F22: 0
E23: 0 | F23: 0
E24: 0 | F24: 0
E25: 0 | F25: 0
E26: 0 | F26: 0
E27: 0 | F27: 0
E28: 0 | F28: 0
E29: 0 | F29: 0
E30: 0 | F30: 0
E31: 0 | F31: 0
E32: 0 | F32: 0
E33: 0 | F33: 0
E34: 0 | F34: 0
E35: 0 | F35: 0
E36: 0 | F36: 0
E37: 0 | F37: 0
E38: 0 | F38: 0
E39: 0 | F39: 0
E40: 0 | F40: 0
E41: 0 | F41: 0
E42: 0 | F42: 0
E43: 0 | F43: 0
E44: 0 | F44: 0
E45: 0 | F45: 0

Sheet 7.3 Obligations - part 1
B1: =INDEX(dms_Worksheet_List,MATCH(dms_Model,dms_Model_List)) -> REGULATORY REPORTING STATEMENT
B2: =INDEX(dms_TradingNameFull_List,MATCH(dms_TradingName,dms_TradingName_List)) -> Essential Energy
B3: =CONCATENATE("REGULATORY PERIOD FROM ", FRCP_y1," TO ",dms_MultiYear_FinalYear_Result) -> REGULATORY PERIOD FROM 2024-25 TO 2028-29
B4: 7.3 OBLIGATIONS, REQUIREMENTS & STANDARDS
B6: 7.3.1 - OBLIGATIONS OR REQUIREMENTS
C7: Brief description | D7: Relevance to regulatory proposal | E7: Expenditure impact
C8: Description of relevant obligations or requirements within the instrument (e.g. safety obligations, reliability targets) | D8: Identify what element of the proposal/supporting documents the obligation or requirement is relevant to e.g. replacement capex, capacity utilisation thresholds, opex | E8: Is the obligation or requirement identified in the response to section 4 'Step Changes' of the notice (yes or no)?
B9: LEGISLATION
B10: Electricity Supply Act 1995 (NSW) No 94 | C10: General requirements relating to construction, operation, repair, maintenance and safety | D10: See Description in Column C | E10: No
B11: Electricity Supply (General) Regulation 2014 No 523 | C11: Distributor service standards, consultation, ombudsman schemes | D11: See Description in Column C | E11: No
B12: Electricity Supply (Safety and Network Management) Regulation 2014 No 523 | C12: Safety and network management and planning | D12: See Description in Column C | E12: No
B13: Energy Services Corporations Act 1995 (NSW) No 95 | C13: General requirements relating to network management | D13: See Description in Column C | E13: No
B14: Energy Services Corporations (Savings and Transitional) Regulation 1996 (NSW) | C14: General requirements relating to network management | D14: See Description in Column C | E14: No
B15: Essential Services Act 1988 (NSW) No 41 | C15: General requirements relating to performance and maintenance of electricity supply | D15: See Description in Column C | E15: No
B16: National Electricity (New South Wales) Act 1997 (NSW) No 20 | C16: Applied the National Electricity Law (as set out in the schedule to the National Electricity (South Australia) Act 1996) and the National Electricity Rules (as published by AEMC). The Rules are relevant to Essential Energy as a network operator as regards connection of customers Chapter 5 and 5A and economic regulation of its network Chapter 6 | D16: See Description in Column C | E16: No
B17: National Electricity Law / National Electricity (NSW) Law No 20A | C17: Compliance with National Electricity Law as a law in NSW - Distribution network economic regulation, planning and consultation | D17: See Description in Column C | E17: No
B18: Electricity Act 1994 (Qld) | C18: Network operation and electrical safety management systems for EE's distribution system in QLD | D18: See Description in Column C | E18: No
B19: Electricity Regulation 2006 (Qld) | C19: Network operation and electrical safety management systems for EE's distribution system in QLD | D19: See Description in Column C | E19: No
B20: Electricity Safety Act 2002 (Qld) | C20: Network operation and electrical safety management systems for EE's distribution system in QLD | D20: See Description in Column C | E20: No
B21: Electrical Safety Regulation 2013 (Qld) | C21: Network operation and electrical safety management systems for EE's distribution system in QLD | D21: See Description in Column C | E21: No
B22: National Measurements Act 1960 | C22: Energy metering and accuracy | D22: See Description in Column C | E22: No
B23: National Energy Retail Law (NSW) No 37A | C23: Customer contracts, customer complaints and dispute resolution, RoLR, customer connection services | D23: See Description in Column C | E23: No
B24: National Energy Retail Law (Adoption) Act 2012 (NSW) No 37 and National Energy Retail Law (Adoption) Regulation 2013 (NSW) | C24: Distributor liability, planned interruptions. The National Energy Retail Law and National Energy Retails Rules are applied with changes and additions as a law of NSW from 1 July 2013 (these regulate the relationship between distributors and customers). | D24: See Description in Column C | E24: No
B25: National Energy Retail Law (Queensland) Act 2014 (Qld) | C25: Compliance with National Energy Retail Law as a law in Queensland | D25: See Description in Column C | E25: No
B26: National Energy Retail Law (Queensland) Regulation 2014 (Qld) | C26: Model terms and conditions for certain deemed customer connection contracts; compliance with National Electricity Retail Rules in Queensland | D26: See Description in Column C | E26: No
B27: Marine Safety Act 1998 (NSW) No 121 | C27: Safety standards required for Marine operation on ports and waterways | D27: See Description in Column C | E27: No
B28: Rail Safety National Law (NSW) No 82a and the Rail Safety (Adoption of National Law) Act 2012 No 82 | C28: Applies a national law as a law in NSW that makes provision for a national system of rail safety; to repeal the Rail Safety Act 2008 and make consequential amendments to other legislation; to amend the Passenger Transport Act 1990 and the Transport Administration Act 1988 with respect to the regulation of transport safety; and for other purposes. | D28: See Description in Column C | E28: No
B29: National Vocational Education and Training Regulator Act 2011 (Cth) | C29: Requirements relating to registration as a Registered Training Organisation | D29: See Description in Column C | E29: No
B30: Contaminated Land Management Act 1997 No 140 (NSW) | C30: Remediation of sites | D30: See Description in Column C | E30: No
B31: Dangerous Goods (Road and Rail Transport) Regulation 2014 No 398 | C31: Work Place Health & Safety | D31: See Description in Column C | E31: No
B32: Dangerous Goods (Road and Rail Transport) Act 2008 No 95 (NSW) | C32: Work Place Health & Safety / requirements relating to transportation of dangerous goods by road or rail | D32: See Description in Column C | E32: No
B33: Dividing Fences Act 1991 No 72 (NSW) | C33: Obligations relating to fencing work for dividing fences between adjoining land | D33: See Description in Column C | E33: No
B34: Encroachment of Buildings Act 1922 No 23 (NSW) | C34: Rights and obligations relating to encroachment by buildings on adjoining land | D34: See Description in Column C | E34: No
B35: Workers' Compensation (Dust Diseases) Act 1942 (NSW) No 14 | C35: Dust Diseases | D35: See Description in Column C | E35: No
B36: Environment and Heritage Legislation Amendment Act (No.1) 2006 (Cth) | C36: Environmental planning, assessment and consultation - Indigenous Heritage and environmental protection | D36: See Description in Column C | E36: No
B37: Environmental Planning and Assessment Act 1979 (NSW) No. 203 | C37: Environmental planning, assessment and consultation | D37: See Description in Column C | E37: No
B38: Environmental Protection Act 1994 (Qld) | C38: Environmental planning, assessment and consultation | D38: See Description in Column C | E38: No
B39: Environment Protection and Biodiversity Conservation Act 1999 (Cth) | C39: Environmental planning, assessment and consultation | D39: See Description in Column C | E39: No
B40: Environment Protection and Biodiversity Conservation Regulations 2000 (Cth) | C40: Environmental planning, assessment and consultation | D40: See Description in Column C | E40: No
B41: Environmentally Hazardous Chemicals Act 1985 No 14 (NSW) | C41: Management of environmentally hazardous chemicals and chemical waste | D41: See Description in Column C | E41: No
B42: Environmentally Hazardous Chemicals Regulation 2017 (NSW) No 441 | C42: Environmental planning, assessment and consultation | D42: See Description in Column C | E42: No
B43: Fisheries Management Act 1994 No 38 (NSW) | C43: Environmental planning, assessment and consultation | D43: See Description in Column C | E43: No
B44: Forestry Act 2012 (NSW) No 96 | C44: Environmental planning, assessment and consultation - activities in and use of forestry areas | D44: See Description in Column C | E44: No
B45: Heritage Act 1977 (NSW) No 136 | C45: Environmental planning, assessment and consultation | D45: See Description in Column C | E45: No
B46: Heritage Regulation 2012 (NSW) | C46: Environmental planning, assessment and consultation | D46: See Description in Column C | E46: No
B47: Land and Environment Court Act 1979 (NSW) No 204 | C47: Environmental planning, assessment and consultation | D47: See Description in Column C | E47: No
C48: (esp part 3 Jurisdiction of the Court and Class 3 relating to land tenure, rating and compensation matters)
B49: Land and Environment Court Rules 2007 (NSW) | C49: Environmental planning, assessment and consultation | D49: See Description in Column C | E49: No
B50: Local Government Act 1993 (NSW) No 30 | C50: Development of land for construction of zone substations or other electricity system infrastructure | D50: See Description in Column C | E50: No
B51: Coal Mine Subsidence Compensation Act 2017 No 37 | C51: Environmental planning, assessment and consultation - work and development within mine subsistence districts | D51: See Description in Column C | E51: No
B52: National Environment Protection Council Act 1994 (Cth) | C52: Implementation of miscellaneous national environmental protection measures | D52: See Description in Column C | E52: No
B53: National Environment Protection Measures (Implementation) Act 1998 (Cth) | C53: Implementation of miscellaneous national environmental protection measures | D53: See Description in Column C | E53: No
B54: National Environment Protection (Movement of Controlled Waste between States and Territories) Measures (Cth) | C54: Implementation of miscellaneous national environmental protection measures | D54: See Description in Column C | E54: No
B55: National Environment Protection Council (New South Wales) Act 1995 (NSW) No 4 | C55: General requirements relating to network management | D55: See Description in Column C | E55: No
B56: National Greenhouse and Energy Reporting Act 2007 (Cth) | C56: Reporting obligations relating to greenhouse gas and energy | D56: See Description in Column C | E56: No
B57: National Parks and Wildlife Act 1974 No 80 | C57: Environmental planning, assessment and consultation - national parks, historic sites, nature reserves | D57: See Description in Column C | E57: No
B58: Native Title Act 1993 (Cth) | C58: Environmental planning, assessment and consultation - acts affected by native title | D58: See Description in Column C | E58: No
B59: Native Title (New South Wales) Act 1994 (NSW) No 45 | C59: Electrical infrastructure construction dealings affected by native title | D59: See Description in Column C | E59: No
B60: Local Land Services Act 2013 (NSW) No 51 | C60: Environmental planning, assessment and consultation - clearing of native vegetation | D60: See Description in Column C | E60: No
B61: Biodiversity Conservation (Savings and Transitional) Regulation 2017 | C61: Environmental planning, assessment and consultation | D61: See Description in Column C | E61: No
B62: Vegetation Management Act 1999 (Qld) | C62: Vegetation Management in Qld | D62: See Description in Column C | E62: No
B63: Biosecurity Act 2015 (NSW), No 24 | C63: Identification and control of noxious weeds | D63: See Description in Column C | E63: No
B64: Ozone Protection Act 1989 (NSW) No 208 | C64: Management of equipment with substances that deplete stratospheric ozone | D64: See Description in Column C | E64: No
B65: Pesticides Act 1999 (NSW) No 80 | C65: Use and management of pesticides for treatment of termites | D65: See Description in Column C | E65: No
B66: Pesticides Regulation 2017 No 448 | C66: Use and management of pesticides for treatment of termites | D66: See Description in Column C | E66: No
B67: Biosecurity Regulation 2017 No 232 | C67: Miscellaneous environmental obligations | D67: See Description in Column C | E67: No
B68: Property and Stock and Business Agents Act 2002 (NSW) No 66 | C68: Requirements relating to registration and conduct of property, stock and business agents | D68: See Description in Column C | E68: No
B69: Protection of the Environment Operations Act 1997 (NSW) No 156 | C69: Miscellaneous environmental obligations | D69: See Description in Column C | E69: No
B70: Protection of the Environment Operations (General) Regulation 2009 | C70: Miscellaneous environmental obligations | D70: See Description in Column C | E70: No
B71: Protection of the Environment Administration Act 1991 (NSW) No 60 | C71: Miscellaneous environmental obligations | D71: See Description in Column C | E71: No
B72: Protection of the Environment Operations (Noise Control) Regulation 2017 (NSW) No 449 | C72: Miscellaneous environmental obligations | D72: See Description in Column C | E72: No
B73: Protection of the Environment Operations (Waste) Regulation 2014 (NSW) No 666 | C73: Miscellaneous environmental obligations | D73: See Description in Column C | E73: No
B74: Radiation Control Act 1990 (NSW) No 13 | C74: Miscellaneous environmental obligations - sale, use, keeping and disposal of radioactive substances and radiation apparatus | D74: See Description in Column C | E74: No
B75: Renewable Energy (Electricity) Act 2000 (Cth) and Renewable Energy (Electricity) Regulations 2001 (Cth) | C75: Miscellaneous environmental obligations - Renewable Energy Target scheme (The legislation and accompanying regulations, under which the RET scheme is administered) | D75: See Description in Column C | E75: No
B76: Retail Leases Act 1994 (NSW) No 46 | C76: Obligations relating to leasing of retail shops | D76: See Description in Column C | E76: No
B77: Rural Fires Act 1997 (NSW) No 65 | C77: Prevention and mitigation of bushfires | D77: See Description in Column C | E77: No
B78: State Emergency and Rescue Management Act 1989 (NSW) No 165 | C78: Obligations relating to responding to emergencies in NSW | D78: See Description in Column C | E78: No
B79: Telecommunications (Interception and Access) Act 1979 (Cth) | C79: Obligations relating to restrictions on interception of and access to telecommunications | D79: See Description in Column C | E79: No
B80: Telecommunications Act 1997 (Cth) | C80: Obligations relating to supply of telecommunications services | D80: See Description in Column C | E80: No
B81: Trade Support Loans Act 2014 (Cth) | C81: Qualification of apprentices for trade support loans and repayments of trade support loans | D81: See Description in Column C | E81: No
B82: Utilities Act 2000 (ACT) and Utilities Exemption 2012 (No 1) DI2012-146 (ACT) | C82: Obligations relating to provision of electricity distribution and connection services along the ACT-NSW border | D82: See Description in Column C | E82: No
B83: Water Act 1912 (NSW) No 44 | C83: Environmental planning, assessment and consultation - licences and permits for works relating to water | D83: See Description in Column C | E83: No
B84: Water NSW Act 2014 (NSW) No 74 | C84: Environmental planning, assessment and consultation - activities affecting water | D84: See Description in Column C | E84: No
B85: A New Tax System (Goods and Services Tax) Act 1999 (Cth) | C85: Obligations relating to collection and payment of Goods and Services Tax | D85: See Description in Column C | E85: No
B86: Bankruptcy Act 1966 (Cth) | C86: Actions relating to bankruptcy | D86: See Description in Column C | E86: No
B87: Corporations Act 2001 (Cth) | C87: General provisions relating to regulation of corporations, including actions relating to insolvency | D87: See Description in Column C | E87: No
B88: Soil Conservation Act 1938 (NSW) No 10 | C88: Environmental planning, assessment and consultation - construction and easement management | D88: See Description in Column C | E88: No
B89: Roads Act 1993 (NSW) No 33 | C89: Carrying out of various activities on public roads | D89: See Description in Column C | E89: No
B90: Road Transport Act 2013 (NSW) No 18 | C90: Registration of vehicles and traffic control/safety | D90: See Description in Column C | E90: No
B91: Biodiversity Conservation Act 2016 (NSW) No 63 | C91: Environmental planning, assessment and consultation - threatened species, populations and ecological communities of animals/plants | D91: See Description in Column C | E91: No
B92: Nature Conservation Act 1992 (Qld) | C92: Environmental planning, assessment and consultation - nature conservation | D92: See Description in Column C | E92: No
B93: Valuation of Land Act 1916 (NSW) No 2 | C93: General rules relating to valuation of land | D93: See Description in Column C | E93: No
B94: Land Act 1994 (Qld) | C94: Environmental planning, assessment and consultation - land in Queensland; general requirements relating to land transactions in Queensland | D94: See Description in Column C | E94: No
B95: Land Title Act 1994 (Qld) | C95: General requirements relating to land transactions in Queensland | D95: See Description in Column C | E95: No
B96: Biodiversity Conservation Regulation 2017 (NSW) | C96: Environmental planning, assessment and consultation - threatened species, populations and ecological communities of animals/plants | D96: See Description in Column C | E96: No
B97: Waste Avoidance and Resource Recovery Act 2001 (NSW) No 58 | C97: Miscellaneous environmental obligations | D97: See Description in Column C | E97: No
B98: Water Management Act 2000 (NSW) No 92 | C98: Environmental planning, assessment and consultation - protection of water sources/quality | D98: See Description in Column C | E98: No
B99: Wilderness Act 1987 (NSW) No 196 | C99: Environmental planning, assessment and consultation | D99: See Description in Column C | E99: No
B100: Annual Reports (Statutory Bodies) Act 1984 (NSW) No 87 | C100: Preparation of annual report | D100: See Description in Column C | E100: No
B101: Annual Reports (Statutory Bodies) Regulation 2015 (NSW) No 493 | C101: Preparation of annual report | D101: See Description in Column C | E101: No
B102: Multicultural NSW Act 2000 (NSW) No 77 | C102: Active promotion of employee equal opportunity, employee development programs | D102: See Description in Column C | E102: No
B103: Crimes Act 1900 (NSW) No 40 | C103: General criminal law obligations | D103: See Description in Column C | E103: No
B104: Defamation Act 2005 (NSW) No 77 | C104: General defamation law obligations | D104: See Description in Column C | E104: No
B105: Aboriginal Land Rights Act 1983 (NSW) No 42 | C105: Requirements relating to dealings affected by Aboriginal land claims | D105: See Description in Column C | E105: No
B106: Building Energy Efficiency Disclosure Act 2010 (Cth) | C106: Requirements relating to building energy efficiency disclosure and certificates | D106: See Description in Column C | E106: No
B107: Clean Energy Legislation (Carbon Tax Repeal) Act 2014 (Cth) | C107: Transitional provisions relating to carbon tax repeal | D107: See Description in Column C | E107: No
B108: Energy and Utilities Administration Act 1987 (NSW) No 103 | C108: Promotion of customer awareness of safe, effective and efficient use of energy | D108: See Description in Column C | E108: No
B109: Fair Trading Act 1987 No 68 (NSW) | C109: Provision of safely designed and constructed infrastructure, other consumer protection requirements | D109: See Description in Column C | E109: No
B110: Fines Act 1996 (NSW) No 99 | C110: Payment of any monetary penalty | D110: See Description in Column C | E110: No
B111: Government Information (Public Access) Act 2009 (NSW) No 52 | C111: Government information | D111: See Description in Column C | E111: No
B112: Mutual Recognition (Automatic Licensed Occupations Recognition) Act 2014 (NSW) No 51 | C112: Occupation recognition | D112: See Description in Column C | E112: No
B113: Independent Commission Against Corruption Act 1988 (NSW) No 35 | C113: Responding to an ICAC investigation | D113: See Description in Column C | E113: No
B114: Independent Commission Against Corruption Regulation 2017 (NSW) | C114: Responding to an ICAC investigation | D114: See Description in Column C | E114: No
B115: Ombudsman Act 1974 (NSW) No 68 | C115: Requirements relating to Ombudsman investigations | D115: See Description in Column C | E115: No
B116: Independent Pricing and Regulatory Tribunal Act 1992 (NSW) No 39 | C116: Compliance with 2004 IPART Determination, NSW economic regulation framework, WAPC | D116: See Description in Column C | E116: No
B117: Insurance Act 1973 (Cth) | C117: Prudential standards relating to general insurance and regulation of insurance activities | D117: See Description in Column C | E117: No
B118: Insurance Contracts Act 1984 (Cth) | C118: Obligations relating to insurance contracts | D118: See Description in Column C | E118: No
B119: Infrastructure NSW Act 2011 (NSW) No 23 | C119: State infrastructure Act | D119: See Description in Column C | E119: No
B120: Natural Resources Commission Act 2003 (NSW) No 102 | C120: General environmental requirements | D120: See Description in Column C | E120: No
B121: Government Sector Audit Act 1983 (NSW) No 152 | C121: Financial, compliance and performance audits | D121: See Description in Column C | E121: No
B122: Government Sector Employment Act 2013 (NSW) No 40 | C122: Employment obligations | D122: See Description in Column C | E122: No
B123: Radiocommunications Act 1992 (Cth) | C123: Obligations relating to licensing of radio communication devices | D123: See Description in Column C | E123: No
B124: State Owned Corporations Act 1989 (NSW) No 134 | C124: Requirements and compliance relating to corporations law, corporate governance, SCI, reporting | D124: See Description in Column C | E124: No
B125: Cybercrime Act 2001 (Cth) | C125: Criminal law obligations relating to unauthorised access to or modification of data held in computer and unauthorised impairment of electronic communications | D125: See Description in Column C | E125: No
B126: Electronic Transactions Act 1999 (Cth) | C126: Requirements relating to electronic transactions and contracts involving electronic communications | D126: See Description in Column C | E126: No
B127: Electronic Transactions Act 2000 (NSW) No 8 | C127: Requirements relating to electronic transactions and contracts involving electronic communications | D127: See Description in Column C | E127: No
B128: Evidence Act 1995 (NSW) No 25 | C128: Evidentiary requirements for Court proceedings | D128: See Description in Column C | E128: No
B129: State Records Act 1998 (NSW) No 17 | C129: Records management | D129: See Description in Column C | E129: No
B130: State Records Regulation 2015 (NSW) | C130: Records management | D130: See Description in Column C | E130: No
B131: Spam Act 2003 (Cth) | C131: Requirements relating to commercial electronic messages | D131: See Description in Column C | E131: No
B132: Competition and Consumer Act 2010 (Cth) | C132: General requirements relating to network management and consumer protection | D132: See Description in Column C | E132: No
B133: Competition and Consumer Regulations 2010 (Cth) | C133: General requirements relating to network management and consumer protection | D133: See Description in Column C | E133: No
B134: Superannuation Administration (Electricity Superannuation Scheme Transitional Provisions) Regulation 1997 (NSW) | C134: Employment obligations | D134: See Description in Column C | E134: No
B135: Access to Neighbouring Land Act 2000 (NSW) No 2 | C135: Neighbouring land access | D135: See Description in Column C | E135: No
B136: Building and Construction Industry Long Service Payments Act 1986 (NSW) No 19 | C136: Requirements relating to long service payments/levies | D136: See Description in Column C | E136: No
B137: Building and Construction Industry Long Service Levy | C137: Long Service Levy | D137: See Description in Column C | E137: No
B138: Building and Construction Industry Security of Payment Act 1999 (NSW) No 46 | C138: Payment for Security | D138: See Description in Column C | E138: No
B139: Contaminated Land Management Act 1997 (NSW) No 140 | C139: Remediation of sites | D139: See Description in Column C | E139: No
B140: Contaminated Land Management Regulation 2013 (NSW) | C140: Remediation of sites | D140: See Description in Column C | E140: No
B141: Conveyancing Act 1919 (NSW) No 6 | C141: Application of general rules affecting property, sales, transactions, mortgages, leases etc | D141: See Description in Column C | E141: No
B142: Conveyancing (Sale of Land) Regulation 2017 (NSW) | C142: Application of general rules affecting property, sales, transactions, mortgages, leases etc | D142: See Description in Column C | E142: No
B143: Duties Act 1997 (NSW) No 123 | C143: Payment of duties on land transactions | D143: See Description in Column C | E143: No
B144: Land Acquisition (Just Terms Compensation) Act 1991 (NSW) No 22 | C144: Compensation for acquisition of land for electricity system infrastructure | D144: See Description in Column C | E144: No
B145: Land Tax Management Act 1956 (NSW) No 26 | C145: Payment of land taxes | D145: See Description in Column C | E145: No
B146: Land Tax Act 1956 (NSW) No 27 | C146: Payment of land taxes | D146: See Description in Column C | E146: No
B147: Real Property Act 1900 (NSW) No 25 | C147: Application of general requirements relating to land transactions | D147: See Description in Column C | E147: No
